Workbook

Sheet Zuschneiden
A3: Bildmaße | D3: Bildkoordinaten | G3: Bild neu | I3: Fitswork-Parameter
A4: Start-Ecke links oben | D4: für RX Aur
A5: Bildgröße_X | B5: Bildgröße_Y | D5: xpos | E5: ypos | G5: Breite_X | H5: Höhe_Y | I5: obenminus | J5: untenminus | K5: linksminus | L5: rechtsminus
A6: 4000 | B6: 6000 | D6: 2014 | E6: 4014 | G6: 2000 | H6: 1500 | I6: =E6-H6/2 -> 3264 | J6: =B6-(E6+H6/2) -> 1236 | K6: =D6-G6/2 -> 1014 | L6: =A6-(D6+G6/2) -> 986
A7: 4000 | B7: 6000 | D7: 2014 | E7: 4014 | G7: 1000 | H7: 1000 | I7: =E7-H7/2 -> 3514 | J7: =B7-(E7+H7/2) -> 1486 | K7: =D7-G7/2 -> 1514 | L7: =A7-(D7+G7/2) -> 1486
A8: 4000 | B8: 6000 | D8: 2014 | E8: 4014 | G8: 2300 | H8: 1700 | I8: =E8-H8/2 -> 3164 | J8: =B8-(E8+H8/2) -> 1136 | K8: =D8-G8/2 -> 864 | L8: =A8-(D8+G8/2) -> 836
A9: 4000 | B9: 6000 | D9: 2014 | E9: 4014 | G9: 4000 | H9: 4000 | I9: =E9-H9/2 -> 2014 | J9: =B9-(E9+H9/2) -> -14 | K9: =D9-G9/2 -> 14 | L9: =A9-(D9+G9/2) -> -14

Sheet Messprogramm
A1: Chart | B1: AUID | C1: Label | D1: KatMag | E1: AbsVar | F1: TycMag | G1: TycVar | H1: DR2Mag | I1: DR2Var | J1: LabelSec | K1: MPName | L1: MPSeq
A2: Gaia DR2 | B2: RX Aur | C2: RX Aur | K2: Aur_RX_1 | L2: 10
A3: Gaia DR2 | B3: HD33462 | C3: 70 | D3: 6.97 | E3: 0.046 | F3: 6.98 | H3: 6.97 | I3: 0.046 | J3: HD33462 | K3: Aur_RX_1 | L3: 20
A4: Gaia DR2 | B4: HD31500 | C4: 72 | D4: 7.21 | E4: 0.046 | F4: 7.22 | G4: 0.01 | H4: 7.21 | I4: 0.046 | J4: HD31500 | K4: Aur_RX_1 | L4: 30
A5: Gaia DR2 | B5: HD32189 | C5: 76 | D5: 7.62 | F5: 7.66 | G5: 0.01 | H5: 7.521 | I5: 0.046 | J5: Gaia DR2 200851779077093504 | K5: Aur_RX_1 | L5: 40
A6: Gaia DR2 | B6: HD31760 | C6: 80 | D6: 7.98 | F6: 8 | G6: 0.01 | H6: 7.98 | I6: 0.046 | J6: Gaia DR2 200778352314940416 | K6: Aur_RX_1 | L6: 50
A7: Gaia DR2 | B7: HD32386 | C7: 81 | D7: 8.07 | F7: 8.08 | H7: 7.759 | I7: 0.046 | J7: Gaia DR2 200527869820934784 | K7: Aur_RX_1 | L7: 60
A8: Gaia DR2 | B8: HD32234 | C8: 81 | D8: 8.11 | E8: 0.046 | F8: 8.09 | H8: 8.11 | I8: 0.046 | J8: HD32234 | K8: Aur_RX_1 | L8: 70

Sheet BAVMeldung_2020-05-03
A1: var name | B1: JD date | C1: mag | D1: error | E1: Filter | F1: Htrans | G1: Htype | H1: Cname | I1: Cmag | J1: Kname | K1: Kmag | L1: airmass | M1: group | N1: Chart | O1: comment
A2: RX Aur | B2: 2458812.359 | C2: 7.615304 | D2: 0.04559012382 | E2: TG | F2: NO | G2: STD | H2: ENSEMBLE | I2: na | J2: HD31500 | K2: 7.19854 | L2: na | M2: na | N2: Gaia DR2 | O2: na
A3: RX Aur | B3: 2458815.497 | C3: 7.499004 | D3: 0.05122257761 | E3: TG | F3: NO | G3: STD | H3: ENSEMBLE | I3: na | J3: HD31500 | K3: 7.182616 | L3: na | M3: na | N3: Gaia DR2 | O3: na
A4: RX Aur | B4: 2458815.254 | C4: 7.497212 | D4: 0.05243102185 | E4: TG | F4: NO | G4: STD | H4: ENSEMBLE | I4: na | J4: HD31500 | K4: 7.198856 | L4: na | M4: na | N4: Gaia DR2 | O4: na
A5: RX Aur | B5: 2458816.245 | C5: 7.544924 | D5: 0.0564836053 | E5: TG | F5: NO | G5: STD | H5: ENSEMBLE | I5: na | J5: HD31500 | K5: 7.168156 | L5: na | M5: na | N5: Gaia DR2 | O5: na
A6: RX Aur | B6: 2458817.407 | C6: 7.5911 | D6: 0.04599589547 | E6: TG | F6: NO | G6: STD | H6: ENSEMBLE | I6: na | J6: HD31500 | K6: 7.1815 | L6: na | M6: na | N6: Gaia DR2 | O6: na
A7: RX Aur | B7: 2458818.34 | C7: 7.816719 | D7: 0.045429644 | E7: TG | F7: NO | G7: STD | H7: ENSEMBLE | I7: na | J7: HD31500 | K7: 7.164984 | L7: na | M7: na | N7: Gaia DR2 | O7: na
A8: RX Aur | B8: 2458821.32 | C8: 7.976316 | D8: 0.05517892144 | E8: TG | F8: NO | G8: STD | H8: ENSEMBLE | I8: na | J8: HD31500 | K8: 7.159724 | L8: na | M8: na | N8: Gaia DR2 | O8: na
A9: RX Aur | B9: 2458822.249 | C9: 7.866073 | D9: 0.04576103828 | E9: TG | F9: NO | G9: STD | H9: ENSEMBLE | I9: na | J9: HD31500 | K9: 7.187472 | L9: na | M9: na | N9: Gaia DR2 | O9: na
A10: RX Aur | B10: 2458824.32 | C10: 7.534898 | D10: 0.05563411091 | E10: TG | F10: NO | G10: STD | H10: ENSEMBLE | I10: na | J10: HD31500 | K10: 7.19605 | L10: na | M10: na | N10: Gaia DR2 | O10: na
A11: RX Aur | B11: 2458846.472 | C11: 7.761554 | D11: 0.03983145231 | E11: TG | F11: NO | G11: STD | H11: ENSEMBLE | I11: na | J11: HD31500 | K11: 7.20584 | L11: na | M11: na | N11: Gaia DR2 | O11: na
A12: RX Aur | B12: 2458847.25 | C12: 7.624076 | D12: 0.08199175993 | E12: TG | F12: NO | G12: STD | H12: ENSEMBLE | I12: na | J12: HD31500 | K12: 7.192684 | L12: na | M12: na | N12: Gaia DR2 | O12: na
A13: RX Aur | B13: 2458848.347 | C13: 7.343032 | D13: 0.06109255183 | E13: TG | F13: NO | G13: STD | H13: ENSEMBLE | I13: na | J13: HD31500 | K13: 7.202188 | L13: na | M13: na | N13: Gaia DR2 | O13: na
A14: RX Aur | B14: 2458852.415 | C14: 7.667018 | D14: 0.02374588297 | E14: TG | F14: NO | G14: STD | H14: ENSEMBLE | I14: na | J14: HD31500 | K14: 7.171068 | L14: na | M14: na | N14: Gaia DR2 | O14: na
A15: RX Aur | B15: 2458854.383 | C15: 7.9599 | D15: 0.07950578595 | E15: TG | F15: NO | G15: STD | H15: ENSEMBLE | I15: na | J15: HD31500 | K15: 7.2342 | L15: na | M15: na | N15: Gaia DR2 | O15: na
A16: RX Aur | B16: 2458855.251 | C16: 8.041076 | D16: 0.06534762137 | E16: TG | F16: NO | G16: STD | H16: ENSEMBLE | I16: na | J16: HD31500 | K16: 7.203509 | L16: na | M16: na | N16: Gaia DR2 | O16: na
A17: RX Aur | B17: 2458860.288 | C17: 7.315645 | D17: 0.06885602443 | E17: TG | F17: NO | G17: STD | H17: ENSEMBLE | I17: na | J17: HD31500 | K17: 7.20481 | L17: na | M17: na | N17: Gaia DR2 | O17: na
A18: RX Aur | B18: 2458862.324 | C18: 7.523689 | D18: 0.07743055568 | E18: TG | F18: NO | G18: STD | H18: ENSEMBLE | I18: na | J18: HD31500 | K18: 7.185455 | L18: na | M18: na | N18: Gaia DR2 | O18: na
A19: RX Aur | B19: 2458900.408 | C19: 7.952565 | D19: 0.09395976611 | E19: TG | F19: NO | G19: STD | H19: ENSEMBLE | I19: na | J19: HD31500 | K19: 7.252285 | L19: na | M19: na | N19: Gaia DR2 | O19: na
A20: RX Aur | B20: 2458928.322 | C20: 7.683058 | D20: 0.09237297102 | E20: TG | F20: NO | G20: STD | H20: ENSEMBLE | I20: na | J20: HD31500 | K20: 7.243091 | L20: na | M20: na | N20: Gaia DR2 | O20: na
A21: RX Aur | B21: 2458929.277 | C21: 7.45567 | D21: 0.02038046261 | E21: TG | F21: NO | G21: STD | H21: ENSEMBLE | I21: na | J21: HD31500 | K21: 7.21164 | L21: na | M21: na | N21: Gaia DR2 | O21: na
A22: RX Aur | B22: 2458931.309 | C22: 7.449474 | D22: 0.01321033432 | E22: TG | F22: NO | G22: STD | H22: ENSEMBLE | I22: na | J22: HD31500 | K22: 7.229754 | L22: na | M22: na | N22: Gaia DR2 | O22: na
A23: RX Aur | B23: 2458932.319 | C23: 7.586968 | D23: 0.09932356749 | E23: TG | F23: NO | G23: STD | H23: ENSEMBLE | I23: na | J23: HD31500 | K23: 7.241636 | L23: na | M23: na | N23: Gaia DR2 | O23: na
A24: RX Aur | B24: 2458933.317 | C24: 7.6948 | D24: 0.09953864152 | E24: TG | F24: NO | G24: STD | H24: ENSEMBLE | I24: na | J24: HD31500 | K24: 7.24784 | L24: na | M24: na | N24: Gaia DR2 | O24: na
A25: RX Aur | B25: 2458934.317 | C25: 7.778319 | D25: 0.01546613915 | E25: TG | F25: NO | G25: STD | H25: ENSEMBLE | I25: na | J25: HD31500 | K25: 7.300681 | L25: na | M25: na | N25: Gaia DR2 | O25: na
A26: RX Aur | B26: 2458935.311 | C26: 7.875857 | D26: 0.020240034 | E26: TG | F26: NO | G26: STD | H26: ENSEMBLE | I26: na | J26: HD31500 | K26: 7.239055 | L26: na | M26: na | N26: Gaia DR2 | O26: na
A27: RX Aur | B27: 2458935.45 | C27: 7.964314 | D27: 0.01060492637 | E27: TG | F27: NO | G27: STD | H27: ENSEMBLE | I27: na | J27: HD31500 | K27: 7.209366 | L27: na | M27: na | N27: Gaia DR2 | O27: na
A28: RX Aur | B28: 2458936.314 | C28: 7.9517 | D28: 0.01774141124 | E28: TG | F28: NO | G28: STD | H28: ENSEMBLE | I28: na | J28: HD31500 | K28: 7.232612 | L28: na | M28: na | N28: Gaia DR2 | O28: na
A29: RX Aur | B29: 2458937.316 | C29: 8.068574 | D29: 0.1001755881 | E29: TG | F29: NO | G29: STD | H29: ENSEMBLE | I29: na | J29: HD31500 | K29: 7.245868 | L29: na | M29: na | N29: Gaia DR2 | O29: na
A30: RX Aur | B30: 2458937.345 | C30: 8.029112 | D30: 0.08826006944 | E30: TG | F30: NO | G30: STD | H30: ENSEMBLE | I30: na | J30: HD31500 | K30: 7.257128 | L30: na | M30: na | N30: Gaia DR2 | O30: na
A31: RX Aur | B31: 2458937.359 | C31: 8.03559 | D31: 0.09479093592 | E31: TG | F31: NO | G31: STD | H31: ENSEMBLE | I31: na | J31: HD31500 | K31: 7.24157 | L31: na | M31: na | N31: Gaia DR2 | O31: na
A32: RX Aur | B32: 2458939.303 | C32: 7.829438 | D32: 0.1094296241 | E32: TG | F32: NO | G32: STD | H32: ENSEMBLE | I32: na | J32: HD31500 | K32: 7.256249 | L32: na | M32: na | N32: Gaia DR2 | O32: na
A33: RX Aur | B33: 2458939.417 | C33: 7.825702 | D33: 0.04896435259 | E33: TG | F33: NO | G33: STD | H33: ENSEMBLE | I33: na | J33: HD31500 | K33: 7.282282 | L33: na | M33: na | N33: Gaia DR2 | O33: na
A34: RX Aur | B34: 2458940.33 | C34: 7.634748 | D34: 0.0614282417 | E34: TG | F34: NO | G34: STD | H34: ENSEMBLE | I34: na | J34: HD31500 | K34: 7.252444 | L34: na | M34: na | N34: Gaia DR2 | O34: na
A35: RX Aur | B35: 2458941.314 | C35: 7.365864 | D35: 0.08221020243 | E35: TG | F35: NO | G35: STD | H35: ENSEMBLE | I35: na | J35: HD31500 | K35: 7.101736 | L35: na | M35: na | N35: Gaia DR2 | O35: na
A36: RX Aur | B36: 2458942.32 | C36: 7.25734 | D36: 0.106958242 | E36: TG | F36: NO | G36: STD | H36: ENSEMBLE | I36: na | J36: HD31500 | K36: 7.28712 | L36: na | M36: na | N36: Gaia DR2 | O36: na
A37: RX Aur | B37: 2458943.312 | C37: 7.5184 | D37: 0.1260708041 | E37: TG | F37: NO | G37: STD | H37: ENSEMBLE | I37: na | J37: HD31500 | K37: 7.1884 | L37: na | M37: na | N37: Gaia DR2 | O37: na
A38: RX Aur | B38: 2458943.324 | C38: 7.56908 | D38: 0.06643913194 | E38: TG | F38: NO | G38: STD | H38: ENSEMBLE | I38: na | J38: HD31500 | K38: 7.1593 | L38: na | M38: na | N38: Gaia DR2 | O38: na
A39: RX Aur | B39: 2458944.322 | C39: 7.58272 | D39: 0.05866976489 | E39: TG | F39: NO | G39: STD | H39: ENSEMBLE | I39: na | J39: HD31500 | K39: 7.281412 | L39: na | M39: na | N39: Gaia DR2 | O39: na
A40: RX Aur | B40: 2458945.335 | C40: 7.755328 | D40: 0.04719515037 | E40: TG | F40: NO | G40: STD | H40: ENSEMBLE | I40: na | J40: HD31500 | K40: 7.268437 | L40: na | M40: na | N40: Gaia DR2 | O40: na
A41: RX Aur | B41: 2458946.328 | C41: 7.852163 | D41: 0.03638623884 | E41: TG | F41: NO | G41: STD | H41: ENSEMBLE | I41: na | J41: HD31500 | K41: 7.214195 | L41: na | M41: na | N41: Gaia DR2 | O41: na
A42: RX Aur | B42: 2458947.339 | C42: 7.967303 | D42: 0.0487512743 | E42: TG | F42: NO | G42: STD | H42: ENSEMBLE | I42: na | J42: HD31500 | K42: 7.276445 | L42: na | M42: na | N42: Gaia DR2 | O42: na
A43: RX Aur | B43: 2458948.352 | C43: 8.02844 | D43: 0.05409521195 | E43: TG | F43: NO | G43: STD | H43: ENSEMBLE | I43: na | J43: HD31500 | K43: 7.266855 | L43: na | M43: na | N43: Gaia DR2 | O43: na
A44: RX Aur | B44: 2458949.333 | C44: 8.024822 | D44: 0.05614524711 | E44: TG | F44: NO | G44: STD | H44: ENSEMBLE | I44: na | J44: HD31500 | K44: 7.309139 | L44: na | M44: na | N44: Gaia DR2 | O44: na
A45: RX Aur | B45: 2458950.307 | C45: 7.933777 | D45: 0.06097979515 | E45: TG | F45: NO | G45: STD | H45: ENSEMBLE | I45: na | J45: HD31500 | K45: 7.331758 | L45: na | M45: na | N45: Gaia DR2 | O45: na
A46: RX Aur | B46: 2458950.354 | C46: 7.84646 | D46: 0.06144223376 | E46: TG | F46: NO | G46: STD | H46: ENSEMBLE | I46: na | J46: HD31500 | K46: 7.31398 | L46: na | M46: na | N46: Gaia DR2 | O46: na
A47: RX Aur | B47: 2458951.312 | C47: 7.678182 | D47: 0.05429918017 | E47: TG | F47: NO | G47: STD | H47: ENSEMBLE | I47: na | J47: HD31500 | K47: 7.279058 | L47: na | M47: na | N47: Gaia DR2 | O47: na

Sheet Phasen_Tage_Aur_RX
I3: =AVERAGE(I6:I51) -> 0.06080561122
B5: No | C5: Aufnahme | D5: Phase | E5: RX Aur FW | F5: RX Aur Bl3 | G5: RX Aur Bl6 | H5: HD31500 | I5: MessGenau | J5: Bemerkung
A6: 20191124_0657 | B6: 1 | C6: 20191124_0657 | D6: 0.005100800163 | E6: 7.615304 | F6: 7.619222396 | G6: 7.626087778 | H6: 7.19854 | I6: 0.04559012382
A7: 20191127_0127 | B7: 14 | C7: 20191127_0127 | D7: 2.9003069 | E7: 7.499004 | F7: 7.544030973 | G7: 7.501553054 | H7: 7.182616 | I7: 0.05122257761
A8: 20191127_0847 | B8: 11 | C8: 20191127_0847 | D8: 3.1433674 | E8: 7.497212 | F8: 7.453277493 | G8: 7.487696343 | H8: 7.198856 | I8: 0.05243102185
A9: 20191128_0397 | B9: 17 | C9: 20191128_0397 | D9: 3.8912989 | E9: 7.544924 | F9: 7.631237868 | G9: 7.56491683 | H9: 7.168156 | I9: 0.0564836053
A10: 20191129_0787 | B10: 20 | C10: 20191129_0787 | D10: 5.0531257 | E10: 7.5911 | F10: 7.59993615 | G10: 7.79220963 | H10: 7.1815 | I10: 0.04599589547
A11: 20191230_0863 | B11: 24 | C11: 20191130_0417 | D11: 1.1225948 | E11: 7.816719 | F11: 7.823645463 | G11: 7.818578629 | H11: 7.164984 | I11: 0.045429644 | J11: Verstärkerglühen, Aufnahme sonst perfekt
A12: 20191203_0183 | B12: 37 | C12: 20191203_0183 | D12: 8.9663752 | E12: 7.976316 | F12: 7.976305333 | G12: 7.964366703 | H12: 7.159724 | I12: 0.05517892144
A13: 20191204_0030 | B13: 39 | C13: 20191204_0030 | D13: 9.8955512 | E13: 7.866073 | F13: 7.818837795 | G13: 7.855188667 | H13: 7.187472 | I13: 0.04576103828
A14: 20191206_0264 | B14: 4 | C14: 20191206_0264 | D14: 0.3428850999 | E14: 7.534898 | F14: 7.552834894 | G14: 7.538738438 | H14: 7.19605 | I14: 0.05563411091
A15: 20191228_0618 | B15: 44 | C15: 20191228_0618 | D15: 10.8711708 | E15: 7.761554 | F15: 7.734864152 | G15: 7.750228492 | H15: 7.20584 | I15: 0.03983145231
A16: 20191229_1017 | B16: 2 | C16: 20191229_1017 | D16: 0.02540900027 | E16: 7.624076 | F16: 7.676519569 | G16: 7.633795479 | H16: 7.192684 | I16: 0.08199175993
A17: 20191230_0863 | B17: 7 | C17: 20191230_0863 | D17: 1.1225948 | E17: 7.343032 | F17: 7.425198342 | G17: 7.374169804 | H17: 7.202188 | I17: 0.06109255183
A18: 20200103_0178 | B18: 22 | C18: 20200103_0178 | D18: 5.1904991 | E18: 7.667018 | F18: 7.790805069 | G18: 7.767770081 | H18: 7.171068 | I18: 0.02374588297
A19: 20200105_0186 | B19: 30 | C19: 20200105_0186 | D19: 7.1577779 | E19: 7.9599 | F19: 8.052296787 | G19: 7.99261543 | H19: 7.2342 | I19: 0.07950578595
A20: 20200106_0502 | B20: 32 | C20: 20200106_0502 | D20: 8.0257952 | E20: 8.041076 | F20: 7.995454192 | G20: 8.024651585 | H20: 7.203509 | I20: 0.06534762137
A21: 20200111_0770 | B21: 8 | C21: 20200111_0770 | D21: 1.4395367 | E21: 7.315645 | F21: 7.411233225 | G21: 7.37571937 | H21: 7.20481 | I21: 0.06885602443
A22: 20200113_0986 | B22: 15 | C22: 20200113_0986 | D22: 3.4748446 | E22: 7.523689 | F22: 7.437426437 | G22: 7.492903534 | H22: 7.185455 | I22: 0.07743055568
A23: 20200220_0226 | B23: 26 | C23: 20200220_0226 | D23: 6.6861201 | E23: 7.952565 | F23: 7.971772718 | G23: 7.943148217 | H23: 7.252285 | I23: 0.09395976611
A24: 20200319_0217 | B24: 46 | C24: 20200319_0217 | D24: 11.3496438 | E24: 7.683058 | F24: 7.678041201 | G24: 7.640899765 | H24: 7.243091 | I24: 0.09237297102
A25: 20200320_0451 | B25: 5 | C25: 20200320_0451 | D25: 0.6815948999 | E25: 7.45567 | F25: 7.438389465 | G25: 7.503039834 | H25: 7.21164 | I25: 0.02038046261
A26: 20200322_0128 | B26: 10 | C26: 20200322_0128 | D26: 2.7133503 | E26: 7.449474 | F26: 7.39026326 | G26: 7.352501965 | H26: 7.229754 | I26: 0.01321033432
A27: 20200323_0046 | B27: 16 | C27: 20200323_0046 | D27: 3.7236735 | E27: 7.586968 | F27: 7.495964066 | G27: 7.448210109 | H27: 7.241636 | I27: 0.09932356749
A28: 20200324_0100 | B28: 19 | C28: 20200324_0100 | D28: 4.7214983 | E28: 7.6948 | F28: 7.723392193 | G28: 7.754100828 | H28: 7.24784 | I28: 0.09953864152
A29: 20200325_0082 | B29: 23 | C29: 20200325_0082 | D29: 5.7214067 | E29: 7.778319 | F29: 7.943301726 | G29: 7.920303622 | H29: 7.300681 | I29: 0.01546613915
A30: 20200326_0046 | B30: 27 | C30: 20200326_0046 | D30: 6.7150662 | E30: 7.875857 | F30: 7.923729626 | G30: 7.90708385 | H30: 7.239055 | I30: 0.020240034
A31: 20200326_0190 | B31: 28 | C31: 20200326_0190 | D31: 6.8539424 | E31: 7.964314 | F31: 7.947817861 | G31: 7.992144702 | H31: 7.209366 | I31: 0.01060492637
A32: 20200327_0082 | B32: 31 | C32: 20200327_0082 | D32: 7.7177531 | E32: 7.9517 | F32: 7.985522999 | G32: 7.986709368 | H32: 7.232612 | I32: 0.01774141124
A33: 20200328_0082 | B33: 34 | C33: 20200328_0082 | D33: 8.7197462 | E33: 8.068574 | F33: 8.047729065 | G33: 8.031652688 | H33: 7.245868 | I33: 0.1001755881
A34: 20200328_0199 | B34: 35 | C34: 20200328_0199 | D34: 8.7489103 | E34: 8.029112 | F34: 7.994397257 | G34: 7.976678065 | H34: 7.257128 | I34: 0.08826006944 | N34: 11.623515
A35: 20200328_0226 | B35: 36 | C35: 20200328_0226 | D35: 8.7627979 | E35: 8.03559 | F35: 8.307385229 | G35: 8.247793791 | H35: 7.24157 | I35: 0.09479093592 | J35: (Wolken), defokussiert
A36: 20200330_0037 | B36: 42 | C36: 20200330_0037 | D36: 10.7063746 | E36: 7.829438 | F36: 7.760770668 | G36: 7.723039108 | H36: 7.256249 | I36: 0.1094296241
A37: 20200330_0291 | B37: 43 | C37: 20200330_0291 | D37: 10.8244197 | E37: 7.825702 | F37: 7.81696619 | G37: 7.820698856 | H37: 7.282282 | I37: 0.04896435259 | N37: 5 Tage Anstieg
A38: 20200331_0064 | B38: 3 | C38: 20200331_0064 | D38: 0.1098523002 | E38: 7.634748 | F38: 7.565646609 | G38: 7.594364392 | H38: 7.252444 | I38: 0.0614282417 | N38: 7 Tage Abfall
A39: 20200401_0046 | B39: 6 | C39: 20200401_0046 | D39: 1.0937939 | E39: 7.365864 | F39: 7.362757395 | G39: 7.377302418 | H39: 7.101736 | I39: 0.08221020243
A40: 20200402_0037 | B40: 9 | C40: 20200402_0037 | D40: 2.0999565 | E40: 7.25734 | F40: 7.192542598 | G40: 7.257586166 | H40: 7.28712 | I40: 0.106958242
A41: 20200403_0055 | B41: 12 | C41: 20200403_0055 | D41: 3.0915376 | E41: 7.5184 | F41: 7.482202491 | G41: 7.517687987 | H41: 7.1884 | I41: 0.1260708041
A42: 20200403_0091 | B42: 13 | C42: 20200403_0091 | D42: 3.1040366 | E42: 7.56908 | F42: 7.487239393 | G42: 7.559629532 | H42: 7.1593 | I42: 0.06643913194
A43: 20200404_0127 | B43: 18 | C43: 20200404_0127 | D43: 4.1011735 | E43: 7.58272 | F43: 7.561350492 | G43: 7.571450723 | H43: 7.281412 | I43: 0.05866976489
A44: 20200405_0145 | B44: 21 | C44: 20200405_0145 | D44: 5.1149765 | E44: 7.755328 | F44: 7.7391234 | G44: 7.738552314 | H44: 7.268437 | I44: 0.04719515037
A45: 20200406_0118 | B45: 25 | C45: 20200406_0118 | D45: 7.1182813 | E45: 7.852163 | F45: 7.928950439 | G45: 7.950183517 | H45: 7.214195 | I45: 0.03638623884
A46: 20200407_0154 | B46: 29 | C46: 20200407_0154 | D46: 8.1313924 | E46: 7.967303 | F46: 8.049405685 | G46: 8.030386157 | H46: 7.276445 | I46: 0.0487512743
A47: 20200408_0109 | B47: 33 | C47: 20200408_0109 | D47: 9.111868 | E47: 8.02844 | F47: 7.993774847 | G47: 8.006790191 | H47: 7.266855 | I47: 0.05409521195
A48: 20200409_1019 | B48: 38 | C48: 20200409_1019 | D48: 10.086095 | E48: 8.024822 | F48: 7.912781599 | G48: 7.976696067 | H48: 7.309139 | I48: 0.05614524711
A49: 20200410_0046 | B49: 40 | C49: 20200410_0046 | D49: 10.1333134 | E49: 7.933777 | F49: 7.834014051 | G49: 7.855615026 | H49: 7.331758 | I49: 0.06097979515
A50: 20200410_0118 | B50: 41 | C50: 20200410_0118 | D50: 10.1333134 | E50: 7.84646 | F50: 7.821839864 | G50: 7.844543515 | H50: 7.31398 | I50: 0.06144223376
A51: 20200411_0253 | B51: 45 | C51: 20200411_0253 | D51: 11.0908759 | E51: 7.678182 | F51: 7.640891238 | G51: 7.685643926 | H51: 7.279058 | I51: 0.05429918017

Sheet Phasen_Aur_RX
I3: =AVERAGE(I6:I51) -> 0.06080561122
B5: No | C5: Aufnahme | D5: Phase | E5: RX Aur FW | F5: RX Aur Bl3 | G5: RX Aur Bl6 | H5: HD31500 | I5: MessGenau | J5: Bemerkung
A6: 20191124_0657 | B6: 1 | C6: 20191124_0657 | D6: 0.0004388345662 | E6: 7.615304 | F6: 7.619222396 | G6: 7.626087778 | H6: 7.19854 | I6: 0.04559012382
A7: 20191127_0127 | B7: 14 | C7: 20191127_0127 | D7: 0.2495206398 | E7: 7.499004 | F7: 7.544030973 | G7: 7.501553054 | H7: 7.182616 | I7: 0.05122257761
A8: 20191127_0847 | B8: 11 | C8: 20191127_0847 | D8: 0.2704317412 | E8: 7.497212 | F8: 7.453277493 | G8: 7.487696343 | H8: 7.198856 | I8: 0.05243102185
A9: 20191128_0397 | B9: 17 | C9: 20191128_0397 | D9: 0.3347781545 | E9: 7.544924 | F9: 7.631237868 | G9: 7.56491683 | H9: 7.168156 | I9: 0.0564836053
A10: 20191129_0787 | B10: 20 | C10: 20191129_0787 | D10: 0.4347330132 | E10: 7.5911 | F10: 7.59993615 | G10: 7.79220963 | H10: 7.1815 | I10: 0.04599589547
A11: 20191230_0863 | B11: 24 | C11: 20191130_0417 | D11: 0.0965796319 | E11: 7.816719 | F11: 7.823645463 | G11: 7.818578629 | H11: 7.164984 | I11: 0.045429644 | J11: Verstärkerglühen, Aufnahme sonst perfekt
A12: 20191203_0183 | B12: 37 | C12: 20191203_0183 | D12: 0.7713996326 | E12: 7.976316 | F12: 7.976305333 | G12: 7.964366703 | H12: 7.159724 | I12: 0.05517892144
A13: 20191204_0030 | B13: 39 | C13: 20191204_0030 | D13: 0.8513389624 | E13: 7.866073 | F13: 7.818837795 | G13: 7.855188667 | H13: 7.187472 | I13: 0.04576103828
A14: 20191206_0264 | B14: 4 | C14: 20191206_0264 | D14: 0.02949926076 | E14: 7.534898 | F14: 7.552834894 | G14: 7.538738438 | H14: 7.19605 | I14: 0.05563411091
A15: 20191228_0618 | B15: 44 | C15: 20191228_0618 | D15: 0.9352739511 | E15: 7.761554 | F15: 7.734864152 | G15: 7.750228492 | H15: 7.20584 | I15: 0.03983145231
A16: 20191229_1017 | B16: 2 | C16: 20191229_1017 | D16: 0.002185999697 | E16: 7.624076 | F16: 7.676519569 | G16: 7.633795479 | H16: 7.192684 | I16: 0.08199175993
A17: 20191230_0863 | B17: 7 | C17: 20191230_0863 | D17: 0.0965796319 | E17: 7.343032 | F17: 7.425198342 | G17: 7.374169804 | H17: 7.202188 | I17: 0.06109255183
A18: 20200103_0178 | B18: 22 | C18: 20200103_0178 | D18: 0.4465515896 | E18: 7.667018 | F18: 7.790805069 | G18: 7.767770081 | H18: 7.171068 | I18: 0.02374588297
A19: 20200105_0186 | B19: 30 | C19: 20200105_0186 | D19: 0.6158014938 | E19: 7.9599 | F19: 8.052296787 | G19: 7.99261543 | H19: 7.2342 | I19: 0.07950578595
A20: 20200106_0502 | B20: 32 | C20: 20200106_0502 | D20: 0.6904791881 | E20: 8.041076 | F20: 7.995454192 | G20: 8.024651585 | H20: 7.203509 | I20: 0.06534762137
A21: 20200111_0770 | B21: 8 | C21: 20200111_0770 | D21: 0.1238469344 | E21: 7.315645 | F21: 7.411233225 | G21: 7.37571937 | H21: 7.20481 | I21: 0.06885602443
A22: 20200113_0986 | B22: 15 | C22: 20200113_0986 | D22: 0.2989495518 | E22: 7.523689 | F22: 7.437426437 | G22: 7.492903534 | H22: 7.185455 | I22: 0.07743055568
A23: 20200220_0226 | B23: 26 | C23: 20200220_0226 | D23: 0.5752235963 | E23: 7.952565 | F23: 7.971772718 | G23: 7.943148217 | H23: 7.252285 | I23: 0.09395976611
A24: 20200319_0217 | B24: 46 | C24: 20200319_0217 | D24: 0.9764381773 | E24: 7.683058 | F24: 7.678041201 | G24: 7.640899765 | H24: 7.243091 | I24: 0.09237297102
A25: 20200320_0451 | B25: 5 | C25: 20200320_0451 | D25: 0.05863931005 | E25: 7.45567 | F25: 7.438389465 | G25: 7.503039834 | H25: 7.21164 | I25: 0.02038046261
A26: 20200322_0128 | B26: 10 | C26: 20200322_0128 | D26: 0.233436297 | E26: 7.449474 | F26: 7.39026326 | G26: 7.352501965 | H26: 7.229754 | I26: 0.01321033432
A27: 20200323_0046 | B27: 16 | C27: 20200323_0046 | D27: 0.320356923 | E27: 7.586968 | F27: 7.495964066 | G27: 7.448210109 | H27: 7.241636 | I27: 0.09932356749
A28: 20200324_0100 | B28: 19 | C28: 20200324_0100 | D28: 0.4062022805 | E28: 7.6948 | F28: 7.723392193 | G28: 7.754100828 | H28: 7.24784 | I28: 0.09953864152
A29: 20200325_0082 | B29: 23 | C29: 20200325_0082 | D29: 0.4922268952 | E29: 7.778319 | F29: 7.943301726 | G29: 7.920303622 | H29: 7.300681 | I29: 0.01546613915
A30: 20200326_0046 | B30: 27 | C30: 20200326_0046 | D30: 0.5777139015 | E30: 7.875857 | F30: 7.923729626 | G30: 7.90708385 | H30: 7.239055 | I30: 0.020240034
A31: 20200326_0190 | B31: 28 | C31: 20200326_0190 | D31: 0.5896617675 | E31: 7.964314 | F31: 7.947817861 | G31: 7.992144702 | H31: 7.209366 | I31: 0.01060492637
A32: 20200327_0082 | B32: 31 | C32: 20200327_0082 | D32: 0.6639775576 | E32: 7.9517 | F32: 7.985522999 | G32: 7.986709368 | H32: 7.232612 | I32: 0.01774141124
A33: 20200328_0082 | B33: 34 | C33: 20200328_0082 | D33: 0.7501815243 | E33: 8.068574 | F33: 8.047729065 | G33: 8.031652688 | H33: 7.245868 | I33: 0.1001755881
A34: 20200328_0199 | B34: 35 | C34: 20200328_0199 | D34: 0.7526905846 | E34: 8.029112 | F34: 7.994397257 | G34: 7.976678065 | H34: 7.257128 | I34: 0.08826006944
A35: 20200328_0226 | B35: 36 | C35: 20200328_0226 | D35: 0.7538853694 | E35: 8.03559 | F35: 8.307385229 | G35: 8.247793791 | H35: 7.24157 | I35: 0.09479093592 | J35: (Wolken), defokussiert
A36: 20200330_0037 | B36: 42 | C36: 20200330_0037 | D36: 0.9210961228 | E36: 7.829438 | F36: 7.760770668 | G36: 7.723039108 | H36: 7.256249 | I36: 0.1094296241
A37: 20200330_0291 | B37: 43 | C37: 20200330_0291 | D37: 0.9312518373 | E37: 7.825702 | F37: 7.81696619 | G37: 7.820698856 | H37: 7.282282 | I37: 0.04896435259
A38: 20200331_0064 | B38: 3 | C38: 20200331_0064 | D38: 0.009450867503 | E38: 7.634748 | F38: 7.565646609 | G38: 7.594364392 | H38: 7.252444 | I38: 0.0614282417
A39: 20200401_0046 | B39: 6 | C39: 20200401_0046 | D39: 0.09410181859 | E39: 7.365864 | F39: 7.362757395 | G39: 7.377302418 | H39: 7.101736 | I39: 0.08221020243
A40: 20200402_0037 | B40: 9 | C40: 20200402_0037 | D40: 0.1806644978 | E40: 7.25734 | F40: 7.192542598 | G40: 7.257586166 | H40: 7.28712 | I40: 0.106958242
A41: 20200403_0055 | B41: 12 | C41: 20200403_0055 | D41: 0.2659726942 | E41: 7.5184 | F41: 7.482202491 | G41: 7.517687987 | H41: 7.1884 | I41: 0.1260708041
A42: 20200403_0091 | B42: 13 | C42: 20200403_0091 | D42: 0.2670480143 | E42: 7.56908 | F42: 7.487239393 | G42: 7.559629532 | H42: 7.1593 | I42: 0.06643913194
A43: 20200404_0127 | B43: 18 | C43: 20200404_0127 | D43: 0.35283419 | E43: 7.58272 | F43: 7.561350492 | G43: 7.571450723 | H43: 7.281412 | I43: 0.05866976489
A44: 20200405_0145 | B44: 21 | C44: 20200405_0145 | D44: 0.4400541919 | E44: 7.755328 | F44: 7.7391234 | G44: 7.738552314 | H44: 7.268437 | I44: 0.04719515037
A45: 20200406_0118 | B45: 25 | C45: 20200406_0118 | D45: 0.6124035028 | E45: 7.852163 | F45: 7.928950439 | G45: 7.950183517 | H45: 7.214195 | I45: 0.03638623884
A46: 20200407_0154 | B46: 29 | C46: 20200407_0154 | D46: 0.6995639787 | E46: 7.967303 | F46: 8.049405685 | G46: 8.030386157 | H46: 7.276445 | I46: 0.0487512743
A47: 20200408_0109 | B47: 33 | C47: 20200408_0109 | D47: 0.7839167412 | E47: 8.02844 | F47: 7.993774847 | G47: 8.006790191 | H47: 7.266855 | I47: 0.05409521195
A48: 20200409_1019 | B48: 38 | C48: 20200409_1019 | D48: 0.8677319211 | E48: 8.024822 | F48: 7.912781599 | G48: 7.976696067 | H48: 7.309139 | I48: 0.05614524711
A49: 20200410_0046 | B49: 40 | C49: 20200410_0046 | D49: 0.8717942378 | E49: 7.933777 | F49: 7.834014051 | G49: 7.855615026 | H49: 7.331758 | I49: 0.06097979515
A50: 20200410_0118 | B50: 41 | C50: 20200410_0118 | D50: 0.8717942378 | E50: 7.84646 | F50: 7.821839864 | G50: 7.844543515 | H50: 7.31398 | I50: 0.06144223376
A51: 20200411_0253 | B51: 45 | C51: 20200411_0253 | D51: 0.9541757291 | E51: 7.678182 | F51: 7.640891238 | G51: 7.685643926 | H51: 7.279058 | I51: 0.05429918017

Sheet Muniwin_Ap6
C1: Blende 6.00, Annulus 12-15, Serienmessung 201911-202004, heliozentrische Korrektur, Luftmassenkorrektur
C2: Simbad-Helligkeiten+Genauigkeiten | F2: 6.97 | H2: 7.21 | J2: 7.62 | L2: 7.98 | N2: 8.07 | P2: 8.11
D3: RX Aur | E3: =AVERAGE(E6:E350) -> 0.005116304348 | F3: 70 | G3: =AVERAGE(G6:G350) -> 0.003835652174 | H3: 72 | I3: =AVERAGE(I6:I350) -> 0.003813043478 | J3: 76 | K3: =AVERAGE(K6:K350) -> 0.004544347826 | L3: 80 | M3: =AVERAGE(M6:M350) -> 0.00514826087 | N3: 81 | O3: =AVERAGE(O6:O350) -> 0.006868695652 | P3: 81 | Q3: =AVERAGE(Q6:Q350) -> 0.01074413043
D4: RX Aur | E4: =AVERAGE(D6:D351) -> 10.36635348 | F4: HD33462 | G4: =AVERAGE(F6:F351) -> 9.857585 | H4: HD31500 | I4: =AVERAGE(H6:H351) -> 9.990616522 | J4: HD32189 | K4: =AVERAGE(J6:J351) -> 10.27048913 | L4: HD31760 | M4: =AVERAGE(L6:L351) -> 10.524175 | N4: HD32386 | O4: =AVERAGE(N6:N351) -> 10.65572543 | P4: HD32234 | Q4: =AVERAGE(P6:P351) -> 10.59118065
A5: Image | B5: FRAME | C5: JDHEL | D5: V | E5: s1 | F5: C1 | G5: s2 | H5: C2 | I5: s3 | J5: C3 | K5: s4 | L5: C4 | M5: s5 | N5: C5 | O5: s6 | P5: K1 | Q5: s7 | R5: done
A6: 20191124_0657 | B6: 1 | C6: 2458812.364 | D6: 11.03728 | E6: 0.00823 | F6: 10.56833 | G6: 0.00447 | H6: 10.71703 | I6: 0.00506 | J6: 11.02063 | K6: 0.00681 | L6: 11.27275 | M6: 0.0083 | N6: 11.43701 | O6: 0.01049 | P6: 11.36023 | Q6: 0.01441 | R6: done
A7: 20191127_0127 | B7: 2 | C7: 2458815.259 | D7: 9.89259 | E7: 0.00377 | F7: 9.49588 | G7: 0.00267 | H7: 9.66734 | I7: 0.00292 | J7: 9.98622 | K7: 0.00414 | L7: 10.27298 | M7: 0.00501 | N7: 10.35252 | O7: 0.00557 | P7: 10.29748 | Q7: 0.00955 | R7: done
A8: 20191127_0847 | B8: 3 | C8: 2458815.502 | D8: 9.76192 | E8: 0.0015 | F8: 9.42249 | G8: 0.00149 | H8: 9.54715 | I8: 0.00117 | J8: 9.86553 | K8: 0.00178 | L8: 10.08972 | M8: 0.00164 | N8: 10.22291 | O8: 0.00208 | P8: 10.14288 | Q8: 0.00461 | R8: done
A9: 20191128_0397 | B9: 4 | C9: 2458816.25 | D9: 9.92894 | E9: 0.00314 | F9: 9.52018 | G9: 0.00273 | H9: 9.62928 | I9: 0.00237 | J9: 9.9705 | K9: 0.00289 | L9: 10.22993 | M9: 0.00419 | N9: 10.34987 | O9: 0.00475 | P9: 10.29845 | Q9: 0.00989 | R9: done
A10: 20191129_0787 | B10: 5 | C10: 2458817.412 | D10: 9.91734 | E10: 0.00207 | F10: 10 | G10: 0 | H10: 9.60159 | I10: 0.0016 | J10: 9.99652 | K10: 0.00179 | L10: 10.17223 | M10: 0.00206 | N10: 10.30087 | O10: 0.00305 | P10: 10.32483 | Q10: 0.0055 | R10: done
A11: 20191130_0417 | B11: 6 | C11: 2458818.344 | D11: 10.30989 | E11: 0.00249 | F11: 9.75214 | G11: 0.00189 | H11: 9.86503 | I11: 0.00178 | J11: 10.20524 | K11: 0.00262 | L11: 10.42287 | M11: 0.00289 | N11: 10.50341 | O11: 0.00328 | P11: 10.46581 | Q11: 0.00592 | R11: done
A12: 20191203_0183 | B12: 7 | C12: 2458821.325 | D12: 10.2619 | E12: 0.00397 | F12: 9.61897 | G12: 0.00212 | H12: 9.7238 | I12: 0.0023 | J12: 10.03714 | K12: 0.00335 | L12: 10.23628 | M12: 0.00332 | N12: 10.39175 | O12: 0.00417 | P12: 10.32753 | Q12: 0.01024 | R12: done
A13: 20191204_0030 | B13: 8 | C13: 2458822.254 | D13: 10.15804 | E13: 0.00452 | F13: 9.5657 | G13: 0.00288 | H13: 9.68734 | I13: 0.00278 | J13: 9.99131 | K13: 0.00307 | L13: 10.23994 | M13: 0.00397 | N13: 10.35616 | O13: 0.00547 | P13: 10.29257 | Q13: 0.00794 | R13: done
A14: 20191206_0264 | B14: 9 | C14: 2458824.325 | D14: 12.19304 | E14: 0.00378 | F14: 11.68017 | G14: 0.0028 | H14: 11.8705 | I14: 0.00278 | J14: 12.24964 | K14: 0.00389 | L14: 12.60341 | M14: 0.00553 | N14: 12.79775 | O14: 0.00735 | P14: 12.65201 | Q14: 0.00792 | R14: done
A15: 20191228_0618 | B15: 10 | C15: 2458846.477 | D15: 9.92183 | E15: 0.0019 | F15: 9.37277 | G15: 0.00126 | H15: 9.5334 | I15: 0.00133 | J15: 9.82437 | K15: 0.00161 | L15: 10.08988 | M15: 0.0017 | N15: 10.19011 | O15: 0.00223 | P15: 10.1345 | Q15: 0.00539 | R15: done
A16: 20191229_1017 | B16: 11 | C16: 2458847.254 | D16: 9.89755 | E16: 0.00377 | F16: 9.4468 | G16: 0.00332 | H16: 9.59416 | I16: 0.00259 | J16: 9.85495 | K16: 0.00252 | L16: 10.14478 | M16: 0.00304 | N16: 10.26827 | O16: 0.00439 | P16: 10.18838 | Q16: 0.0086 | R16: done
A17: 20191230_0863 | B17: 12 | C17: 2458848.352 | D17: 9.60409 | E17: 0.00197 | F17: 9.82 | G17: 0 | H17: 9.48176 | I17: 0.00201 | J17: 9.79349 | K17: 0.00204 | L17: 10.06086 | M17: 0.00188 | N17: 10.15009 | O17: 0.00271 | P17: 10.09281 | Q17: 0.0053 | R17: done
A18: 20200103_0178 | B18: 13 | C18: 2458852.42 | D18: 10.82171 | E18: 0.00735 | F18: 10.18183 | G18: 0.0051 | H18: 10.30951 | I18: 0.0045 | J18: 10.6721 | K18: 0.00554 | L18: 11.04527 | M18: 0.00841 | N18: 11.12896 | O18: 0.0091 | P18: 11.03817 | Q18: 0.01451 | R18: done
A19: 20200105_0186 | B19: 14 | C19: 2458854.387 | D19: 10.21867 | E19: 0.00513 | F19: 9.45587 | G19: 0.00379 | H19: 9.65016 | I19: 0.00327 | J19: 9.92577 | K19: 0.00382 | L19: 10.17499 | M19: 0.00416 | N19: 10.34089 | O19: 0.00576 | P19: 10.27091 | Q19: 0.01084 | R19: done
A20: 20200106_0502 | B20: 15 | C20: 2458855.255 | D20: 10.2316 | E20: 0.00532 | F20: 9.43466 | G20: 0.00281 | H20: 9.6168 | I20: 0.00318 | J20: 9.91448 | K20: 0.00372 | L20: 10.20557 | M20: 0.0048 | N20: 10.29947 | O20: 0.00652 | P20: 10.25915 | Q20: 0.00932 | R20: done
A21: 20200111_0770 | B21: 16 | C21: 2458860.292 | D21: 9.84087 | E21: 0.00524 | F21: 9.55268 | G21: 0.00388 | H21: 9.74031 | I21: 0.00376 | J21: 10.02034 | K21: 0.00513 | L21: 10.19477 | M21: 0.00408 | N21: 10.40715 | O21: 0.00613 | P21: 10.36122 | Q21: 0.01019 | R21: done
A22: 20200113_0986 | B22: 17 | C22: 2458862.327 | D22: 9.71939 | E22: 0.00282 | F22: 9.36267 | G22: 0.00226 | H22: 9.5294 | I22: 0.0026 | J22: 9.79763 | K22: 0.003 | L22: 10.07278 | M22: 0.0031 | N22: 10.17661 | O22: 0.00482 | P22: 10.07429 | Q22: 0.00908 | R22: done
A23: 20200220_0226 | B23: 18 | C23: 2458900.409 | D23: 10.04444 | E23: 0.00327 | F23: 9.31695 | G23: 0.00215 | H23: 9.49916 | I23: 0.00182 | J23: 9.79408 | K23: 0.0028 | L23: 10.06631 | M23: 0.0026 | N23: 10.20393 | O23: 0.00337 | P23: 10.10647 | Q23: 0.00593 | R23: done
A24: 20200319_0217 | B24: 19 | C24: 2458928.32 | D24: 10.10039 | E24: 0.00547 | F24: 9.6681 | G24: 0.00251 | H24: 9.83 | I24: 0.00381 | J24: 9.97586 | K24: 0.00328 | L24: 10.2712 | M24: 0.00361 | N24: 10.58158 | O24: 0.008 | P24: 10.36264 | Q24: 0.00998 | R24: done
A25: 20200320_0451 | B25: 20 | C25: 2458929.275 | D25: 10.04564 | E25: 0.00521 | F25: 9.5754 | G25: 0.00385 | H25: 9.8043 | I25: 0.00357 | J25: 10.1451 | K25: 0.00508 | L25: 10.4383 | M25: 0.00545 | N25: 10.60161 | O25: 0.00688 | P25: 10.53349 | Q25: 0.01069 | R25: done
A26: 20200322_0128 | B26: 21 | C26: 2458931.307 | D26: 9.69788 | E26: 0.00268 | F26: 9.54629 | G26: 0.00369 | H26: 9.50579 | I26: 0.0019 | J26: 9.85395 | K26: 0.00267 | L26: 10.12549 | M26: 0.00244 | N26: 10.25276 | O26: 0.0037 | P26: 10.21181 | Q26: 0.00911 | R26: done
A27: 20200323_0046 | B27: 22 | C27: 2458932.317 | D27: 9.82523 | E27: 0.00271 | F27: 9.62693 | G27: 0.00334 | H27: 9.57169 | I27: 0.00236 | J27: 9.87688 | K27: 0.00283 | L27: 10.19313 | M27: 0.00333 | N27: 10.33126 | O27: 0.00536 | P27: 10.25684 | Q27: 0.00887 | R27: done
A28: 20200324_0100 | B28: 23 | C28: 2458933.315 | D28: 10.0477 | E28: 0.0041 | F28: 9.4116 | G28: 0.00215 | H28: 9.70569 | I28: 0.00301 | J28: 9.88718 | K28: 0.00262 | L28: 10.15674 | M28: 0.00285 | N28: 10.43135 | O28: 0.0053 | P28: 10.23785 | Q28: 0.00767 | R28: done
A29: 20200325_0082 | B29: 24 | C29: 2458934.315 | D29: 10.42532 | E29: 0.00701 | F29: 9.69661 | G29: 0.00661 | H29: 9.96856 | I29: 0.00796 | J29: 10.13702 | K29: 0.00455 | L29: 10.47375 | M29: 0.00429 | N29: 10.5824 | O29: 0.00539 | P29: 10.52481 | Q29: 0.01157 | R29: done
A30: 20200326_0046 | B30: 25 | C30: 2458935.309 | D30: 10.4544 | E30: 0.00807 | F30: 9.71895 | G30: 0.00451 | H30: 9.87117 | I30: 0.00689 | J30: 10.19125 | K30: 0.00844 | L30: 10.52923 | M30: 0.00807 | N30: 10.64542 | O30: 0.0092 | P30: 10.56013 | Q30: 0.01238 | R30: done
A31: 20200326_0190 | B31: 26 | C31: 2458935.448 | D31: 10.63434 | E31: 0.00647 | F31: 9.72665 | G31: 0.00303 | H31: 9.93592 | I31: 0.00361 | J31: 10.28769 | K31: 0.00406 | L31: 10.65777 | M31: 0.00638 | N31: 10.71326 | O31: 0.00699 | P31: 10.70579 | Q31: 0.0112 | R31: done
A32: 20200327_0082 | B32: 27 | C32: 2458936.311 | D32: 10.36821 | E32: 0.00453 | F32: 9.44747 | G32: 0.00249 | H32: 9.71707 | I32: 0.00336 | J32: 10.02611 | K32: 0.0036 | L32: 10.39556 | M32: 0.00359 | N32: 10.45882 | O32: 0.00577 | P32: 10.42793 | Q32: 0.01168 | R32: done
A33: 20200328_0082 | B33: 28 | C33: 2458937.313 | D33: 10.55422 | E33: 0.0056 | F33: 9.55989 | G33: 0.00339 | H33: 9.8272 | I33: 0.00323 | J33: 10.17799 | K33: 0.00442 | L33: 10.46521 | M33: 0.00473 | N33: 10.65644 | O33: 0.00689 | P33: 10.58108 | Q33: 0.0116 | R33: done
A34: 20200328_0199 | B34: 29 | C34: 2458937.343 | D34: 10.57588 | E34: 0.00528 | F34: 9.81052 | G34: 0.00474 | H34: 9.93145 | I34: 0.00312 | J34: 10.26815 | K34: 0.00416 | L34: 10.56818 | M34: 0.00478 | N34: 10.68139 | O34: 0.00599 | P34: 10.67679 | Q34: 0.01185 | R34: done
A35: 20200328_0226 | B35: 30 | C35: 2458937.356 | D35: 10.86483 | E35: 0.00798 | F35: 9.97469 | G35: 0.00573 | H35: 9.95762 | I35: 0.00378 | J35: 10.39774 | K35: 0.00649 | L35: 10.63806 | M35: 0.00528 | N35: 10.74061 | O35: 0.00668 | P35: 10.74857 | Q35: 0.01356 | R35: done
A36: 20200330_0037 | B36: 31 | C36: 2458939.3 | D36: 10.05443 | E36: 0.00457 | F36: 9.66154 | G36: 0.00749 | H36: 9.58642 | I36: 0.00338 | J36: 9.92667 | K36: 0.00417 | L36: 10.21024 | M36: 0.00426 | N36: 10.36642 | O36: 0.00618 | P36: 10.30222 | Q36: 0.00929 | R36: done
A37: 20200330_0291 | B37: 32 | C37: 2458939.418 | D37: 10.75779 | E37: 0.00569 | F37: 10.28071 | G37: 0.0043 | H37: 10.47103 | I37: 0.00492 | J37: 10.63544 | K37: 0.00497 | L37: 10.78384 | M37: 0.00581 | N37: 10.92737 | O37: 0.00819 | P37: 10.9227 | Q37: 0.01176 | R37: done
A38: 20200331_0064 | B38: 33 | C38: 2458940.327 | D38: 10.00738 | E38: 0.00376 | F38: 9.59415 | G38: 0.00431 | H38: 9.77259 | I38: 0.00308 | J38: 10.01226 | K38: 0.00418 | L38: 10.24014 | M38: 0.00534 | N38: 10.3813 | O38: 0.00692 | P38: 10.30395 | Q38: 0.00959 | R38: done
A39: 20200401_0046 | B39: 34 | C39: 2458941.311 | D39: 10.19306 | E39: 0.00454 | F39: 10.00399 | G39: 0.00418 | H39: 10.02661 | I39: 0.00424 | J39: 10.38115 | K39: 0.00523 | L39: 10.52641 | M39: 0.00572 | N39: 10.63753 | O39: 0.0073 | P39: 10.59403 | Q39: 0.0127 | R39: done
A40: 20200402_0037 | B40: 35 | C40: 2458942.317 | D40: 10.38219 | E40: 0.00465 | F40: 10.22241 | G40: 0.0048 | H40: 10.40593 | I40: 0.00601 | J40: 10.56936 | K40: 0.00764 | L40: 10.79895 | M40: 0.00661 | N40: 11.03941 | O40: 0.01163 | P40: 10.8361 | Q40: 0.01488 | R40: done
A41: 20200403_0055 | B41: 36 | C41: 2458943.309 | D41: 10.64726 | E41: 0.00585 | F41: 10.37016 | G41: 0.00702 | H41: 10.49353 | I41: 0.00521 | J41: 10.80892 | K41: 0.00866 | L41: 10.82824 | M41: 0.00866 | N41: 10.91166 | O41: 0.00984 | P41: 10.88819 | Q41: 0.01565 | R41: done
A42: 20200403_0091 | B42: 37 | C42: 2458943.321 | D42: 12.21009 | E42: 0.01273 | F42: 11.88107 | G42: 0.01158 | H42: 11.93485 | I42: 0.01148 | J42: 12.23751 | K42: 0.01337 | L42: 12.45339 | M42: 0.01513 | N42: 12.59928 | O42: 0.0217 | P42: 12.54869 | Q42: 0.02969 | R42: done
A43: 20200404_0127 | B43: 38 | C43: 2458944.318 | D43: 10.38525 | E43: 0.00497 | F43: 10.04919 | G43: 0.00515 | H43: 10.2189 | I43: 0.00486 | J43: 10.39302 | K43: 0.00482 | L43: 10.59223 | M43: 0.00697 | N43: 10.70971 | O43: 0.00905 | P43: 10.63911 | Q43: 0.01186 | R43: done
A44: 20200405_0145 | B44: 39 | C44: 2458945.332 | D44: 10.47407 | E44: 0.00641 | F44: 10.06802 | G44: 0.00562 | H44: 10.23191 | I44: 0.00566 | J44: 10.38311 | K44: 0.00552 | L44: 10.58569 | M44: 0.00688 | N44: 10.69976 | O44: 0.00962 | P44: 10.62934 | Q44: 0.01149 | R44: done
A45: 20200406_0118 | B45: 40 | C45: 2458947.335 | D45: 10.78505 | E45: 0.00901 | F45: 10.17478 | G45: 0.00619 | H45: 10.39482 | I45: 0.00693 | J45: 10.58382 | K45: 0.00863 | L45: 10.76145 | M45: 0.00865 | N45: 10.89309 | O45: 0.01156 | P45: 10.86364 | Q45: 0.01313 | R45: done
A46: 20200407_0154 | B46: 41 | C46: 2458948.349 | D46: 10.63845 | E46: 0.00716 | F46: 9.79779 | G46: 0.00536 | H46: 10.0259 | I46: 0.00467 | J46: 10.32717 | K46: 0.00514 | L46: 10.58524 | M46: 0.00791 | N46: 10.74037 | O46: 0.00947 | P46: 10.61864 | Q46: 0.01321 | R46: done
A47: 20200408_0109 | B47: 42 | C47: 2458949.329 | D47: 10.70129 | E47: 0.00548 | F47: 9.9342 | G47: 0.00323 | H47: 10.20939 | I47: 0.00318 | J47: 10.41187 | K47: 0.00406 | L47: 10.69816 | M47: 0.00504 | N47: 10.74578 | O47: 0.00709 | P47: 10.74632 | Q47: 0.01105 | R47: done
A48: 20200409_1019 | B48: 43 | C48: 2458950.303 | D48: 10.7545 | E48: 0.00749 | F48: 10.16503 | G48: 0.0039 | H48: 10.39975 | I48: 0.00565 | J48: 10.51882 | K48: 0.00553 | L48: 10.70392 | M48: 0.00736 | N48: 10.83524 | O48: 0.00761 | P48: 10.83505 | Q48: 0.01181 | R48: done
A49: 20200410_0046 | B49: 44 | C49: 2458950.35 | D49: 10.32418 | E49: 0.006 | F49: 9.67578 | G49: 0.00341 | H49: 9.86013 | I49: 0.00315 | J49: 10.15345 | K49: 0.00497 | L49: 10.40914 | M49: 0.00613 | N49: 10.51843 | O49: 0.00767 | P49: 10.47258 | Q49: 0.0116 | R49: done
A50: 20200410_0118 | B50: 45 | C50: 2458950.35 | D50: 10.63429 | E50: 0.00579 | F50: 10.08919 | G50: 0.00355 | H50: 10.32053 | I50: 0.0041 | J50: 10.4606 | K50: 0.00436 | L50: 10.72483 | M50: 0.00497 | N50: 10.79237 | O50: 0.00647 | P50: 10.75815 | Q50: 0.01129 | R50: done
A51: 20200411_0253 | B51: 46 | C51: 2458951.308 | D51: 10.54785 | E51: 0.0059 | F51: 10.14971 | G51: 0.00469 | H51: 10.32589 | I51: 0.00446 | J51: 10.49447 | K51: 0.00507 | L51: 10.70224 | M51: 0.0059 | N51: 10.81102 | O51: 0.00827 | P51: 10.72018 | Q51: 0.00993 | R51: done

Sheet Muniwin_Ap3
C1: Blende 3.00, Annulus 12-15, Serienmessung 201911-202004, heliozentrische Korrektur, Luftmassenkorrektur
C2: Simbad-Helligkeiten+Genauigkeiten | F2: 6.97 | H2: 7.21 | J2: 7.62 | L2: 7.98 | N2: 8.07 | P2: 8.11
D3: RX Aur | E3: =AVERAGE(E6:E350) -> 0.004229565217 | F3: 70 | G3: =AVERAGE(G6:G350) -> 0.003283478261 | H3: 72 | I3: =AVERAGE(I6:I350) -> 0.003226956522 | J3: 76 | K3: =AVERAGE(K6:K350) -> 0.003690434783 | L3: 80 | M3: =AVERAGE(M6:M350) -> 0.004061086957 | N3: 81 | O3: =AVERAGE(O6:O350) -> 0.00534326087 | P3: 81 | Q3: =AVERAGE(Q6:Q350) -> 0.008499347826
D4: RX Aur | E4: =AVERAGE(D6:D351) -> 10.99529326 | F4: HD33462 | G4: =AVERAGE(F6:F351) -> 10.525875 | H4: HD31500 | I4: =AVERAGE(H6:H351) -> 10.65729283 | J4: HD32189 | K4: =AVERAGE(J6:J351) -> 10.89716783 | L4: HD31760 | M4: =AVERAGE(L6:L351) -> 11.13985826 | N4: HD32386 | O4: =AVERAGE(N6:N351) -> 11.26236239 | P4: HD32234 | Q4: =AVERAGE(P6:P351) -> 11.20366087
A5: Image | B5: FRAME | C5: JDHEL | D5: V | E5: s1 | F5: C1 | G5: s2 | H5: C2 | I5: s3 | J5: C3 | K5: s4 | L5: C4 | M5: s5 | N5: C5 | O5: s6 | P5: K1 | Q5: s7 | R5: done
A6: 20191124_0657 | B6: 1 | C6: 2458812.364 | D6: 11.25877 | E6: 0.00446 | F6: 10.86368 | G6: 0.00268 | H6: 10.96468 | I6: 0.00288 | J6: 11.21411 | K6: 0.00365 | L6: 11.49672 | M6: 0.00456 | N6: 11.64398 | O6: 0.00559 | P6: 11.53623 | Q6: 0.00738 | R6: done
A7: 20191127_0127 | B7: 2 | C7: 2458815.259 | D7: 10.48788 | E7: 0.00289 | F7: 10.07294 | G7: 0.00203 | H7: 10.33866 | I7: 0.00242 | J7: 10.50519 | K7: 0.00295 | L7: 10.82258 | M7: 0.00366 | N7: 10.85297 | O7: 0.00389 | P7: 10.80016 | Q7: 0.00655 | R7: done
A8: 20191127_0847 | B8: 3 | C8: 2458815.502 | D8: 10.27547 | E8: 0.00124 | F8: 10.03259 | G8: 0.00127 | H8: 10.11476 | I8: 0.00105 | J8: 10.32981 | K8: 0.00137 | L8: 10.56594 | M8: 0.00134 | N8: 10.67549 | O8: 0.00159 | P8: 10.66558 | Q8: 0.00329 | R8: done
A9: 20191128_0397 | B9: 4 | C9: 2458816.25 | D9: 10.55194 | E9: 0.00251 | F9: 10.16252 | G9: 0.0022 | H9: 10.24334 | I9: 0.0019 | J9: 10.5045 | K9: 0.00216 | L9: 10.76592 | M9: 0.00305 | N9: 10.88683 | O9: 0.00346 | P9: 10.86317 | Q9: 0.00718 | R9: done
A10: 20191129_0787 | B10: 5 | C10: 2458817.412 | D10: 10.42708 | E10: 0.0016 | F10: 10.53 | G10: 0 | H10: 10.13329 | I10: 0.00129 | J10: 10.48122 | K10: 0.00142 | L10: 10.61732 | M10: 0.00155 | N10: 10.88446 | O10: 0.0024 | P10: 10.82457 | Q10: 0.00384
A11: 20191130_0417 | B11: 6 | C11: 2458818.344 | D11: 10.57453 | E11: 0.00159 | F11: 10.07657 | G11: 0.00127 | H11: 10.1793 | I11: 0.00122 | J11: 10.45863 | K11: 0.00162 | L11: 10.67797 | M11: 0.00178 | N11: 10.75005 | O11: 0.00197 | P11: 10.71071 | Q11: 0.00328 | R11: done
A12: 20191203_0183 | B12: 7 | C12: 2458821.325 | D12: 10.58874 | E12: 0.00243 | F12: 9.9996 | G12: 0.00142 | H12: 10.13794 | I12: 0.00159 | J12: 10.3588 | K12: 0.00207 | L12: 10.56556 | M12: 0.00209 | N12: 10.70209 | O12: 0.00253 | P12: 10.63607 | Q12: 0.0059 | R12: done
A13: 20191204_0030 | B13: 8 | C13: 2458822.254 | D13: 10.53341 | E13: 0.00285 | F13: 10.07661 | G13: 0.00206 | H13: 10.11878 | I13: 0.00188 | J13: 10.38917 | K13: 0.00203 | L13: 10.63208 | M13: 0.00258 | N13: 10.72802 | O13: 0.00341 | P13: 10.67845 | Q13: 0.00492 | R13: done
A14: 20191206_0264 | B14: 9 | C14: 2458824.325 | D14: 12.37357 | E14: 0.00269 | F14: 11.87298 | G14: 0.00207 | H14: 12.05083 | I14: 0.00215 | J14: 12.40642 | K14: 0.00272 | L14: 12.75821 | M14: 0.00354 | N14: 12.93938 | O14: 0.00435 | P14: 12.80247 | Q14: 0.00453 | R14: done
A15: 20191228_0618 | B15: 10 | C15: 2458846.477 | D15: 10.41606 | E15: 0.00148 | F15: 9.98189 | G15: 0.00111 | H15: 10.10229 | I15: 0.00115 | J15: 10.3269 | K15: 0.0013 | L15: 10.568 | M15: 0.00137 | N15: 10.64113 | O15: 0.00166 | P15: 10.61235 | Q15: 0.00366 | R15: done
A16: 20191229_1017 | B16: 11 | C16: 2458847.254 | D16: 10.79487 | E16: 0.00377 | F16: 10.34028 | G16: 0.00331 | H16: 10.53012 | I16: 0.0027 | J16: 10.69632 | K16: 0.00247 | L16: 10.99643 | M16: 0.003 | N16: 11.11725 | O16: 0.00421 | P16: 11.02385 | Q16: 0.00798 | R16: done
A17: 20191230_0863 | B17: 12 | C17: 2458848.352 | D17: 10.35985 | E17: 0.00182 | F17: 10.47 | G17: 0 | H17: 10.23786 | I17: 0.00184 | J17: 10.4617 | K17: 0.00176 | L17: 10.72097 | M17: 0.00169 | N17: 10.82335 | O17: 0.00232 | P17: 10.77549 | Q17: 0.00434
A18: 20200103_0178 | B18: 13 | C18: 2458852.42 | D18: 11.67931 | E18: 0.00703 | F18: 11.05804 | G18: 0.00496 | H18: 11.21526 | I18: 0.00454 | J18: 11.4886 | K18: 0.00514 | L18: 11.85306 | M18: 0.00767 | N18: 11.98619 | O18: 0.00868 | P18: 11.84469 | Q18: 0.01309 | R18: done
A19: 20200105_0186 | B19: 14 | C19: 2458854.387 | D19: 11.07558 | E19: 0.0049 | F19: 10.35469 | G19: 0.00378 | H19: 10.56591 | I19: 0.00331 | J19: 10.73849 | K19: 0.00354 | L19: 10.97122 | M19: 0.0038 | N19: 11.16252 | O19: 0.00535 | P19: 11.08862 | Q19: 0.00992 | R19: done
A20: 20200106_0502 | B20: 15 | C20: 2458855.255 | D20: 10.96627 | E20: 0.00457 | F20: 10.21671 | G20: 0.00255 | H20: 10.4534 | I20: 0.00303 | J20: 10.66502 | K20: 0.00326 | L20: 10.97944 | M20: 0.00428 | N20: 11.03242 | O20: 0.00555 | P20: 11.01661 | Q20: 0.00804 | R20: done
A21: 20200111_0770 | B21: 16 | C21: 2458860.292 | D21: 10.7103 | E21: 0.00505 | F21: 10.39986 | G21: 0.00369 | H21: 10.65238 | I21: 0.0038 | J21: 10.80373 | K21: 0.00459 | L21: 11.00895 | M21: 0.0038 | N21: 11.20813 | O21: 0.00555 | P21: 11.21399 | Q21: 0.00963 | R21: done
A22: 20200113_0986 | B22: 17 | C22: 2458862.327 | D22: 10.48192 | E22: 0.00254 | F22: 10.17379 | G22: 0.00213 | H22: 10.39428 | I22: 0.00256 | J22: 10.63734 | K22: 0.00288 | L22: 10.8112 | M22: 0.00274 | N22: 10.88824 | O22: 0.00406 | P22: 10.77292 | Q22: 0.00744 | R22: done
A23: 20200220_0226 | B23: 18 | C23: 2458900.409 | D23: 10.84835 | E23: 0.00305 | F23: 10.26772 | G23: 0.00229 | H23: 10.32283 | I23: 0.00179 | J23: 10.60058 | K23: 0.00262 | L23: 10.83794 | M23: 0.00241 | N23: 10.99642 | O23: 0.00312 | P23: 10.8638 | Q23: 0.00518 | R23: done
A24: 20200319_0217 | B24: 19 | C24: 2458928.32 | D24: 11.12647 | E24: 0.00607 | F24: 10.66058 | G24: 0.00277 | H24: 10.87083 | I24: 0.00433 | J24: 10.99636 | K24: 0.00369 | L24: 11.23017 | M24: 0.00386 | N24: 11.55756 | O24: 0.00847 | P24: 11.36463 | Q24: 0.01082 | R24: done
A25: 20200320_0451 | B25: 20 | C25: 2458929.275 | D25: 11.16381 | E25: 0.00629 | F25: 10.77797 | G25: 0.00503 | H25: 11.02019 | I25: 0.00474 | J25: 11.30264 | K25: 0.00637 | L25: 11.56638 | M25: 0.00668 | N25: 11.71048 | O25: 0.00821 | P25: 11.64818 | Q25: 0.01281 | R25: done
A26: 20200322_0128 | B26: 21 | C26: 2458931.307 | D26: 10.87479 | E26: 0.00347 | F26: 10.65121 | G26: 0.00441 | H26: 10.6927 | I26: 0.00251 | J26: 11.01886 | K26: 0.00344 | L26: 11.25894 | M26: 0.0031 | N26: 11.38155 | O26: 0.00459 | P26: 11.35941 | Q26: 0.01124 | R26: done
A27: 20200323_0046 | B27: 22 | C27: 2458932.317 | D27: 11.00033 | E27: 0.00351 | F27: 10.70195 | G27: 0.0039 | H27: 10.77403 | I27: 0.00314 | J27: 11.0396 | K27: 0.00361 | L27: 11.32536 | M27: 0.00413 | N27: 11.45355 | O27: 0.00654 | P27: 11.37573 | Q27: 0.0107 | R27: done
A28: 20200324_0100 | B28: 23 | C28: 2458933.315 | D28: 10.99062 | E28: 0.00426 | F28: 10.483 | G28: 0.00254 | H28: 10.68221 | I28: 0.00325 | J28: 10.83587 | K28: 0.00281 | L28: 11.11291 | M28: 0.00307 | N28: 11.40505 | O28: 0.00565 | P28: 11.14248 | Q28: 0.00759 | R28: done
A29: 20200325_0082 | B29: 24 | C29: 2458934.315 | D29: 11.49247 | E29: 0.00809 | F29: 10.82411 | G29: 0.008 | H29: 11.07433 | I29: 0.00947 | J29: 11.20248 | K29: 0.00529 | L29: 11.51494 | M29: 0.00492 | N29: 11.63287 | O29: 0.00619 | P29: 11.55738 | Q29: 0.01288 | R29: done
A30: 20200326_0046 | B30: 25 | C30: 2458935.309 | D30: 11.61194 | E30: 0.01007 | F30: 10.88031 | G30: 0.00568 | H30: 11.04744 | I30: 0.00876 | J30: 11.33514 | K30: 0.01042 | L30: 11.66682 | M30: 0.00992 | N30: 11.79813 | O30: 0.01143 | P30: 11.68994 | Q30: 0.01506 | R30: done
A31: 20200326_0190 | B31: 26 | C31: 2458935.448 | D31: 11.61814 | E31: 0.00695 | F31: 10.83385 | G31: 0.00366 | H31: 11.01544 | I31: 0.00424 | J31: 11.34944 | K31: 0.00472 | L31: 11.65145 | M31: 0.0069 | N31: 11.73504 | O31: 0.00774 | P31: 11.7277 | Q31: 0.01233 | R31: done
A32: 20200327_0082 | B32: 27 | C32: 2458936.311 | D32: 11.56276 | E32: 0.0059 | F32: 10.74314 | G32: 0.00358 | H32: 10.9765 | I32: 0.00465 | J32: 11.26057 | K32: 0.00488 | L32: 11.60202 | M32: 0.00476 | N32: 11.64695 | O32: 0.0074 | P32: 11.59923 | Q32: 0.01476 | R32: done
A33: 20200328_0082 | B33: 28 | C33: 2458937.313 | D33: 11.74445 | E33: 0.00724 | F33: 10.82908 | G33: 0.00471 | H33: 11.05049 | I33: 0.00434 | J33: 11.36817 | K33: 0.00573 | L33: 11.65289 | M33: 0.00613 | N33: 11.81899 | O33: 0.00869 | P33: 11.77216 | Q33: 0.01488 | R33: done
A34: 20200328_0199 | B34: 29 | C34: 2458937.343 | D34: 11.77726 | E34: 0.00693 | F34: 11.02325 | G34: 0.00625 | H34: 11.16754 | I34: 0.00424 | J34: 11.48314 | K34: 0.00552 | L34: 11.74351 | M34: 0.00616 | N34: 11.88133 | O34: 0.00781 | P34: 11.84455 | Q34: 0.01489 | R34: done
A35: 20200328_0226 | B35: 30 | C35: 2458937.356 | D35: 12.05783 | E35: 0.01032 | F35: 11.17907 | G35: 0.00747 | H35: 11.18307 | I35: 0.00506 | J35: 11.57153 | K35: 0.00826 | L35: 11.80112 | M35: 0.00668 | N35: 11.94436 | O35: 0.00873 | P35: 11.86403 | Q35: 0.01628 | R35: done
A36: 20200330_0037 | B36: 31 | C36: 2458939.3 | D36: 11.28756 | E36: 0.00614 | F36: 10.84693 | G36: 0.00957 | H36: 10.89013 | I36: 0.00484 | J36: 11.16422 | K36: 0.00564 | L36: 11.4063 | M36: 0.00555 | N36: 11.5494 | O36: 0.00791 | P36: 11.48033 | Q36: 0.01182 | R36: done
A37: 20200330_0291 | B37: 32 | C37: 2458939.418 | D37: 10.91505 | E37: 0.00297 | F37: 10.45715 | G37: 0.0023 | H37: 10.63595 | I37: 0.0026 | J37: 10.80068 | K37: 0.00264 | L37: 10.95438 | M37: 0.00308 | N37: 11.05444 | O37: 0.00409 | P37: 11.09357 | Q37: 0.00597 | R37: done
A38: 20200331_0064 | B38: 33 | C38: 2458940.327 | D38: 10.42728 | E38: 0.00248 | F38: 10.05734 | G38: 0.00289 | H38: 10.19854 | I38: 0.00207 | J38: 10.43535 | K38: 0.00274 | L38: 10.66033 | M38: 0.00346 | N38: 10.80644 | O38: 0.00447 | P38: 10.77489 | Q38: 0.00639 | R38: done
A39: 20200401_0046 | B39: 34 | C39: 2458941.311 | D39: 10.41179 | E39: 0.0025 | F39: 10.24199 | G39: 0.00234 | H39: 10.27736 | I39: 0.00239 | J39: 10.59131 | K39: 0.00285 | L39: 10.73076 | M39: 0.00309 | N39: 10.81134 | O39: 0.00377 | P39: 10.76329 | Q39: 0.0064 | R39: done
A40: 20200402_0037 | B40: 35 | C40: 2458942.317 | D40: 10.67488 | E40: 0.00274 | F40: 10.61016 | G40: 0.00305 | H40: 10.69965 | I40: 0.00348 | J40: 10.87199 | K40: 0.00441 | L40: 11.1018 | M40: 0.00387 | N40: 11.32531 | O40: 0.00658 | P40: 11.12063 | Q40: 0.00836 | R40: done
A41: 20200403_0055 | B41: 36 | C41: 2458943.309 | D41: 10.80704 | E41: 0.00305 | F41: 10.56452 | G41: 0.0037 | H41: 10.67713 | I41: 0.00276 | J41: 10.97426 | K41: 0.00443 | L41: 11.01464 | M41: 0.00451 | N41: 11.03005 | O41: 0.0048 | P41: 11.06721 | Q41: 0.00799 | R41: done
A42: 20200403_0091 | B42: 37 | C42: 2458943.321 | D42: 12.33823 | E42: 0.0064 | F42: 12.06017 | G42: 0.00606 | H42: 12.11298 | I42: 0.00602 | J42: 12.43156 | K42: 0.00713 | L42: 12.62868 | M42: 0.00789 | N42: 12.75321 | O42: 0.01092 | P42: 12.69714 | Q42: 0.01474 | R42: done
A43: 20200404_0127 | B43: 38 | C43: 2458944.318 | D43: 10.60986 | E43: 0.00275 | F43: 10.29517 | G43: 0.00285 | H43: 10.44678 | I43: 0.00268 | J43: 10.62317 | K43: 0.00269 | L43: 10.82564 | M43: 0.00382 | N43: 10.89666 | O43: 0.0047 | P43: 10.88027 | Q43: 0.00642 | R43: done
A44: 20200405_0145 | B44: 39 | C44: 2458945.332 | D44: 10.72337 | E44: 0.00357 | F44: 10.33988 | G44: 0.00318 | H44: 10.484 | I44: 0.00316 | J44: 10.66066 | K44: 0.00316 | L44: 10.8327 | M44: 0.00382 | N44: 10.90624 | O44: 0.00506 | P44: 10.88595 | Q44: 0.00631 | R44: done
A45: 20200406_0118 | B45: 40 | C45: 2458947.335 | D45: 11.00319 | E45: 0.00481 | F45: 10.465 | G45: 0.00355 | H45: 10.63558 | I45: 0.00379 | J45: 10.84259 | K45: 0.00478 | L45: 11.00309 | M45: 0.00473 | N45: 11.10208 | O45: 0.00609 | P45: 11.09219 | Q45: 0.00703 | R45: done
A46: 20200407_0154 | B46: 41 | C46: 2458948.349 | D46: 11.13339 | E46: 0.00495 | F46: 10.33585 | G46: 0.00382 | H46: 10.47145 | I46: 0.0031 | J46: 10.78736 | K46: 0.00347 | L46: 11.05194 | M46: 0.0053 | N46: 11.23306 | O46: 0.00646 | P46: 11.12134 | Q46: 0.00904 | R46: done
A47: 20200408_0109 | B47: 42 | C47: 2458949.329 | D47: 10.89293 | E47: 0.00296 | F47: 10.21032 | G47: 0.00191 | H47: 10.4428 | I47: 0.00185 | J47: 10.63208 | K47: 0.00229 | L47: 10.9168 | M47: 0.00281 | N47: 10.92611 | O47: 0.00371 | P47: 10.94719 | Q47: 0.00577 | R47: done
A48: 20200409_1019 | B48: 43 | C48: 2458950.303 | D48: 10.88936 | E48: 0.00376 | F48: 10.37942 | G48: 0.00217 | H48: 10.58699 | I48: 0.003 | J48: 10.71601 | K48: 0.00296 | L48: 10.89109 | M48: 0.00387 | N48: 10.97372 | O48: 0.00384 | P48: 11.00694 | Q48: 0.006 | R48: done
A49: 20200410_0046 | B49: 44 | C49: 2458950.35 | D49: 10.68309 | E49: 0.00367 | F49: 10.08336 | G49: 0.00222 | H49: 10.30453 | I49: 0.00215 | J49: 10.5143 | K49: 0.00306 | L49: 10.77822 | M49: 0.00379 | N49: 10.87035 | O49: 0.00462 | P49: 10.84447 | Q49: 0.00705 | R49: done
A50: 20200410_0118 | B50: 45 | C50: 2458950.35 | D50: 10.83656 | E50: 0.00313 | F50: 10.33763 | G50: 0.00205 | H50: 10.54093 | I50: 0.0023 | J50: 10.6921 | K50: 0.00246 | L50: 10.94377 | M50: 0.00278 | N50: 10.97642 | O50: 0.00344 | P50: 10.98276 | Q50: 0.00604 | R50: done
A51: 20200411_0253 | B51: 46 | C51: 2458951.308 | D51: 10.72514 | E51: 0.00311 | F51: 10.36737 | G51: 0.00256 | H51: 10.51999 | I51: 0.00242 | J51: 10.70175 | K51: 0.00276 | L51: 10.91732 | M51: 0.00322 | N51: 10.96906 | O51: 0.00419 | P51: 10.93508 | Q51: 0.00525 | R51: done

Sheet Linreg_Ap3
B1: Tabelle zur Berechnung der Korrelationsfunktion | M1: Lineare Regressionsstatistik: | O1: =LINEST(L8:L13,K8:K13,,TRUE) -> 1.919513975 | P1: -12.94616488
B2: Messwerte von oben in die untere Tabelle (Spalte C) kopieren | O2: 0.08508515038 | P2: 0.9136022603
B3: neue Korrelationsfunktion in Spalte F kopieren und anpassen | O3: 0.9922019672 | P3: 0.04741490132
B4: in Feld Mittelwert bzw. Standardabweichung clicken und ggf. berücksichtigten Bereich an Zahl der Sterne anpassen (empfohlen 5 Sterne Minimum) | O4: 508.9498789 | P4: 4
O5: 1.144207309 | P5: 0.008992691469
A6: MPName | B6: AbsMag2 | C6: FullJD | D6: AUID | E6: Serie | F6: linRegA | G6: linRegB | H6: RR | I6: StabAbsMag | J6: CalcMag | K6: InstMag | L6: AbsMag | M6: Differenz | N6: Label
A7: Aur_RX_1 | C7: 2458951.308 | D7: RX Aur | E7: 20200411_0253 | F7: 1.919513975 | G7: -12.94616488 | H7: 0.9922019672 | I7: =_xlfn.STDEV.P(M8:M13) -> 0.03871410481 | J7: =F7*K7+G7 -> 7.640891238 | K7: 10.72514 | N7: RX Aur
A8: Aur_RX_1 | B8: 6.97 | C8: 2458951.308 | D8: HD33462 | E8: 20200411_0253 | F8: 1.919513975 | G8: -12.94616488 | H8: 0.9922019672 | I8: =_xlfn.STDEV.P(M8:M13) -> 0.03871410481 | J8: 6.954146723 | K8: 10.36737 | L8: 6.97 | M8: =L8-J8 -> 0.01585327661 | N8: 70
A9: Aur_RX_1 | B9: 7.21 | C9: 2458951.308 | D9: HD31500 | E9: 20200411_0253 | F9: 1.919513975 | G9: -12.94616488 | H9: 0.9922019672 | I9: =_xlfn.STDEV.P(M8:M13) -> 0.03871410481 | J9: 7.247102946 | K9: 10.51999 | L9: 7.21 | M9: -0.03710294632 | N9: 72
A10: Aur_RX_1 | B10: 7.62 | C10: 2458951.308 | D10: HD32189 | E10: 20200411_0253 | F10: 1.919513975 | G10: -12.94616488 | H10: 0.9922019672 | I10: =_xlfn.STDEV.P(M8:M13) -> 0.03871410481 | J10: 7.595993806 | K10: 10.70175 | L10: 7.62 | M10: 0.02400619351 | N10: 76
A11: Aur_RX_1 | B11: 7.98 | C11: 2458951.308 | D11: HD31760 | E11: 20200411_0253 | F11: 1.919513975 | G11: -12.94616488 | H11: 0.9922019672 | I11: =_xlfn.STDEV.P(M8:M13) -> 0.03871410481 | J11: 8.009783434 | K11: 10.91732 | L11: 7.98 | M11: -0.02978343417 | N11: 80
A12: Aur_RX_1 | B12: 8.07 | C12: 2458951.308 | D12: HD32386 | E12: 20200411_0253 | F12: 1.919513975 | G12: -12.94616488 | H12: 0.9922019672 | I12: =_xlfn.STDEV.P(M8:M13) -> 0.03871410481 | J12: 8.109099087 | K12: 10.96906 | L12: 8.07 | M12: -0.03909908726 | N12: 81
A13: Aur_RX_1 | B13: 8.11 | C13: 2458951.308 | D13: HD32234 | E13: 20200411_0253 | F13: 1.919513975 | G13: -12.94616488 | H13: 0.9922019672 | I13: =_xlfn.STDEV.P(M8:M13) -> 0.03871410481 | J13: 8.043874002 | K13: 10.93508 | L13: 8.11 | M13: 0.06612599763 | N13: 81
A21: ID | B21: ProcComb | C21: Phase | D21: MPName | E21: PMethod | F21: FullJD | G21: AUID | H21: Serie | I21: linRegA | J21: linRegB | K21: RR | L21: StabAbsMag | M21: CalcMag | N21: DataInputDate | O21: Remark
A22: 1 | B22: =G30&E22&D22 -> HD33462linRegAur_RX_1 | C22: =(F22-2439075.63)/11.623515-INT((F22-2439075.63)/11.623515) -> 0.0004388345662 | D22: Aur_RX_1 | E22: linReg | F22: 2458812.364 | G22: RX Aur | H22: 20191124_0657 | I22: 1.466996187 | J22: -8.897350259 | K22: 0.9740235162 | L22: 0.07065890033 | M22: 7.619222396 | N22: 2021-02-04
A23: 2 | B23: HD31500linRegAur_RX_1 | C23: =(F23-2439075.63)/11.623515-INT((F23-2439075.63)/11.623515) -> 0.0004388345662 | D23: Aur_RX_1 | E23: linReg | F23: 2458812.364 | G23: HD33462 | H23: 20191124_0657 | I23: 1.466996187 | J23: -8.897350259 | K23: 0.9740235162 | L23: 0.07065890033 | M23: 7.039626873 | N23: 2021-02-04
A24: 3 | B24: HD32189linRegAur_RX_1 | C24: =(F24-2439075.63)/11.623515-INT((F24-2439075.63)/11.623515) -> 0.0004388345662 | D24: Aur_RX_1 | E24: linReg | F24: 2458812.364 | G24: HD31500 | H24: 20191124_0657 | I24: 1.466996187 | J24: -8.897350259 | K24: 0.9740235162 | L24: 0.07065890033 | M24: 7.187793488 | N24: 2021-02-04
A25: 4 | B25: HD31760linRegAur_RX_1 | C25: 0.0004388345662 | D25: Aur_RX_1 | E25: linReg | F25: 2458812.364 | G25: HD32189 | H25: 20191124_0657 | I25: 1.466996187 | J25: -8.897350259 | K25: 0.9740235162 | L25: 0.07065890033 | M25: 7.553706346 | N25: 2021-02-04
A26: 5 | B26: HD32386linRegAur_RX_1 | C26: 0.0004388345662 | D26: Aur_RX_1 | E26: linReg | F26: 2458812.364 | G26: HD31760 | H26: 20191124_0657 | I26: 1.466996187 | J26: -8.897350259 | K26: 0.9740235162 | L26: 0.07065890033 | M26: 7.968294139 | N26: 2021-02-04
A27: 6 | B27: HD32234linRegAur_RX_1 | C27: 0.0004388345662 | D27: Aur_RX_1 | E27: linReg | F27: 2458812.364 | G27: HD32386 | H27: 20191124_0657 | I27: 1.466996187 | J27: -8.897350259 | K27: 0.9740235162 | L27: 0.07065890033 | M27: 8.184323997 | N27: 2021-02-04
A28: 7 | B28: RX AurlinRegAur_RX_1 | C28: 0.0004388345662 | D28: Aur_RX_1 | E28: linReg | F28: 2458812.364 | G28: HD32234 | H28: 20191124_0657 | I28: 1.466996187 | J28: -8.897350259 | K28: 0.9740235162 | L28: 0.07065890033 | M28: 8.026255158 | N28: 2021-02-04
A29: 8 | B29: HD33462linRegAur_RX_1 | C29: 0.2495206398 | D29: Aur_RX_1 | E29: linReg | F29: 2458815.259 | G29: RX Aur | H29: 20191127_0127 | I29: 1.495666919 | J29: -8.142344198 | K29: 0.9728347067 | L29: 0.07225765955 | M29: 7.544030973 | N29: 2021-02-04
A30: 9 | B30: HD31500linRegAur_RX_1 | C30: 0.2495206398 | D30: Aur_RX_1 | E30: linReg | F30: 2458815.259 | G30: HD33462 | H30: 20191127_0127 | I30: 1.495666919 | J30: -8.142344198 | K30: 0.9728347067 | L30: 0.07225765955 | M30: 6.923418941 | N30: 2021-02-04
A31: 10 | B31: HD32189linRegAur_RX_1 | C31: 0.2495206398 | D31: Aur_RX_1 | E31: linReg | F31: 2458815.259 | G31: HD31500 | H31: 20191127_0127 | I31: 1.495666919 | J31: -8.142344198 | K31: 0.9728347067 | L31: 0.07225765955 | M31: 7.320847555 | N31: 2021-02-04
A32: 11 | B32: HD31760linRegAur_RX_1 | C32: 0.2495206398 | D32: Aur_RX_1 | E32: linReg | F32: 2458815.259 | G32: HD32189 | H32: 20191127_0127 | I32: 1.495666919 | J32: -8.142344198 | K32: 0.9728347067 | L32: 0.07225765955 | M32: 7.569920967 | N32: 2021-02-04
A33: 12 | B33: HD32386linRegAur_RX_1 | C33: 0.2495206398 | D33: Aur_RX_1 | E33: linReg | F33: 2458815.259 | G33: HD31760 | H33: 20191127_0127 | I33: 1.495666919 | J33: -8.142344198 | K33: 0.9728347067 | L33: 0.07225765955 | M33: 8.044630691 | N33: 2021-02-04
A34: 13 | B34: HD32234linRegAur_RX_1 | C34: 0.2495206398 | D34: Aur_RX_1 | E34: linReg | F34: 2458815.259 | G34: HD32386 | H34: 20191127_0127 | I34: 1.495666919 | J34: -8.142344198 | K34: 0.9728347067 | L34: 0.07225765955 | M34: 8.090084008 | N34: 2021-02-04
A35: 14 | B35: RX AurlinRegAur_RX_1 | C35: 0.2495206398 | D35: Aur_RX_1 | E35: linReg | F35: 2458815.259 | G35: HD32234 | H35: 20191127_0127 | I35: 1.495666919 | J35: -8.142344198 | K35: 0.9728347067 | L35: 0.07225765955 | M35: 8.011097838 | N35: 2021-02-04
A36: 15 | B36: HD33462linRegAur_RX_1 | C36: 0.2704317412 | D36: Aur_RX_1 | E36: linReg | F36: 2458815.502 | G36: RX Aur | H36: 20191127_0847 | I36: 1.695952749 | J36: -9.973434105 | K36: 0.985689738 | L36: 0.05244456453 | M36: 7.453277493 | N36: 2021-02-04
A37: 16 | B37: HD31500linRegAur_RX_1 | C37: 0.2704317412 | D37: Aur_RX_1 | E37: linReg | F37: 2458815.502 | G37: HD33462 | H37: 20191127_0847 | I37: 1.695952749 | J37: -9.973434105 | K37: 0.985689738 | L37: 0.05244456453 | M37: 7.041364489 | N37: 2021-02-04
A38: 17 | B38: HD32189linRegAur_RX_1 | C38: 0.2704317412 | D38: Aur_RX_1 | E38: linReg | F38: 2458815.502 | G38: HD31500 | H38: 20191127_0847 | I38: 1.695952749 | J38: -9.973434105 | K38: 0.985689738 | L38: 0.05244456453 | M38: 7.180720926 | N38: 2021-02-04
A39: 18 | B39: HD31760linRegAur_RX_1 | C39: 0.2704317412 | D39: Aur_RX_1 | E39: linReg | F39: 2458815.502 | G39: HD32189 | H39: 20191127_0847 | I39: 1.695952749 | J39: -9.973434105 | K39: 0.985689738 | L39: 0.05244456453 | M39: 7.545435565 | N39: 2021-02-04
A40: 19 | B40: HD32386linRegAur_RX_1 | C40: 0.2704317412 | D40: Aur_RX_1 | E40: linReg | F40: 2458815.502 | G40: HD31760 | H40: 20191127_0847 | I40: 1.695952749 | J40: -9.973434105 | K40: 0.985689738 | L40: 0.05244456453 | M40: 7.945900888 | N40: 2021-02-04
A41: 20 | B41: HD32234linRegAur_RX_1 | C41: 0.2704317412 | D41: Aur_RX_1 | E41: linReg | F41: 2458815.502 | G41: HD32386 | H41: 20191127_0847 | I41: 1.695952749 | J41: -9.973434105 | K41: 0.985689738 | L41: 0.05244456453 | M41: 8.131692512 | N41: 2021-02-04
A42: 21 | B42: RX AurlinRegAur_RX_1 | C42: 0.2704317412 | D42: Aur_RX_1 | E42: linReg | F42: 2458815.502 | G42: HD32234 | H42: 20191127_0847 | I42: 1.695952749 | J42: -9.973434105 | K42: 0.985689738 | L42: 0.05244456453 | M42: 8.11488562 | N42: 2021-02-04
A43: 22 | B43: HD33462linRegAur_RX_1 | C43: 0.3347781545 | D43: Aur_RX_1 | E43: linReg | F43: 2458816.25 | G43: RX Aur | H43: 20191128_0397 | I43: 1.505345364 | J43: -8.253076093 | K43: 0.9859403835 | L43: 0.05198325008 | M43: 7.631237868 | N43: 2021-02-04
A44: 23 | B44: HD31500linRegAur_RX_1 | C44: 0.3347781545 | D44: Aur_RX_1 | E44: linReg | F44: 2458816.25 | G44: HD33462 | H44: 20191128_0397 | I44: 1.505345364 | J44: -8.253076093 | K44: 0.9859403835 | L44: 0.05198325008 | M44: 7.045026276 | N44: 2021-02-04
A45: 24 | B45: HD32189linRegAur_RX_1 | C45: 0.3347781545 | D45: Aur_RX_1 | E45: linReg | F45: 2458816.25 | G45: HD31500 | H45: 20191128_0397 | I45: 1.505345364 | J45: -8.253076093 | K45: 0.9859403835 | L45: 0.05198325008 | M45: 7.166688289 | N45: 2021-02-04
A46: 25 | B46: HD31760linRegAur_RX_1 | C46: 0.3347781545 | D46: Aur_RX_1 | E46: linReg | F46: 2458816.25 | G46: HD32189 | H46: 20191128_0397 | I46: 1.505345364 | J46: -8.253076093 | K46: 0.9859403835 | L46: 0.05198325008 | M46: 7.559824284 | N46: 2021-02-04
A47: 26 | B47: HD32386linRegAur_RX_1 | C47: 0.3347781545 | D47: Aur_RX_1 | E47: linReg | F47: 2458816.25 | G47: HD31760 | H47: 20191128_0397 | I47: 1.505345364 | J47: -8.253076093 | K47: 0.9859403835 | L47: 0.05198325008 | M47: 7.953351669 | N47: 2021-02-04
A48: 27 | B48: HD32234linRegAur_RX_1 | C48: 0.3347781545 | D48: Aur_RX_1 | E48: linReg | F48: 2458816.25 | G48: HD32386 | H48: 20191128_0397 | I48: 1.505345364 | J48: -8.253076093 | K48: 0.9859403835 | L48: 0.05198325008 | M48: 8.135362977 | N48: 2021-02-04
A49: 28 | B49: RX AurlinRegAur_RX_1 | C49: 0.3347781545 | D49: Aur_RX_1 | E49: linReg | F49: 2458816.25 | G49: HD32234 | H49: 20191128_0397 | I49: 1.505345364 | J49: -8.253076093 | K49: 0.9859403835 | L49: 0.05198325008 | M49: 8.099746506 | N49: 2021-02-04
A50: 29 | B50: HD33462linRegAur_RX_1 | C50: 0.4347330132 | D50: Aur_RX_1 | E50: linReg | F50: 2458817.412 | G50: RX Aur | H50: 20191129_0787 | I50: 1.229507675 | J50: -5.220238742 | K50: 0.9427314124 | L50: 0.08163754741 | M50: 7.59993615 | N50: 2021-02-04
A51: 30 | B51: HD31500linRegAur_RX_1 | C51: 0.4347330132 | D51: Aur_RX_1 | E51: linReg | F51: 2458817.412 | G51: HD33462 | H51: 20191129_0787
A52: 31 | B52: HD32189linRegAur_RX_1 | C52: 0.4347330132 | D52: Aur_RX_1 | E52: linReg | F52: 2458817.412 | G52: HD31500 | H52: 20191129_0787 | I52: 1.229507675 | J52: -5.220238742 | K52: 0.9427314124 | L52: 0.08163754741 | M52: 7.23871909 | N52: 2021-02-04
A53: 32 | B53: HD31760linRegAur_RX_1 | C53: 0.4347330132 | D53: Aur_RX_1 | E53: linReg | F53: 2458817.412 | G53: HD32189 | H53: 20191129_0787 | I53: 1.229507675 | J53: -5.220238742 | K53: 0.9427314124 | L53: 0.08163754741 | M53: 7.666501695 | N53: 2021-02-04
A54: 33 | B54: HD32386linRegAur_RX_1 | C54: 0.4347330132 | D54: Aur_RX_1 | E54: linReg | F54: 2458817.412 | G54: HD31760 | H54: 20191129_0787 | I54: 1.229507675 | J54: -5.220238742 | K54: 0.9427314124 | L54: 0.08163754741 | M54: 7.83383769 | N54: 2021-02-04
A55: 34 | B55: HD32234linRegAur_RX_1 | C55: 0.4347330132 | D55: Aur_RX_1 | E55: linReg | F55: 2458817.412 | G55: HD32386 | H55: 20191129_0787 | I55: 1.229507675 | J55: -5.220238742 | K55: 0.9427314124 | L55: 0.08163754741 | M55: 8.16228837 | N55: 2021-02-04
A56: 35 | B56: RX AurlinRegAur_RX_1 | C56: 0.4347330132 | D56: Aur_RX_1 | E56: linReg | F56: 2458817.412 | G56: HD32234 | H56: 20191129_0787 | I56: 1.229507675 | J56: -5.220238742 | K56: 0.9427314124 | L56: 0.08163754741 | M56: 8.088653155 | N56: 2021-02-04
A57: 36 | B57: HD33462linRegAur_RX_1 | C57: 0.5149715899 | D57: Aur_RX_1 | E57: linReg | F57: 2458818.344 | G57: RX Aur | H57: 20191130_0417 | I57: 1.653123626 | J57: -9.657359916 | K57: 0.9926008219 | L57: 0.03771103328 | M57: 7.823645463 | N57: 2021-02-04
A58: 37 | B58: HD31500linRegAur_RX_1 | C58: 0.5149715899 | D58: Aur_RX_1 | E58: linReg | F58: 2458818.344 | G58: HD33462 | H58: 20191130_0417 | I58: 1.653123626 | J58: -9.657359916 | K58: 0.9926008219 | L58: 0.03771103328 | M58: 7.000456022 | N58: 2021-02-04
A59: 38 | B59: HD32189linRegAur_RX_1 | C59: 0.5149715899 | D59: Aur_RX_1 | E59: linReg | F59: 2458818.344 | G59: HD31500 | H59: 20191130_0417 | I59: 1.653123626 | J59: -9.657359916 | K59: 0.9926008219 | L59: 0.03771103328 | M59: 7.170281412 | N59: 2021-02-04
A60: 39 | B60: HD31760linRegAur_RX_1 | C60: 0.5149715899 | D60: Aur_RX_1 | E60: linReg | F60: 2458818.344 | G60: HD32189 | H60: 20191130_0417 | I60: 1.653123626 | J60: -9.657359916 | K60: 0.9926008219 | L60: 0.03771103328 | M60: 7.632048435 | N60: 2021-02-04
A61: 40 | B61: HD32386linRegAur_RX_1 | C61: 0.5149715899 | D61: Aur_RX_1 | E61: linReg | F61: 2458818.344 | G61: HD31760 | H61: 20191130_0417 | I61: 1.653123626 | J61: -9.657359916 | K61: 0.9926008219 | L61: 0.03771103328 | M61: 7.994644571 | N61: 2021-02-04
A62: 41 | B62: HD32234linRegAur_RX_1 | C62: 0.5149715899 | D62: Aur_RX_1 | E62: linReg | F62: 2458818.344 | G62: HD32386 | H62: 20191130_0417 | I62: 1.653123626 | J62: -9.657359916 | K62: 0.9926008219 | L62: 0.03771103328 | M62: 8.113801722 | N62: 2021-02-04
A63: 42 | B63: RX AurlinRegAur_RX_1 | C63: 0.5149715899 | D63: Aur_RX_1 | E63: linReg | F63: 2458818.344 | G63: HD32234 | H63: 20191130_0417 | I63: 1.653123626 | J63: -9.657359916 | K63: 0.9926008219 | L63: 0.03771103328 | M63: 8.048767838 | N63: 2021-02-04
A64: 43 | B64: HD33462linRegAur_RX_1 | C64: 0.7713996326 | D64: Aur_RX_1 | E64: linReg | F64: 2458821.325 | G64: RX Aur | H64: 20191203_0183 | I64: 1.675967428 | J64: -9.77007801 | K64: 0.9866852756 | L64: 0.05058744937 | M64: 7.976305333 | N64: 2021-02-04
A65: 44 | B65: HD31500linRegAur_RX_1 | C65: 0.7713996326 | D65: Aur_RX_1 | E65: linReg | F65: 2458821.325 | G65: HD33462 | H65: 20191203_0183 | I65: 1.675967428 | J65: -9.77007801 | K65: 0.9866852756 | L65: 0.05058744937 | M65: 6.988925882 | N65: 2021-02-04
A66: 45 | B66: HD32189linRegAur_RX_1 | C66: 0.7713996326 | D66: Aur_RX_1 | E66: linReg | F66: 2458821.325 | G66: HD31500 | H66: 20191203_0183 | I66: 1.675967428 | J66: -9.77007801 | K66: 0.9866852756 | L66: 0.05058744937 | M66: 7.220779216 | N66: 2021-02-04
A67: 46 | B67: HD31760linRegAur_RX_1 | C67: 0.7713996326 | D67: Aur_RX_1 | E67: linReg | F67: 2458821.325 | G67: HD32189 | H67: 20191203_0183 | I67: 1.675967428 | J67: -9.77007801 | K67: 0.9866852756 | L67: 0.05058744937 | M67: 7.590933382 | N67: 2021-02-04
A68: 47 | B68: HD32386linRegAur_RX_1 | C68: 0.7713996326 | D68: Aur_RX_1 | E68: linReg | F68: 2458821.325 | G68: HD31760 | H68: 20191203_0183 | I68: 1.675967428 | J68: -9.77007801 | K68: 0.9866852756 | L68: 0.05058744937 | M68: 7.937456408 | N68: 2021-02-04
A69: 48 | B69: HD32234linRegAur_RX_1 | C69: 0.7713996326 | D69: Aur_RX_1 | E69: linReg | F69: 2458821.325 | G69: HD32386 | H69: 20191203_0183 | I69: 1.675967428 | J69: -9.77007801 | K69: 0.9866852756 | L69: 0.05058744937 | M69: 8.166276241 | N69: 2021-02-04
A70: 49 | B70: RX AurlinRegAur_RX_1 | C70: 0.7713996326 | D70: Aur_RX_1 | E70: linReg | F70: 2458821.325 | G70: HD32234 | H70: 20191203_0183 | I70: 1.675967428 | J70: -9.77007801 | K70: 0.9866852756 | L70: 0.05058744937 | M70: 8.055628871 | N70: 2021-02-04
A71: 50 | B71: HD33462linRegAur_RX_1 | C71: 0.8513389624 | D71: Aur_RX_1 | E71: linReg | F71: 2458822.254 | G71: RX Aur | H71: 20191204_0030 | I71: 1.650691552 | J71: -9.568573104 | K71: 0.9793324525 | L71: 0.06302620582 | M71: 7.818837795 | N71: 2021-02-04
A72: 51 | B72: HD31500linRegAur_RX_1 | C72: 0.8513389624 | D72: Aur_RX_1 | E72: linReg | F72: 2458822.254 | G72: HD33462 | H72: 20191204_0030 | I72: 1.650691552 | J72: -9.568573104 | K72: 0.9793324525 | L72: 0.06302620582 | M72: 7.064801894 | N72: 2021-02-04
A73: 52 | B73: HD32189linRegAur_RX_1 | C73: 0.8513389624 | D73: Aur_RX_1 | E73: linReg | F73: 2458822.254 | G73: HD31500 | H73: 20191204_0030 | I73: 1.650691552 | J73: -9.568573104 | K73: 0.9793324525 | L73: 0.06302620582 | M73: 7.134411556 | N73: 2021-02-04
A74: 53 | B74: HD31760linRegAur_RX_1 | C74: 0.8513389624 | D74: Aur_RX_1 | E74: linReg | F74: 2458822.254 | G74: HD32189 | H74: 20191204_0030 | I74: 1.650691552 | J74: -9.568573104 | K74: 0.9793324525 | L74: 0.06302620582 | M74: 7.580742045 | N74: 2021-02-04
A75: 54 | B75: HD32386linRegAur_RX_1 | C75: 0.8513389624 | D75: Aur_RX_1 | E75: linReg | F75: 2458822.254 | G75: HD31760 | H75: 20191204_0030 | I75: 1.650691552 | J75: -9.568573104 | K75: 0.9793324525 | L75: 0.06302620582 | M75: 7.98171153 | N75: 2021-02-04
A76: 55 | B76: HD32234linRegAur_RX_1 | C76: 0.8513389624 | D76: Aur_RX_1 | E76: linReg | F76: 2458822.254 | G76: HD32386 | H76: 20191204_0030 | I76: 1.650691552 | J76: -9.568573104 | K76: 0.9793324525 | L76: 0.06302620582 | M76: 8.140078877 | N76: 2021-02-04
A77: 56 | B77: RX AurlinRegAur_RX_1 | C77: 0.8513389624 | D77: Aur_RX_1 | E77: linReg | F77: 2458822.254 | G77: HD32234 | H77: 20191204_0030 | I77: 1.650691552 | J77: -9.568573104 | K77: 0.9793324525 | L77: 0.06302620582 | M77: 8.058254097 | N77: 2021-02-04
A78: 57 | B78: HD33462linRegAur_RX_1 | C78: 0.02949926076 | D78: Aur_RX_1 | E78: linReg | F78: 2458824.325 | G78: RX Aur | H78: 20191206_0264 | I78: 1.091905913 | J78: -5.957939352 | K78: 0.9822589405 | L78: 0.05839376365 | M78: 7.552834894 | N78: 2021-02-04
A79: 58 | B79: HD31500linRegAur_RX_1 | C79: 0.02949926076 | D79: Aur_RX_1 | E79: linReg | F79: 2458824.325 | G79: HD33462 | H79: 20191206_0264 | I79: 1.091905913 | J79: -5.957939352 | K79: 0.9822589405 | L79: 0.05839376365 | M79: 7.006237713 | N79: 2021-02-04
A80: 59 | B80: HD32189linRegAur_RX_1 | C80: 0.02949926076 | D80: Aur_RX_1 | E80: linReg | F80: 2458824.325 | G80: HD31500 | H80: 20191206_0264 | I80: 1.091905913 | J80: -5.957939352 | K80: 0.9822589405 | L80: 0.05839376365 | M80: 7.20043318 | N80: 2021-02-04
A81: 60 | B81: HD31760linRegAur_RX_1 | C81: 0.02949926076 | D81: Aur_RX_1 | E81: linReg | F81: 2458824.325 | G81: HD32189 | H81: 20191206_0264 | I81: 1.091905913 | J81: -5.957939352 | K81: 0.9822589405 | L81: 0.05839376365 | M81: 7.588704003 | N81: 2021-02-04
A82: 61 | B82: HD32386linRegAur_RX_1 | C82: 0.02949926076 | D82: Aur_RX_1 | E82: linReg | F82: 2458824.325 | G82: HD31760 | H82: 20191206_0264 | I82: 1.091905913 | J82: -5.957939352 | K82: 0.9822589405 | L82: 0.05839376365 | M82: 7.972825585 | N82: 2021-02-04
A83: 62 | B83: HD32234linRegAur_RX_1 | C83: 0.02949926076 | D83: Aur_RX_1 | E83: linReg | F83: 2458824.325 | G83: HD32386 | H83: 20191206_0264 | I83: 1.091905913 | J83: -5.957939352 | K83: 0.9822589405 | L83: 0.05839376365 | M83: 8.170646179 | N83: 2021-02-04
A84: 63 | B84: RX AurlinRegAur_RX_1 | C84: 0.02949926076 | D84: Aur_RX_1 | E84: linReg | F84: 2458824.325 | G84: HD32234 | H84: 20191206_0264 | I84: 1.091905913 | J84: -5.957939352 | K84: 0.9822589405 | L84: 0.05839376365 | M84: 8.02115334 | N84: 2021-02-04
A85: 64 | B85: HD33462linRegAur_RX_1 | C85: 0.9352739511 | D85: Aur_RX_1 | E85: linReg | F85: 2458846.477 | G85: RX Aur | H85: 20191228_0618 | I85: 1.70274796 | J85: -10.00106076 | K85: 0.9945545298 | L85: 0.03235149716 | M85: 7.734864152 | N85: 2021-02-04
A86: 65 | B86: =G94&E86&D86 -> HD31500linRegAur_RX_1 | C86: 0.9352739511 | D86: Aur_RX_1 | E86: linReg | F86: 2458846.477 | G86: HD33462 | H86: 20191228_0618 | I86: 1.70274796 | J86: -10.00106076 | K86: 0.9945545298 | L86: 0.03235149716 | M86: 6.99558207 | N86: 2021-02-04
A87: 66 | B87: HD32189linRegAur_RX_1 | C87: 0.9352739511 | D87: Aur_RX_1 | E87: linReg | F87: 2458846.477 | G87: HD31500 | H87: 20191228_0618 | I87: 1.70274796 | J87: -10.00106076 | K87: 0.9945545298 | L87: 0.03235149716 | M87: 7.200592925 | N87: 2021-02-04
A88: 67 | B88: HD31760linRegAur_RX_1 | C88: =(F88-2439075.63)/11.623515-INT((F88-2439075.63)/11.623515) -> 0.9352739511 | D88: Aur_RX_1 | E88: linReg | F88: 2458846.477 | G88: HD32189 | H88: 20191228_0618 | I88: 1.70274796 | J88: -10.00106076 | K88: 0.9945545298 | L88: 0.03235149716 | M88: 7.583047144 | N88: 2021-02-04
A89: 68 | B89: HD32386linRegAur_RX_1 | C89: 0.9352739511 | D89: Aur_RX_1 | E89: linReg | F89: 2458846.477 | G89: HD31760 | H89: 20191228_0618 | I89: 1.70274796 | J89: -10.00106076 | K89: 0.9945545298 | L89: 0.03235149716 | M89: 7.993579677 | N89: 2021-02-04
A90: 69 | B90: HD32234linRegAur_RX_1 | C90: 0.9352739511 | D90: Aur_RX_1 | E90: linReg | F90: 2458846.477 | G90: HD32386 | H90: 20191228_0618 | I90: 1.70274796 | J90: -10.00106076 | K90: 0.9945545298 | L90: 0.03235149716 | M90: 8.118101635 | N90: 2021-02-04
A91: 70 | B91: RX AurlinRegAur_RX_1 | C91: 0.9352739511 | D91: Aur_RX_1 | E91: linReg | F91: 2458846.477 | G91: HD32234 | H91: 20191228_0618 | I91: 1.70274796 | J91: -10.00106076 | K91: 0.9945545298 | L91: 0.03235149716 | M91: 8.069096549 | N91: 2021-02-04
A92: 71 | B92: HD33462linRegAur_RX_1 | C92: 0.002185999697 | D92: Aur_RX_1 | E92: linReg | F92: 2458847.254 | G92: RX Aur | H92: 20191229_1017 | I92: 1.525587395 | J92: -8.79199803 | K92: 0.9742785806 | L92: 0.07031114279 | M92: 7.676519569 | N92: 2021-02-04
A93: 72 | B93: HD31500linRegAur_RX_1 | C93: 0.002185999697 | D93: Aur_RX_1 | E93: linReg | F93: 2458847.254 | G93: HD33462 | H93: 20191229_1017 | I93: 1.525587395 | J93: -8.79199803 | K93: 0.9742785806 | L93: 0.07031114279 | M93: 6.983002795 | N93: 2021-02-04
A94: 73 | B94: HD32189linRegAur_RX_1 | C94: 0.002185999697 | D94: Aur_RX_1 | E94: linReg | F94: 2458847.254 | G94: HD31500 | H94: 20191229_1017 | I94: 1.525587395 | J94: -8.79199803 | K94: 0.9742785806 | L94: 0.07031114279 | M94: 7.272620306 | N94: 2021-02-04
A95: 74 | B95: HD31760linRegAur_RX_1 | C95: 0.002185999697 | D95: Aur_RX_1 | E95: linReg | F95: 2458847.254 | G95: HD32189 | H95: 20191229_1017 | I95: 1.525587395 | J95: -8.79199803 | K95: 0.9742785806 | L95: 0.07031114279 | M95: 7.526172931 | N95: 2021-02-04
A96: 75 | B96: HD32386linRegAur_RX_1 | C96: 0.002185999697 | D96: Aur_RX_1 | E96: linReg | F96: 2458847.254 | G96: HD31760 | H96: 20191229_1017 | I96: 1.525587395 | J96: -8.79199803 | K96: 0.9742785806 | L96: 0.07031114279 | M96: 7.984016964 | N96: 2021-02-04
A97: 76 | B97: HD32234linRegAur_RX_1 | C97: 0.002185999697 | D97: Aur_RX_1 | E97: linReg | F97: 2458847.254 | G97: HD32386 | H97: 20191229_1017 | I97: 1.525587395 | J97: -8.79199803 | K97: 0.9742785806 | L97: 0.07031114279 | M97: 8.168338433 | N97: 2021-02-04
A98: 77 | B98: RX AurlinRegAur_RX_1 | C98: 0.002185999697 | D98: Aur_RX_1 | E98: linReg | F98: 2458847.254 | G98: HD32234 | H98: 20191229_1017 | I98: 1.525587395 | J98: -8.79199803 | K98: 0.9742785806 | L98: 0.07031114279 | M98: 8.02584857 | N98: 2021-02-04
A99: 78 | B99: HD33462linRegAur_RX_1 | C99: 0.0965796319 | D99: Aur_RX_1 | E99: linReg | F99: 2458848.352 | G99: RX Aur | H99: 20191230_0863 | I99: 1.52772538 | J99: -8.401807438 | K99: 0.9847625698 | L99: 0.04211022652 | M99: 7.425198342 | N99: 2021-02-04
A100: 79 | B100: HD31500linRegAur_RX_1 | C100: 0.0965796319 | D100: Aur_RX_1 | E100: linReg | F100: 2458848.352 | G100: HD33462 | H100: 20191230_0863
A101: 80 | B101: HD32189linRegAur_RX_1 | C101: 0.0965796319 | D101: Aur_RX_1 | E101: linReg | F101: 2458848.352 | G101: HD31500 | H101: 20191230_0863 | I101: 1.52772538 | J101: -8.401807438 | K101: 0.9847625698 | L101: 0.04211022652 | M101: 7.238831123 | N101: 2021-02-04
A102: 81 | B102: HD31760linRegAur_RX_1 | C102: 0.0965796319 | D102: Aur_RX_1 | E102: linReg | F102: 2458848.352 | G102: HD32189 | H102: 20191230_0863 | I102: 1.52772538 | J102: -8.401807438 | K102: 0.9847625698 | L102: 0.04211022652 | M102: 7.580797172 | N102: 2021-02-04
A103: 82 | B103: HD32386linRegAur_RX_1 | C103: 0.0965796319 | D103: Aur_RX_1 | E103: linReg | F103: 2458848.352 | G103: HD31760 | H103: 20191230_0863 | I103: 1.52772538 | J103: -8.401807438 | K103: 0.9847625698 | L103: 0.04211022652 | M103: 7.976890531 | N103: 2021-02-04
A104: 83 | B104: HD32234linRegAur_RX_1 | C104: 0.0965796319 | D104: Aur_RX_1 | E104: linReg | F104: 2458848.352 | G104: HD32386 | H104: 20191230_0863 | I104: 1.52772538 | J104: -8.401807438 | K104: 0.9847625698 | L104: 0.04211022652 | M104: 8.133299056 | N104: 2021-02-04
A105: 84 | B105: RX AurlinRegAur_RX_1 | C105: 0.0965796319 | D105: Aur_RX_1 | E105: linReg | F105: 2458848.352 | G105: HD32234 | H105: 20191230_0863 | I105: 1.52772538 | J105: -8.401807438 | K105: 0.9847625698 | L105: 0.04211022652 | M105: 8.060182119 | N105: 2021-02-04
A106: 85 | B106: HD33462linRegAur_RX_1 | C106: 0.4465515896 | D106: Aur_RX_1 | E106: linReg | F106: 2458852.42 | G106: RX Aur | H106: 20200103_0178 | I106: 1.245723019 | J106: -6.758380244 | K106: 0.9732551359 | L106: 0.07169632406 | M106: 7.790805069 | N106: 2021-02-04
A107: 86 | B107: HD31500linRegAur_RX_1 | C107: 0.4465515896 | D107: Aur_RX_1 | E107: linReg | F107: 2458852.42 | G107: HD33462 | H107: 20200103_0178 | I107: 1.245723019 | J107: -6.758380244 | K107: 0.9732551359 | L107: 0.07169632406 | M107: 7.016874729 | N107: 2021-02-04
A108: 87 | B108: HD32189linRegAur_RX_1 | C108: 0.4465515896 | D108: Aur_RX_1 | E108: linReg | F108: 2458852.42 | G108: HD31500 | H108: 20200103_0178 | I108: 1.245723019 | J108: -6.758380244 | K108: 0.9732551359 | L108: 0.07169632406 | M108: 7.212727302 | N108: 2021-02-04
A109: 88 | B109: HD31760linRegAur_RX_1 | C109: 0.4465515896 | D109: Aur_RX_1 | E109: linReg | F109: 2458852.42 | G109: HD32189 | H109: 20200103_0178 | I109: 1.245723019 | J109: -6.758380244 | K109: 0.9732551359 | L109: 0.07169632406 | M109: 7.553233232 | N109: 2021-02-04
A110: 89 | B110: HD32386linRegAur_RX_1 | C110: 0.4465515896 | D110: Aur_RX_1 | E110: linReg | F110: 2458852.42 | G110: HD31760 | H110: 20200103_0178 | I110: 1.245723019 | J110: -6.758380244 | K110: 0.9732551359 | L110: 0.07169632406 | M110: 8.007249444 | N110: 2021-02-04
A111: 90 | B111: HD32234linRegAur_RX_1 | C111: 0.4465515896 | D111: Aur_RX_1 | E111: linReg | F111: 2458852.42 | G111: HD32386 | H111: 20200103_0178 | I111: 1.245723019 | J111: -6.758380244 | K111: 0.9732551359 | L111: 0.07169632406 | M111: 8.173092549 | N111: 2021-02-04
A112: 91 | B112: RX AurlinRegAur_RX_1 | C112: 0.4465515896 | D112: Aur_RX_1 | E112: linReg | F112: 2458852.42 | G112: HD32234 | H112: 20200103_0178 | I112: 1.245723019 | J112: -6.758380244 | K112: 0.9732551359 | L112: 0.07169632406 | M112: 7.996822742 | N112: 2021-02-04
A113: 92 | B113: HD33462linRegAur_RX_1 | C113: 0.6158014938 | D113: Aur_RX_1 | E113: linReg | F113: 2458854.387 | G113: RX Aur | H113: 20200105_0186 | I113: 1.497287408 | J113: -8.531029679 | K113: 0.971662404 | L113: 0.07380031133 | M113: 8.052296787 | N113: 2021-02-04
A114: 93 | B114: HD31500linRegAur_RX_1 | C114: 0.6158014938 | D114: Aur_RX_1 | E114: linReg | F114: 2458854.387 | G114: HD33462 | H114: 20200105_0186 | I114: 1.497287408 | J114: -8.531029679 | K114: 0.971662404 | L114: 0.07380031133 | M114: 6.972917268 | N114: 2021-02-04
A115: 94 | B115: HD32189linRegAur_RX_1 | C115: 0.6158014938 | D115: Aur_RX_1 | E115: linReg | F115: 2458854.387 | G115: HD31500 | H115: 20200105_0186 | I115: 1.497287408 | J115: -8.531029679 | K115: 0.971662404 | L115: 0.07380031133 | M115: 7.289174314 | N115: 2021-02-04
A116: 95 | B116: HD31760linRegAur_RX_1 | C116: 0.6158014938 | D116: Aur_RX_1 | E116: linReg | F116: 2458854.387 | G116: HD32189 | H116: 20200105_0186 | I116: 1.497287408 | J116: -8.531029679 | K116: 0.971662404 | L116: 0.07380031133 | M116: 7.547576175 | N116: 2021-02-04
A117: 96 | B117: HD32386linRegAur_RX_1 | C117: 0.6158014938 | D117: Aur_RX_1 | E117: linReg | F117: 2458854.387 | G117: HD31760 | H117: 20200105_0186 | I117: 1.497287408 | J117: -8.531029679 | K117: 0.971662404 | L117: 0.07380031133 | M117: 7.896039873 | N117: 2021-02-04
A118: 97 | B118: HD32234linRegAur_RX_1 | C118: 0.6158014938 | D118: Aur_RX_1 | E118: linReg | F118: 2458854.387 | G118: HD32386 | H118: 20200105_0186 | I118: 1.497287408 | J118: -8.531029679 | K118: 0.971662404 | L118: 0.07380031133 | M118: 8.182470954 | N118: 2021-02-04
A119: 98 | B119: RX AurlinRegAur_RX_1 | C119: 0.6158014938 | D119: Aur_RX_1 | E119: linReg | F119: 2458854.387 | G119: HD32234 | H119: 20200105_0186 | I119: 1.497287408 | J119: -8.531029679 | K119: 0.971662404 | L119: 0.07380031133 | M119: 8.071821415 | N119: 2021-02-04
A120: 99 | B120: HD33462linRegAur_RX_1 | C120: 0.6904791881 | D120: Aur_RX_1 | E120: linReg | F120: 2458855.255 | G120: RX Aur | H120: 20200106_0502 | I120: 1.403554449 | J120: -7.396302851 | K120: 0.9907482973 | L120: 0.04216843923 | M120: 7.995454192 | N120: 2021-02-04
A121: 100 | B121: HD31500linRegAur_RX_1 | C121: 0.6904791881 | D121: Aur_RX_1 | E121: linReg | F121: 2458855.255 | G121: HD33462 | H121: 20200106_0502 | I121: 1.403554449 | J121: -7.396302851 | K121: 0.9907482973 | L121: 0.04216843923 | M121: 6.943405919 | N121: 2021-02-04
A122: 101 | B122: HD32189linRegAur_RX_1 | C122: 0.6904791881 | D122: Aur_RX_1 | E122: linReg | F122: 2458855.255 | G122: HD31500 | H122: 20200106_0502 | I122: 1.403554449 | J122: -7.396302851 | K122: 0.9907482973 | L122: 0.04216843923 | M122: 7.275613222 | N122: 2021-02-04
A123: 102 | B123: HD31760linRegAur_RX_1 | C123: 0.6904791881 | D123: Aur_RX_1 | E123: linReg | F123: 2458855.255 | G123: HD32189 | H123: 20200106_0502 | I123: 1.403554449 | J123: -7.396302851 | K123: 0.9907482973 | L123: 0.04216843923 | M123: 7.572633414 | N123: 2021-02-04
A124: 103 | B124: HD32386linRegAur_RX_1 | C124: 0.6904791881 | D124: Aur_RX_1 | E124: linReg | F124: 2458855.255 | G124: HD31760 | H124: 20200106_0502 | I124: 1.403554449 | J124: -7.396302851 | K124: 0.9907482973 | L124: 0.04216843923 | M124: 8.013939004 | N124: 2021-02-04
A125: 104 | B125: HD32234linRegAur_RX_1 | C125: 0.6904791881 | D125: Aur_RX_1 | E125: linReg | F125: 2458855.255 | G125: HD32386 | H125: 20200106_0502 | I125: 1.403554449 | J125: -7.396302851 | K125: 0.9907482973 | L125: 0.04216843923 | M125: 8.088299318 | N125: 2021-02-04
A126: 105 | B126: RX AurlinRegAur_RX_1 | C126: 0.6904791881 | D126: Aur_RX_1 | E126: linReg | F126: 2458855.255 | G126: HD32234 | H126: 20200106_0502 | I126: 1.403554449 | J126: -7.396302851 | K126: 0.9907482973 | L126: 0.04216843923 | M126: 8.066109123 | N126: 2021-02-04
A127: 106 | B127: HD33462linRegAur_RX_1 | C127: 0.1238469344 | D127: Aur_RX_1 | E127: linReg | F127: 2458860.292 | G127: RX Aur | H127: 20200111_0770 | I127: 1.455854873 | J127: -8.181409224 | K127: 0.9630825897 | L127: 0.08423494674 | M127: 7.411233225 | N127: 2021-02-04
A128: 107 | B128: HD31500linRegAur_RX_1 | C128: 0.1238469344 | D128: Aur_RX_1 | E128: linReg | F128: 2458860.292 | G128: HD33462 | H128: 20200111_0770 | I128: 1.455854873 | J128: -8.181409224 | K128: 0.9630825897 | L128: 0.08423494674 | M128: 6.959277638 | N128: 2021-02-04
A129: 108 | B129: HD32189linRegAur_RX_1 | C129: 0.1238469344 | D129: Aur_RX_1 | E129: linReg | F129: 2458860.292 | G129: HD31500 | H129: 20200111_0770 | I129: 1.455854873 | J129: -8.181409224 | K129: 0.9630825897 | L129: 0.08423494674 | M129: 7.326910111 | N129: 2021-02-04
A130: 109 | B130: HD31760linRegAur_RX_1 | C130: 0.1238469344 | D130: Aur_RX_1 | E130: linReg | F130: 2458860.292 | G130: HD32189 | H130: 20200111_0770 | I130: 1.455854873 | J130: -8.181409224 | K130: 0.9630825897 | L130: 0.08423494674 | M130: 7.547253746 | N130: 2021-02-04
A131: 110 | B131: HD32386linRegAur_RX_1 | C131: 0.1238469344 | D131: Aur_RX_1 | E131: linReg | F131: 2458860.292 | G131: HD31760 | H131: 20200111_0770 | I131: 1.455854873 | J131: -8.181409224 | K131: 0.9630825897 | L131: 0.08423494674 | M131: 7.846024283 | N131: 2021-02-04
A132: 111 | B132: HD32234linRegAur_RX_1 | C132: 0.1238469344 | D132: Aur_RX_1 | E132: linReg | F132: 2458860.292 | G132: HD32386 | H132: 20200111_0770 | I132: 1.455854873 | J132: -8.181409224 | K132: 0.9630825897 | L132: 0.08423494674 | M132: 8.136001457 | N132: 2021-02-04
A133: 112 | B133: RX AurlinRegAur_RX_1 | C133: 0.1238469344 | D133: Aur_RX_1 | E133: linReg | F133: 2458860.292 | G133: HD32234 | H133: 20200111_0770 | I133: 1.455854873 | J133: -8.181409224 | K133: 0.9630825897 | L133: 0.08423494674 | M133: 8.144532766 | N133: 2021-02-04
A134: 113 | B134: HD33462linRegAur_RX_1 | C134: 0.2989495518 | D134: Aur_RX_1 | E134: linReg | F134: 2458862.327 | G134: RX Aur | H134: 20200113_0986 | I134: 1.698494601 | J134: -10.36605809 | K134: 0.9555014525 | L134: 0.0924803808 | M134: 7.437426437 | N134: 2021-02-04
A135: 114 | B135: HD31500linRegAur_RX_1 | C135: 0.2989495518 | D135: Aur_RX_1 | E135: linReg | F135: 2458862.327 | G135: HD33462 | H135: 20200113_0986 | I135: 1.698494601 | J135: -10.36605809 | K135: 0.9555014525 | L135: 0.0924803808 | M135: 6.914069295 | N135: 2021-02-04
A136: 115 | B136: HD32189linRegAur_RX_1 | C136: 0.2989495518 | D136: Aur_RX_1 | E136: linReg | F136: 2458862.327 | G136: HD31500 | H136: 20200113_0986 | I136: 1.698494601 | J136: -10.36605809 | K136: 0.9555014525 | L136: 0.0924803808 | M136: 7.28857037 | N136: 2021-02-04
A137: 116 | B137: HD31760linRegAur_RX_1 | C137: 0.2989495518 | D137: Aur_RX_1 | E137: linReg | F137: 2458862.327 | G137: HD32189 | H137: 20200113_0986 | I137: 1.698494601 | J137: -10.36605809 | K137: 0.9555014525 | L137: 0.0924803808 | M137: 7.701406468 | N137: 2021-02-04
A138: 117 | B138: HD32386linRegAur_RX_1 | C138: 0.2989495518 | D138: Aur_RX_1 | E138: linReg | F138: 2458862.327 | G138: HD31760 | H138: 20200113_0986 | I138: 1.698494601 | J138: -10.36605809 | K138: 0.9555014525 | L138: 0.0924803808 | M138: 7.996706739 | N138: 2021-02-04
A139: 118 | B139: HD32234linRegAur_RX_1 | C139: 0.2989495518 | D139: Aur_RX_1 | E139: linReg | F139: 2458862.327 | G139: HD32386 | H139: 20200113_0986 | I139: 1.698494601 | J139: -10.36605809 | K139: 0.9555014525 | L139: 0.0924803808 | M139: 8.127558763 | N139: 2021-02-04
A140: 119 | B140: RX AurlinRegAur_RX_1 | C140: 0.2989495518 | D140: Aur_RX_1 | E140: linReg | F140: 2458862.327 | G140: HD32234 | H140: 20200113_0986 | I140: 1.698494601 | J140: -10.36605809 | K140: 0.9555014525 | L140: 0.0924803808 | M140: 7.931688366 | N140: 2021-02-04
A141: 120 | B141: HD33462linRegAur_RX_1 | C141: 0.5752235963 | D141: Aur_RX_1 | E141: linReg | F141: 2458900.409 | G141: RX Aur | H141: 20200220_0226 | I141: 1.557812069 | J141: -8.92791784 | K141: 0.9609472897 | L141: 0.0866367758 | M141: 7.971772718 | N141: 2021-02-04
A142: 121 | B142: HD31500linRegAur_RX_1 | C142: 0.5752235963 | D142: Aur_RX_1 | E142: linReg | F142: 2458900.409 | G142: HD33462 | H142: 20200220_0226 | I142: 1.557812069 | J142: -8.92791784 | K142: 0.9609472897 | L142: 0.0866367758 | M142: 7.067260297 | N142: 2021-02-04
A143: 122 | B143: HD32189linRegAur_RX_1 | C143: 0.5752235963 | D143: Aur_RX_1 | E143: linReg | F143: 2458900.409 | G143: HD31500 | H143: 20200220_0226 | I143: 1.557812069 | J143: -8.92791784 | K143: 0.9609472897 | L143: 0.0866367758 | M143: 7.15311132 | N143: 2021-02-04
A144: 123 | B144: HD31760linRegAur_RX_1 | C144: 0.5752235963 | D144: Aur_RX_1 | E144: linReg | F144: 2458900.409 | G144: HD32189 | H144: 20200220_0226 | I144: 1.557812069 | J144: -8.92791784 | K144: 0.9609472897 | L144: 0.0866367758 | M144: 7.585793622 | N144: 2021-02-04
A145: 124 | B145: HD32386linRegAur_RX_1 | C145: 0.5752235963 | D145: Aur_RX_1 | E145: linReg | F145: 2458900.409 | G145: HD31760 | H145: 20200220_0226 | I145: 1.557812069 | J145: -8.92791784 | K145: 0.9609472897 | L145: 0.0866367758 | M145: 7.955555895 | N145: 2021-02-04
A146: 125 | B146: HD32234linRegAur_RX_1 | C146: 0.5752235963 | D146: Aur_RX_1 | E146: linReg | F146: 2458900.409 | G146: HD32386 | H146: 20200220_0226 | I146: 1.557812069 | J146: -8.92791784 | K146: 0.9609472897 | L146: 0.0866367758 | M146: 8.202437951 | N146: 2021-02-04
A147: 126 | B147: RX AurlinRegAur_RX_1 | C147: 0.5752235963 | D147: Aur_RX_1 | E147: linReg | F147: 2458900.409 | G147: HD32234 | H147: 20200220_0226 | I147: 1.557812069 | J147: -8.92791784 | K147: 0.9609472897 | L147: 0.0866367758 | M147: 7.995840915 | N147: 2021-02-04
A148: 127 | B148: HD33462linRegAur_RX_1 | C148: 0.9764381773 | D148: Aur_RX_1 | E148: linReg | F148: 2458928.32 | G148: RX Aur | H148: 20200319_0217 | I148: 1.375615752 | J148: -7.627706194 | K148: 0.9051596976 | L148: 0.1350122443 | M148: 7.678041201 | N148: 2021-02-04
A149: 128 | B149: HD31500linRegAur_RX_1 | C149: 0.9764381773 | D149: Aur_RX_1 | E149: linReg | F149: 2458928.32 | G149: HD33462 | H149: 20200319_0217 | I149: 1.375615752 | J149: -7.627706194 | K149: 0.9051596976 | L149: 0.1350122443 | M149: 7.037155578 | N149: 2021-02-04
A150: 129 | B150: =G158&E150&D150 -> HD32189linRegAur_RX_1 | C150: 0.9764381773 | D150: Aur_RX_1 | E150: linReg | F150: 2458928.32 | G150: HD31500 | H150: 20200319_0217 | I150: 1.375615752 | J150: -7.627706194 | K150: 0.9051596976 | L150: 0.1350122443 | M150: 7.32637879 | N150: 2021-02-04
A151: 130 | B151: HD31760linRegAur_RX_1 | C151: 0.9764381773 | D151: Aur_RX_1 | E151: linReg | F151: 2458928.32 | G151: HD32189 | H151: 20200319_0217 | I151: 1.375615752 | J151: -7.627706194 | K151: 0.9051596976 | L151: 0.1350122443 | M151: 7.499059835 | N151: 2021-02-04
A152: 131 | B152: HD32386linRegAur_RX_1 | C152: =(F152-2439075.63)/11.623515-INT((F152-2439075.63)/11.623515) -> 0.9764381773 | D152: Aur_RX_1 | E152: linReg | F152: 2458928.32 | G152: HD31760 | H152: 20200319_0217 | I152: 1.375615752 | J152: -7.627706194 | K152: 0.9051596976 | L152: 0.1350122443 | M152: 7.820692554 | N152: 2021-02-04
A153: 132 | B153: HD32234linRegAur_RX_1 | C153: 0.9764381773 | D153: Aur_RX_1 | E153: linReg | F153: 2458928.32 | G153: HD32386 | H153: 20200319_0217 | I153: 1.375615752 | J153: -7.627706194 | K153: 0.9051596976 | L153: 0.1350122443 | M153: 8.271055395 | N153: 2021-02-04
A154: 133 | B154: RX AurlinRegAur_RX_1 | C154: 0.9764381773 | D154: Aur_RX_1 | E154: linReg | F154: 2458928.32 | G154: HD32234 | H154: 20200319_0217 | I154: 1.375615752 | J154: -7.627706194 | K154: 0.9051596976 | L154: 0.1350122443 | M154: 8.005657848 | N154: 2021-02-04
A155: 134 | B155: HD33462linRegAur_RX_1 | C155: 0.05863931005 | D155: Aur_RX_1 | E155: linReg | F155: 2458929.275 | G155: RX Aur | H155: 20200320_0451 | I155: 1.274869325 | J155: -6.794009453 | K155: 0.9907863859 | L155: 0.04208154741 | M155: 7.438389465 | N155: 2021-02-04
A156: 135 | B156: HD31500linRegAur_RX_1 | C156: 0.05863931005 | D156: Aur_RX_1 | E156: linReg | F156: 2458929.275 | G156: HD33462 | H156: 20200320_0451 | I156: 1.274869325 | J156: -6.794009453 | K156: 0.9907863859 | L156: 0.04208154741 | M156: 6.946493885 | N156: 2021-02-04
A157: 136 | B157: HD32189linRegAur_RX_1 | C157: 0.05863931005 | D157: Aur_RX_1 | E157: linReg | F157: 2458929.275 | G157: HD31500 | H157: 20200320_0451 | I157: 1.274869325 | J157: -6.794009453 | K157: 0.9907863859 | L157: 0.04208154741 | M157: 7.255292733 | N157: 2021-02-04
A158: 137 | B158: HD31760linRegAur_RX_1 | C158: 0.05863931005 | D158: Aur_RX_1 | E158: linReg | F158: 2458929.275 | G158: HD32189 | H158: 20200320_0451 | I158: 1.274869325 | J158: -6.794009453 | K158: 0.9907863859 | L158: 0.04208154741 | M158: 7.615379574 | N158: 2021-02-04
A159: 138 | B159: HD32386linRegAur_RX_1 | C159: 0.05863931005 | D159: Aur_RX_1 | E159: linReg | F159: 2458929.275 | G159: HD31760 | H159: 20200320_0451 | I159: 1.274869325 | J159: -6.794009453 | K159: 0.9907863859 | L159: 0.04208154741 | M159: 7.951613609 | N159: 2021-02-04
A160: 139 | B160: HD32234linRegAur_RX_1 | C160: 0.05863931005 | D160: Aur_RX_1 | E160: linReg | F160: 2458929.275 | G160: HD32386 | H160: 20200320_0451 | I160: 1.274869325 | J160: -6.794009453 | K160: 0.9907863859 | L160: 0.04208154741 | M160: 8.135322279 | N160: 2021-02-04
A161: 140 | B161: RX AurlinRegAur_RX_1 | C161: 0.05863931005 | D161: Aur_RX_1 | E161: linReg | F161: 2458929.275 | G161: HD32234 | H161: 20200320_0451 | I161: 1.274869325 | J161: -6.794009453 | K161: 0.9907863859 | L161: 0.04208154741 | M161: 8.05589792 | N161: 2021-02-04
A162: 141 | B162: HD33462linRegAur_RX_1 | C162: 0.233436297 | D162: Aur_RX_1 | E162: linReg | F162: 2458931.307 | G162: RX Aur | H162: 20200322_0128 | I162: 1.452892406 | J162: -8.409636543 | K162: 0.9817310649 | L162: 0.05925613316 | M162: 7.39026326 | N162: 2021-02-04
A163: 142 | B163: HD31500linRegAur_RX_1 | C163: 0.233436297 | D163: Aur_RX_1 | E163: linReg | F163: 2458931.307 | G163: HD33462 | H163: 20200322_0128 | I163: 1.452892406 | J163: -8.409636543 | K163: 0.9817310649 | L163: 0.05925613316 | M163: 7.065425576 | N163: 2021-02-04
A164: 143 | B164: HD32189linRegAur_RX_1 | C164: 0.233436297 | D164: Aur_RX_1 | E164: linReg | F164: 2458931.307 | G164: HD31500 | H164: 20200322_0128 | I164: 1.452892406 | J164: -8.409636543 | K164: 0.9817310649 | L164: 0.05925613316 | M164: 7.125706082 | N164: 2021-02-04
A165: 144 | B165: HD31760linRegAur_RX_1 | C165: 0.233436297 | D165: Aur_RX_1 | E165: linReg | F165: 2458931.307 | G165: HD32189 | H165: 20200322_0128 | I165: 1.452892406 | J165: -8.409636543 | K165: 0.9817310649 | L165: 0.05925613316 | M165: 7.599581469 | N165: 2021-02-04
A166: 145 | B166: HD32386linRegAur_RX_1 | C166: 0.233436297 | D166: Aur_RX_1 | E166: linReg | F166: 2458931.307 | G166: HD31760 | H166: 20200322_0128 | I166: 1.452892406 | J166: -8.409636543 | K166: 0.9817310649 | L166: 0.05925613316 | M166: 7.948391878 | N166: 2021-02-04
A167: 146 | B167: HD32234linRegAur_RX_1 | C167: 0.233436297 | D167: Aur_RX_1 | E167: linReg | F167: 2458931.307 | G167: HD32386 | H167: 20200322_0128 | I167: 1.452892406 | J167: -8.409636543 | K167: 0.9817310649 | L167: 0.05925613316 | M167: 8.126531016 | N167: 2021-02-04
A168: 147 | B168: RX AurlinRegAur_RX_1 | C168: 0.233436297 | D168: Aur_RX_1 | E168: linReg | F168: 2458931.307 | G168: HD32234 | H168: 20200322_0128 | I168: 1.452892406 | J168: -8.409636543 | K168: 0.9817310649 | L168: 0.05925613316 | M168: 8.094363978 | N168: 2021-02-04
A169: 148 | B169: HD33462linRegAur_RX_1 | C169: 0.320356923 | D169: Aur_RX_1 | E169: linReg | F169: 2458932.317 | G169: RX Aur | H169: 20200323_0046 | I169: 1.472847489 | J169: -8.705844354 | K169: 0.9769252307 | L169: 0.06659557536 | M169: 7.495964066 | N169: 2021-02-04
A170: 149 | B170: HD31500linRegAur_RX_1 | C170: 0.320356923 | D170: Aur_RX_1 | E170: linReg | F170: 2458932.317 | G170: HD33462 | H170: 20200323_0046 | I170: 1.472847489 | J170: -8.705844354 | K170: 0.9769252307 | L170: 0.06659557536 | M170: 7.056495832 | N170: 2021-02-04
A171: 150 | B171: HD32189linRegAur_RX_1 | C171: 0.320356923 | D171: Aur_RX_1 | E171: linReg | F171: 2458932.317 | G171: HD31500 | H171: 20200323_0046 | I171: 1.472847489 | J171: -8.705844354 | K171: 0.9769252307 | L171: 0.06659557536 | M171: 7.162658679 | N171: 2021-02-04
A172: 151 | B172: HD31760linRegAur_RX_1 | C172: 0.320356923 | D172: Aur_RX_1 | E172: linReg | F172: 2458932.317 | G172: HD32189 | H172: 20200323_0046 | I172: 1.472847489 | J172: -8.705844354 | K172: 0.9769252307 | L172: 0.06659557536 | M172: 7.553802787 | N172: 2021-02-04
A173: 152 | B173: HD32386linRegAur_RX_1 | C173: 0.320356923 | D173: Aur_RX_1 | E173: linReg | F173: 2458932.317 | G173: HD31760 | H173: 20200323_0046 | I173: 1.472847489 | J173: -8.705844354 | K173: 0.9769252307 | L173: 0.06659557536 | M173: 7.974683685 | N173: 2021-02-04
A174: 153 | B174: HD32234linRegAur_RX_1 | C174: 0.320356923 | D174: Aur_RX_1 | E174: linReg | F174: 2458932.317 | G174: HD32386 | H174: 20200323_0046 | I174: 1.472847489 | J174: -8.705844354 | K174: 0.9769252307 | L174: 0.06659557536 | M174: 8.163488005 | N174: 2021-02-04
A175: 154 | B175: RX AurlinRegAur_RX_1 | C175: 0.320356923 | D175: Aur_RX_1 | E175: linReg | F175: 2458932.317 | G175: HD32234 | H175: 20200323_0046 | I175: 1.472847489 | J175: -8.705844354 | K175: 0.9769252307 | L175: 0.06659557536 | M175: 8.048871013 | N175: 2021-02-04
A176: 155 | B176: HD33462linRegAur_RX_1 | C176: 0.4062022805 | D176: Aur_RX_1 | E176: linReg | F176: 2458933.315 | G176: RX Aur | H176: 20200324_0100 | I176: 1.347814165 | J176: -7.089921125 | K176: 0.9030055703 | L176: 0.1365369159 | M176: 7.723392193 | N176: 2021-02-04
A177: 156 | B177: HD31500linRegAur_RX_1 | C177: 0.4062022805 | D177: Aur_RX_1 | E177: linReg | F177: 2458933.315 | G177: HD33462 | H177: 20200324_0100 | I177: 1.347814165 | J177: -7.089921125 | K177: 0.9030055703 | L177: 0.1365369159 | M177: 7.039214766 | N177: 2021-02-04
A178: 157 | B178: HD32189linRegAur_RX_1 | C178: 0.4062022805 | D178: Aur_RX_1 | E178: linReg | F178: 2458933.315 | G178: HD31500 | H178: 20200324_0100 | I178: 1.347814165 | J178: -7.089921125 | K178: 0.9030055703 | L178: 0.1365369159 | M178: 7.307712826 | N178: 2021-02-04
A179: 158 | B179: HD31760linRegAur_RX_1 | C179: 0.4062022805 | D179: Aur_RX_1 | E179: linReg | F179: 2458933.315 | G179: HD32189 | H179: 20200324_0100 | I179: 1.347814165 | J179: -7.089921125 | K179: 0.9030055703 | L179: 0.1365369159 | M179: 7.514817951 | N179: 2021-02-04
A180: 159 | B180: HD32386linRegAur_RX_1 | C180: 0.4062022805 | D180: Aur_RX_1 | E180: linReg | F180: 2458933.315 | G180: HD31760 | H180: 20200324_0100 | I180: 1.347814165 | J180: -7.089921125 | K180: 0.9030055703 | L180: 0.1365369159 | M180: 7.888216387 | N180: 2021-02-04
A181: 160 | B181: HD32234linRegAur_RX_1 | C181: 0.4062022805 | D181: Aur_RX_1 | E181: linReg | F181: 2458933.315 | G181: HD32386 | H181: 20200324_0100 | I181: 1.347814165 | J181: -7.089921125 | K181: 0.9030055703 | L181: 0.1365369159 | M181: 8.281966817 | N181: 2021-02-04
A182: 161 | B182: RX AurlinRegAur_RX_1 | C182: 0.4062022805 | D182: Aur_RX_1 | E182: linReg | F182: 2458933.315 | G182: HD32234 | H182: 20200324_0100 | I182: 1.347814165 | J182: -7.089921125 | K182: 0.9030055703 | L182: 0.1365369159 | M182: 7.928071252 | N182: 2021-02-04
A183: 162 | B183: HD33462linRegAur_RX_1 | C183: 0.4922268952 | D183: Aur_RX_1 | E183: linReg | F183: 2458934.315 | G183: RX Aur | H183: 20200325_0082 | I183: 1.479755863 | J183: -9.062748139 | K183: 0.9686612508 | L183: 0.07760997099 | M183: 7.943301726 | N183: 2021-02-04
A184: 163 | B184: HD31500linRegAur_RX_1 | C184: 0.4922268952 | D184: Aur_RX_1 | E184: linReg | F184: 2458934.315 | G184: HD33462 | H184: 20200325_0082 | I184: 1.479755863 | J184: -9.062748139 | K184: 0.9686612508 | L184: 0.07760997099 | M184: 6.954292098 | N184: 2021-02-04
A185: 164 | B185: HD32189linRegAur_RX_1 | C185: 0.4922268952 | D185: Aur_RX_1 | E185: linReg | F185: 2458934.315 | G185: HD31500 | H185: 20200325_0082 | I185: 1.479755863 | J185: -9.062748139 | K185: 0.9686612508 | L185: 0.07760997099 | M185: 7.32455661 | N185: 2021-02-04
A186: 165 | B186: HD31760linRegAur_RX_1 | C186: 0.4922268952 | D186: Aur_RX_1 | E186: linReg | F186: 2458934.315 | G186: HD32189 | H186: 20200325_0082 | I186: 1.479755863 | J186: -9.062748139 | K186: 0.9686612508 | L186: 0.07760997099 | M186: 7.514187323 | N186: 2021-02-04
A187: 166 | B187: HD32386linRegAur_RX_1 | C187: 0.4922268952 | D187: Aur_RX_1 | E187: linReg | F187: 2458934.315 | G187: HD31760 | H187: 20200325_0082 | I187: 1.479755863 | J187: -9.062748139 | K187: 0.9686612508 | L187: 0.07760997099 | M187: 7.976551841 | N187: 2021-02-04
A188: 167 | B188: HD32234linRegAur_RX_1 | C188: 0.4922268952 | D188: Aur_RX_1 | E188: linReg | F188: 2458934.315 | G188: HD32386 | H188: 20200325_0082 | I188: 1.479755863 | J188: -9.062748139 | K188: 0.9686612508 | L188: 0.07760997099 | M188: 8.151059449 | N188: 2021-02-04
A189: 168 | B189: RX AurlinRegAur_RX_1 | C189: 0.4922268952 | D189: Aur_RX_1 | E189: linReg | F189: 2458934.315 | G189: HD32234 | H189: 20200325_0082 | I189: 1.479755863 | J189: -9.062748139 | K189: 0.9686612508 | L189: 0.07760997099 | M189: 8.039352679 | N189: 2021-02-04
A190: 169 | B190: HD33462linRegAur_RX_1 | C190: 0.5777139015 | D190: Aur_RX_1 | E190: linReg | F190: 2458935.309 | G190: RX Aur | H190: 20200326_0046 | I190: 1.262005132 | J190: -6.730598245 | K190: 0.9837349701 | L190: 0.05591188374 | M190: 7.923729626 | N190: 2021-02-04
A191: 170 | B191: HD31500linRegAur_RX_1 | C191: 0.5777139015 | D191: Aur_RX_1 | E191: linReg | F191: 2458935.309 | G191: HD33462 | H191: 20200326_0046 | I191: 1.262005132 | J191: -6.730598245 | K191: 0.9837349701 | L191: 0.05591188374 | M191: 7.000408811 | N191: 2021-02-04
A192: 171 | B192: HD32189linRegAur_RX_1 | C192: 0.5777139015 | D192: Aur_RX_1 | E192: linReg | F192: 2458935.309 | G192: HD31500 | H192: 20200326_0046 | I192: 1.262005132 | J192: -6.730598245 | K192: 0.9837349701 | L192: 0.05591188374 | M192: 7.211327729 | N192: 2021-02-04
A193: 172 | B193: HD31760linRegAur_RX_1 | C193: 0.5777139015 | D193: Aur_RX_1 | E193: linReg | F193: 2458935.309 | G193: HD32189 | H193: 20200326_0046 | I193: 1.262005132 | J193: -6.730598245 | K193: 0.9837349701 | L193: 0.05591188374 | M193: 7.574406605 | N193: 2021-02-04
A194: 173 | B194: HD32386linRegAur_RX_1 | C194: 0.5777139015 | D194: Aur_RX_1 | E194: linReg | F194: 2458935.309 | G194: HD31760 | H194: 20200326_0046 | I194: 1.262005132 | J194: -6.730598245 | K194: 0.9837349701 | L194: 0.05591188374 | M194: 7.992988467 | N194: 2021-02-04
A195: 174 | B195: HD32234linRegAur_RX_1 | C195: 0.5777139015 | D195: Aur_RX_1 | E195: linReg | F195: 2458935.309 | G195: HD32386 | H195: 20200326_0046 | I195: 1.262005132 | J195: -6.730598245 | K195: 0.9837349701 | L195: 0.05591188374 | M195: 8.158702361 | N195: 2021-02-04
A196: 175 | B196: RX AurlinRegAur_RX_1 | C196: 0.5777139015 | D196: Aur_RX_1 | E196: linReg | F196: 2458935.309 | G196: HD32234 | H196: 20200326_0046 | I196: 1.262005132 | J196: -6.730598245 | K196: 0.9837349701 | L196: 0.05591188374 | M196: 8.022166026 | N196: 2021-02-04
A197: 176 | B197: HD33462linRegAur_RX_1 | C197: 0.5896617675 | D197: Aur_RX_1 | E197: linReg | F197: 2458935.448 | G197: RX Aur | H197: 20200326_0190 | I197: 1.237110413 | J197: -6.425104108 | K197: 0.9987567184 | L197: 0.01545828952 | M197: 7.947817861 | N197: 2021-02-04
A198: 177 | B198: HD31500linRegAur_RX_1 | C198: 0.5896617675 | D198: Aur_RX_1 | E198: linReg | F198: 2458935.448 | G198: HD33462 | H198: 20200326_0190 | I198: 1.237110413 | J198: -6.425104108 | K198: 0.9987567184 | L198: 0.01545828952 | M198: 6.977564536 | N198: 2021-02-04
A199: 178 | B199: HD32189linRegAur_RX_1 | C199: 0.5896617675 | D199: Aur_RX_1 | E199: linReg | F199: 2458935.448 | G199: HD31500 | H199: 20200326_0190 | I199: 1.237110413 | J199: -6.425104108 | K199: 0.9987567184 | L199: 0.01545828952 | M199: 7.202211416 | N199: 2021-02-04
A200: 179 | B200: HD31760linRegAur_RX_1 | C200: 0.5896617675 | D200: Aur_RX_1 | E200: linReg | F200: 2458935.448 | G200: HD32189 | H200: 20200326_0190 | I200: 1.237110413 | J200: -6.425104108 | K200: 0.9987567184 | L200: 0.01545828952 | M200: 7.615406293 | N200: 2021-02-04
A201: 180 | B201: HD32386linRegAur_RX_1 | C201: 0.5896617675 | D201: Aur_RX_1 | E201: linReg | F201: 2458935.448 | G201: HD31760 | H201: 20200326_0190 | I201: 1.237110413 | J201: -6.425104108 | K201: 0.9987567184 | L201: 0.01545828952 | M201: 7.989026009 | N201: 2021-02-04
A202: 181 | B202: HD32234linRegAur_RX_1 | C202: 0.5896617675 | D202: Aur_RX_1 | E202: linReg | F202: 2458935.448 | G202: HD32386 | H202: 20200326_0190 | I202: 1.237110413 | J202: -6.425104108 | K202: 0.9987567184 | L202: 0.01545828952 | M202: 8.092436068 | N202: 2021-02-04
A203: 182 | B203: RX AurlinRegAur_RX_1 | C203: 0.5896617675 | D203: Aur_RX_1 | E203: linReg | F203: 2458935.448 | G203: HD32234 | H203: 20200326_0190 | I203: 1.237110413 | J203: -6.425104108 | K203: 0.9987567184 | L203: 0.01545828952 | M203: 8.083355678 | N203: 2021-02-04
A204: 183 | B204: HD33462linRegAur_RX_1 | C204: 0.6639775576 | D204: Aur_RX_1 | E204: linReg | F204: 2458936.311 | G204: RX Aur | H204: 20200327_0082 | I204: 1.261594804 | J204: -6.601994933 | K204: 0.9899941846 | L204: 0.04385336606 | M204: 7.985522999 | N204: 2021-02-04
A205: 184 | B205: HD31500linRegAur_RX_1 | C205: 0.6639775576 | D205: Aur_RX_1 | E205: linReg | F205: 2458936.311 | G205: HD33462 | H205: 20200327_0082 | I205: 1.261594804 | J205: -6.601994933 | K205: 0.9899941846 | L205: 0.04385336606 | M205: 6.951494666 | N205: 2021-02-04
A206: 185 | B206: HD32189linRegAur_RX_1 | C206: 0.6639775576 | D206: Aur_RX_1 | E206: linReg | F206: 2458936.311 | G206: HD31500 | H206: 20200327_0082 | I206: 1.261594804 | J206: -6.601994933 | K206: 0.9899941846 | L206: 0.04385336606 | M206: 7.24590043 | N206: 2021-02-04
A207: 186 | B207: HD31760linRegAur_RX_1 | C207: 0.6639775576 | D207: Aur_RX_1 | E207: linReg | F207: 2458936.311 | G207: HD32189 | H207: 20200327_0082 | I207: 1.261594804 | J207: -6.601994933 | K207: 0.9899941846 | L207: 0.04385336606 | M207: 7.604281665 | N207: 2021-02-04
... 424 more rows

Sheet MuniwinData
C1: Blende 3.00, Annulus 12-15, Serienmessung 201911-202004, heliozentrische Korrektur, Luftmassenkorrektur
C2: Simbad-Helligkeiten+Genauigkeiten | F2: 6.97 | H2: 7.21 | J2: 7.62 | L2: 7.98 | N2: 8.07 | P2: 8.11
D3: RX Aur | E3: =AVERAGE(E6:E350) -> 0.004229565217 | F3: 70 | G3: =AVERAGE(G6:G350) -> 0.003283478261 | H3: 72 | I3: =AVERAGE(I6:I350) -> 0.003226956522 | J3: 76 | K3: =AVERAGE(K6:K350) -> 0.003690434783 | L3: 80 | M3: =AVERAGE(M6:M350) -> 0.004061086957 | N3: 81 | O3: =AVERAGE(O6:O350) -> 0.00534326087 | P3: 81 | Q3: =AVERAGE(Q6:Q350) -> 0.008499347826
D4: RX Aur | E4: =AVERAGE(D6:D351) -> 10.99529326 | F4: HD33462 | G4: =AVERAGE(F6:F351) -> 10.06935326 | H4: HD31500 | I4: =AVERAGE(H6:H351) -> 10.65729283 | J4: HD32189 | K4: =AVERAGE(J6:J351) -> 10.89716783 | L4: HD31760 | M4: =AVERAGE(L6:L351) -> 11.13985826 | N4: HD32386 | O4: =AVERAGE(N6:N351) -> 11.26236239 | P4: HD32234 | Q4: =AVERAGE(P6:P351) -> 11.20366087
A5: Image | B5: FRAME | C5: JDHEL | D5: V | E5: s1 | F5: C1 | G5: s2 | H5: C2 | I5: s3 | J5: C3 | K5: s4 | L5: C4 | M5: s5 | N5: C5 | O5: s6 | P5: K1 | Q5: s7 | R5: done
A6: 20191124_0657 | B6: 1 | C6: 2458812.364 | D6: 11.25877 | E6: 0.00446 | F6: 10.86368 | G6: 0.00268 | H6: 10.96468 | I6: 0.00288 | J6: 11.21411 | K6: 0.00365 | L6: 11.49672 | M6: 0.00456 | N6: 11.64398 | O6: 0.00559 | P6: 11.53623 | Q6: 0.00738 | R6: done
A7: 20191127_0127 | B7: 2 | C7: 2458815.259 | D7: 10.48788 | E7: 0.00289 | F7: 10.07294 | G7: 0.00203 | H7: 10.33866 | I7: 0.00242 | J7: 10.50519 | K7: 0.00295 | L7: 10.82258 | M7: 0.00366 | N7: 10.85297 | O7: 0.00389 | P7: 10.80016 | Q7: 0.00655 | R7: done
A8: 20191127_0847 | B8: 3 | C8: 2458815.502 | D8: 10.27547 | E8: 0.00124 | F8: 10.03259 | G8: 0.00127 | H8: 10.11476 | I8: 0.00105 | J8: 10.32981 | K8: 0.00137 | L8: 10.56594 | M8: 0.00134 | N8: 10.67549 | O8: 0.00159 | P8: 10.66558 | Q8: 0.00329 | R8: done
A9: 20191128_0397 | B9: 4 | C9: 2458816.25 | D9: 10.55194 | E9: 0.00251 | F9: 10.16252 | G9: 0.0022 | H9: 10.24334 | I9: 0.0019 | J9: 10.5045 | K9: 0.00216 | L9: 10.76592 | M9: 0.00305 | N9: 10.88683 | O9: 0.00346 | P9: 10.86317 | Q9: 0.00718 | R9: done
A10: 20191129_0787 | B10: 5 | C10: 2458817.412 | D10: 10.42708 | E10: 0.0016 | F10: 0 | G10: 0 | H10: 10.13329 | I10: 0.00129 | J10: 10.48122 | K10: 0.00142 | L10: 10.61732 | M10: 0.00155 | N10: 10.88446 | O10: 0.0024 | P10: 10.82457 | Q10: 0.00384 | R10: done
A11: 20191130_0417 | B11: 6 | C11: 2458818.344 | D11: 10.57453 | E11: 0.00159 | F11: 10.07657 | G11: 0.00127 | H11: 10.1793 | I11: 0.00122 | J11: 10.45863 | K11: 0.00162 | L11: 10.67797 | M11: 0.00178 | N11: 10.75005 | O11: 0.00197 | P11: 10.71071 | Q11: 0.00328 | R11: done
A12: 20191203_0183 | B12: 7 | C12: 2458821.325 | D12: 10.58874 | E12: 0.00243 | F12: 9.9996 | G12: 0.00142 | H12: 10.13794 | I12: 0.00159 | J12: 10.3588 | K12: 0.00207 | L12: 10.56556 | M12: 0.00209 | N12: 10.70209 | O12: 0.00253 | P12: 10.63607 | Q12: 0.0059 | R12: done
A13: 20191204_0030 | B13: 8 | C13: 2458822.254 | D13: 10.53341 | E13: 0.00285 | F13: 10.07661 | G13: 0.00206 | H13: 10.11878 | I13: 0.00188 | J13: 10.38917 | K13: 0.00203 | L13: 10.63208 | M13: 0.00258 | N13: 10.72802 | O13: 0.00341 | P13: 10.67845 | Q13: 0.00492 | R13: done
A14: 20191206_0264 | B14: 9 | C14: 2458824.325 | D14: 12.37357 | E14: 0.00269 | F14: 11.87298 | G14: 0.00207 | H14: 12.05083 | I14: 0.00215 | J14: 12.40642 | K14: 0.00272 | L14: 12.75821 | M14: 0.00354 | N14: 12.93938 | O14: 0.00435 | P14: 12.80247 | Q14: 0.00453 | R14: done
A15: 20191228_0618 | B15: 10 | C15: 2458846.477 | D15: 10.41606 | E15: 0.00148 | F15: 9.98189 | G15: 0.00111 | H15: 10.10229 | I15: 0.00115 | J15: 10.3269 | K15: 0.0013 | L15: 10.568 | M15: 0.00137 | N15: 10.64113 | O15: 0.00166 | P15: 10.61235 | Q15: 0.00366 | R15: done
A16: 20191229_1017 | B16: 11 | C16: 2458847.254 | D16: 10.79487 | E16: 0.00377 | F16: 10.34028 | G16: 0.00331 | H16: 10.53012 | I16: 0.0027 | J16: 10.69632 | K16: 0.00247 | L16: 10.99643 | M16: 0.003 | N16: 11.11725 | O16: 0.00421 | P16: 11.02385 | Q16: 0.00798 | R16: done
A17: 20191230_0863 | B17: 12 | C17: 2458848.352 | D17: 10.35985 | E17: 0.00182 | F17: 0 | G17: 0 | H17: 10.23786 | I17: 0.00184 | J17: 10.4617 | K17: 0.00176 | L17: 10.72097 | M17: 0.00169 | N17: 10.82335 | O17: 0.00232 | P17: 10.77549 | Q17: 0.00434 | R17: done
A18: 20200103_0178 | B18: 13 | C18: 2458852.42 | D18: 11.67931 | E18: 0.00703 | F18: 11.05804 | G18: 0.00496 | H18: 11.21526 | I18: 0.00454 | J18: 11.4886 | K18: 0.00514 | L18: 11.85306 | M18: 0.00767 | N18: 11.98619 | O18: 0.00868 | P18: 11.84469 | Q18: 0.01309 | R18: done
A19: 20200105_0186 | B19: 14 | C19: 2458854.387 | D19: 11.07558 | E19: 0.0049 | F19: 10.35469 | G19: 0.00378 | H19: 10.56591 | I19: 0.00331 | J19: 10.73849 | K19: 0.00354 | L19: 10.97122 | M19: 0.0038 | N19: 11.16252 | O19: 0.00535 | P19: 11.08862 | Q19: 0.00992 | R19: done
A20: 20200106_0502 | B20: 15 | C20: 2458855.255 | D20: 10.96627 | E20: 0.00457 | F20: 10.21671 | G20: 0.00255 | H20: 10.4534 | I20: 0.00303 | J20: 10.66502 | K20: 0.00326 | L20: 10.97944 | M20: 0.00428 | N20: 11.03242 | O20: 0.00555 | P20: 11.01661 | Q20: 0.00804 | R20: done
A21: 20200111_0770 | B21: 16 | C21: 2458860.292 | D21: 10.7103 | E21: 0.00505 | F21: 10.39986 | G21: 0.00369 | H21: 10.65238 | I21: 0.0038 | J21: 10.80373 | K21: 0.00459 | L21: 11.00895 | M21: 0.0038 | N21: 11.20813 | O21: 0.00555 | P21: 11.21399 | Q21: 0.00963 | R21: done
A22: 20200113_0986 | B22: 17 | C22: 2458862.327 | D22: 10.48192 | E22: 0.00254 | F22: 10.17379 | G22: 0.00213 | H22: 10.39428 | I22: 0.00256 | J22: 10.63734 | K22: 0.00288 | L22: 10.8112 | M22: 0.00274 | N22: 10.88824 | O22: 0.00406 | P22: 10.77292 | Q22: 0.00744 | R22: done
A23: 20200220_0226 | B23: 18 | C23: 2458900.409 | D23: 10.84835 | E23: 0.00305 | F23: 10.26772 | G23: 0.00229 | H23: 10.32283 | I23: 0.00179 | J23: 10.60058 | K23: 0.00262 | L23: 10.83794 | M23: 0.00241 | N23: 10.99642 | O23: 0.00312 | P23: 10.8638 | Q23: 0.00518 | R23: done
A24: 20200319_0217 | B24: 19 | C24: 2458928.32 | D24: 11.12647 | E24: 0.00607 | F24: 10.66058 | G24: 0.00277 | H24: 10.87083 | I24: 0.00433 | J24: 10.99636 | K24: 0.00369 | L24: 11.23017 | M24: 0.00386 | N24: 11.55756 | O24: 0.00847 | P24: 11.36463 | Q24: 0.01082 | R24: done
A25: 20200320_0451 | B25: 20 | C25: 2458929.275 | D25: 11.16381 | E25: 0.00629 | F25: 10.77797 | G25: 0.00503 | H25: 11.02019 | I25: 0.00474 | J25: 11.30264 | K25: 0.00637 | L25: 11.56638 | M25: 0.00668 | N25: 11.71048 | O25: 0.00821 | P25: 11.64818 | Q25: 0.01281 | R25: done
A26: 20200322_0128 | B26: 21 | C26: 2458931.307 | D26: 10.87479 | E26: 0.00347 | F26: 10.65121 | G26: 0.00441 | H26: 10.6927 | I26: 0.00251 | J26: 11.01886 | K26: 0.00344 | L26: 11.25894 | M26: 0.0031 | N26: 11.38155 | O26: 0.00459 | P26: 11.35941 | Q26: 0.01124 | R26: done
A27: 20200323_0046 | B27: 22 | C27: 2458932.317 | D27: 11.00033 | E27: 0.00351 | F27: 10.70195 | G27: 0.0039 | H27: 10.77403 | I27: 0.00314 | J27: 11.0396 | K27: 0.00361 | L27: 11.32536 | M27: 0.00413 | N27: 11.45355 | O27: 0.00654 | P27: 11.37573 | Q27: 0.0107 | R27: done
A28: 20200324_0100 | B28: 23 | C28: 2458933.315 | D28: 10.99062 | E28: 0.00426 | F28: 10.483 | G28: 0.00254 | H28: 10.68221 | I28: 0.00325 | J28: 10.83587 | K28: 0.00281 | L28: 11.11291 | M28: 0.00307 | N28: 11.40505 | O28: 0.00565 | P28: 11.14248 | Q28: 0.00759 | R28: done
A29: 20200325_0082 | B29: 24 | C29: 2458934.315 | D29: 11.49247 | E29: 0.00809 | F29: 10.82411 | G29: 0.008 | H29: 11.07433 | I29: 0.00947 | J29: 11.20248 | K29: 0.00529 | L29: 11.51494 | M29: 0.00492 | N29: 11.63287 | O29: 0.00619 | P29: 11.55738 | Q29: 0.01288 | R29: done
A30: 20200326_0046 | B30: 25 | C30: 2458935.309 | D30: 11.61194 | E30: 0.01007 | F30: 10.88031 | G30: 0.00568 | H30: 11.04744 | I30: 0.00876 | J30: 11.33514 | K30: 0.01042 | L30: 11.66682 | M30: 0.00992 | N30: 11.79813 | O30: 0.01143 | P30: 11.68994 | Q30: 0.01506 | R30: done
A31: 20200326_0190 | B31: 26 | C31: 2458935.448 | D31: 11.61814 | E31: 0.00695 | F31: 10.83385 | G31: 0.00366 | H31: 11.01544 | I31: 0.00424 | J31: 11.34944 | K31: 0.00472 | L31: 11.65145 | M31: 0.0069 | N31: 11.73504 | O31: 0.00774 | P31: 11.7277 | Q31: 0.01233 | R31: done
A32: 20200327_0082 | B32: 27 | C32: 2458936.311 | D32: 11.56276 | E32: 0.0059 | F32: 10.74314 | G32: 0.00358 | H32: 10.9765 | I32: 0.00465 | J32: 11.26057 | K32: 0.00488 | L32: 11.60202 | M32: 0.00476 | N32: 11.64695 | O32: 0.0074 | P32: 11.59923 | Q32: 0.01476 | R32: done
A33: 20200328_0082 | B33: 28 | C33: 2458937.313 | D33: 11.74445 | E33: 0.00724 | F33: 10.82908 | G33: 0.00471 | H33: 11.05049 | I33: 0.00434 | J33: 11.36817 | K33: 0.00573 | L33: 11.65289 | M33: 0.00613 | N33: 11.81899 | O33: 0.00869 | P33: 11.77216 | Q33: 0.01488 | R33: done
A34: 20200328_0199 | B34: 29 | C34: 2458937.343 | D34: 11.77726 | E34: 0.00693 | F34: 11.02325 | G34: 0.00625 | H34: 11.16754 | I34: 0.00424 | J34: 11.48314 | K34: 0.00552 | L34: 11.74351 | M34: 0.00616 | N34: 11.88133 | O34: 0.00781 | P34: 11.84455 | Q34: 0.01489 | R34: done
A35: 20200328_0226 | B35: 30 | C35: 2458937.356 | D35: 12.05783 | E35: 0.01032 | F35: 11.17907 | G35: 0.00747 | H35: 11.18307 | I35: 0.00506 | J35: 11.57153 | K35: 0.00826 | L35: 11.80112 | M35: 0.00668 | N35: 11.94436 | O35: 0.00873 | P35: 11.86403 | Q35: 0.01628 | R35: done
A36: 20200330_0037 | B36: 31 | C36: 2458939.3 | D36: 11.28756 | E36: 0.00614 | F36: 10.84693 | G36: 0.00957 | H36: 10.89013 | I36: 0.00484 | J36: 11.16422 | K36: 0.00564 | L36: 11.4063 | M36: 0.00555 | N36: 11.5494 | O36: 0.00791 | P36: 11.48033 | Q36: 0.01182 | R36: done
A37: 20200330_0291 | B37: 32 | C37: 2458939.418 | D37: 10.91505 | E37: 0.00297 | F37: 10.45715 | G37: 0.0023 | H37: 10.63595 | I37: 0.0026 | J37: 10.80068 | K37: 0.00264 | L37: 10.95438 | M37: 0.00308 | N37: 11.05444 | O37: 0.00409 | P37: 11.09357 | Q37: 0.00597 | R37: done
A38: 20200331_0064 | B38: 33 | C38: 2458940.327 | D38: 10.42728 | E38: 0.00248 | F38: 10.05734 | G38: 0.00289 | H38: 10.19854 | I38: 0.00207 | J38: 10.43535 | K38: 0.00274 | L38: 10.66033 | M38: 0.00346 | N38: 10.80644 | O38: 0.00447 | P38: 10.77489 | Q38: 0.00639 | R38: done
A39: 20200401_0046 | B39: 34 | C39: 2458941.311 | D39: 10.41179 | E39: 0.0025 | F39: 10.24199 | G39: 0.00234 | H39: 10.27736 | I39: 0.00239 | J39: 10.59131 | K39: 0.00285 | L39: 10.73076 | M39: 0.00309 | N39: 10.81134 | O39: 0.00377 | P39: 10.76329 | Q39: 0.0064 | R39: done
A40: 20200402_0037 | B40: 35 | C40: 2458942.317 | D40: 10.67488 | E40: 0.00274 | F40: 10.61016 | G40: 0.00305 | H40: 10.69965 | I40: 0.00348 | J40: 10.87199 | K40: 0.00441 | L40: 11.1018 | M40: 0.00387 | N40: 11.32531 | O40: 0.00658 | P40: 11.12063 | Q40: 0.00836 | R40: done
A41: 20200403_0055 | B41: 36 | C41: 2458943.309 | D41: 10.80704 | E41: 0.00305 | F41: 10.56452 | G41: 0.0037 | H41: 10.67713 | I41: 0.00276 | J41: 10.97426 | K41: 0.00443 | L41: 11.01464 | M41: 0.00451 | N41: 11.03005 | O41: 0.0048 | P41: 11.06721 | Q41: 0.00799 | R41: done
A42: 20200403_0091 | B42: 37 | C42: 2458943.321 | D42: 12.33823 | E42: 0.0064 | F42: 12.06017 | G42: 0.00606 | H42: 12.11298 | I42: 0.00602 | J42: 12.43156 | K42: 0.00713 | L42: 12.62868 | M42: 0.00789 | N42: 12.75321 | O42: 0.01092 | P42: 12.69714 | Q42: 0.01474 | R42: done
A43: 20200404_0127 | B43: 38 | C43: 2458944.318 | D43: 10.60986 | E43: 0.00275 | F43: 10.29517 | G43: 0.00285 | H43: 10.44678 | I43: 0.00268 | J43: 10.62317 | K43: 0.00269 | L43: 10.82564 | M43: 0.00382 | N43: 10.89666 | O43: 0.0047 | P43: 10.88027 | Q43: 0.00642 | R43: done
A44: 20200405_0145 | B44: 39 | C44: 2458945.332 | D44: 10.72337 | E44: 0.00357 | F44: 10.33988 | G44: 0.00318 | H44: 10.484 | I44: 0.00316 | J44: 10.66066 | K44: 0.00316 | L44: 10.8327 | M44: 0.00382 | N44: 10.90624 | O44: 0.00506 | P44: 10.88595 | Q44: 0.00631 | R44: done
A45: 20200406_0118 | B45: 40 | C45: 2458947.335 | D45: 11.00319 | E45: 0.00481 | F45: 10.465 | G45: 0.00355 | H45: 10.63558 | I45: 0.00379 | J45: 10.84259 | K45: 0.00478 | L45: 11.00309 | M45: 0.00473 | N45: 11.10208 | O45: 0.00609 | P45: 11.09219 | Q45: 0.00703 | R45: done
A46: 20200407_0154 | B46: 41 | C46: 2458948.349 | D46: 11.13339 | E46: 0.00495 | F46: 10.33585 | G46: 0.00382 | H46: 10.47145 | I46: 0.0031 | J46: 10.78736 | K46: 0.00347 | L46: 11.05194 | M46: 0.0053 | N46: 11.23306 | O46: 0.00646 | P46: 11.12134 | Q46: 0.00904 | R46: done
A47: 20200408_0109 | B47: 42 | C47: 2458949.329 | D47: 10.89293 | E47: 0.00296 | F47: 10.21032 | G47: 0.00191 | H47: 10.4428 | I47: 0.00185 | J47: 10.63208 | K47: 0.00229 | L47: 10.9168 | M47: 0.00281 | N47: 10.92611 | O47: 0.00371 | P47: 10.94719 | Q47: 0.00577 | R47: done
A48: 20200409_1019 | B48: 43 | C48: 2458950.303 | D48: 10.88936 | E48: 0.00376 | F48: 10.37942 | G48: 0.00217 | H48: 10.58699 | I48: 0.003 | J48: 10.71601 | K48: 0.00296 | L48: 10.89109 | M48: 0.00387 | N48: 10.97372 | O48: 0.00384 | P48: 11.00694 | Q48: 0.006 | R48: done
A49: 20200410_0046 | B49: 44 | C49: 2458950.35 | D49: 10.68309 | E49: 0.00367 | F49: 10.08336 | G49: 0.00222 | H49: 10.30453 | I49: 0.00215 | J49: 10.5143 | K49: 0.00306 | L49: 10.77822 | M49: 0.00379 | N49: 10.87035 | O49: 0.00462 | P49: 10.84447 | Q49: 0.00705 | R49: done
A50: 20200410_0118 | B50: 45 | C50: 2458950.35 | D50: 10.83656 | E50: 0.00313 | F50: 10.33763 | G50: 0.00205 | H50: 10.54093 | I50: 0.0023 | J50: 10.6921 | K50: 0.00246 | L50: 10.94377 | M50: 0.00278 | N50: 10.97642 | O50: 0.00344 | P50: 10.98276 | Q50: 0.00604 | R50: done
A51: 20200411_0253 | B51: 46 | C51: 2458951.308 | D51: 10.72514 | E51: 0.00311 | F51: 10.36737 | G51: 0.00256 | H51: 10.51999 | I51: 0.00242 | J51: 10.70175 | K51: 0.00276 | L51: 10.91732 | M51: 0.00322 | N51: 10.96906 | O51: 0.00419 | P51: 10.93508 | Q51: 0.00525 | R51: done

Sheet Linreg
B1: Tabelle zur Berechnung der Korrelationsfunktion | M1: Lineare Regressionsstatistik: | O1: =LINEST(L8:L13,K8:K13,,TRUE) -> 1.919513975 | P1: -12.94616488
B2: Messwerte von oben in die untere Tabelle (Spalte C) kopieren | O2: 0.08508515038 | P2: 0.9136022603
B3: neue Korrelationsfunktion in Spalte F kopieren und anpassen | O3: 0.9922019672 | P3: 0.04741490132
B4: in Feld Mittelwert bzw. Standardabweichung clicken und ggf. berücksichtigten Bereich an Zahl der Sterne anpassen (empfohlen 5 Sterne Minimum) | O4: 508.9498789 | P4: 4
O5: 1.144207309 | P5: 0.008992691469
A6: MPName | B6: KatMag2 | C6: FullJD | D6: AUID | E6: Serie | F6: linRegA | G6: linRegB | H6: RR | I6: StabAbsMag | J6: CalcMag | K6: InstMag | L6: KatMag | M6: Differenz | N6: Label
A7: Aur_RX_1 | C7: 2458951.308 | D7: RX Aur | E7: 20200411_0253 | F7: 1.919513975 | G7: -12.94616488 | H7: 0.9922019672 | I7: =_xlfn.STDEV.P(M8:M13) -> 0.03871410481 | J7: =F7*K7+G7 -> 7.640891238 | K7: 10.72514 | N7: RX Aur
A8: Aur_RX_1 | B8: 6.97 | C8: 2458951.308 | D8: HD33462 | E8: 20200411_0253 | F8: 1.919513975 | G8: -12.94616488 | H8: 0.9922019672 | I8: =_xlfn.STDEV.P(M8:M13) -> 0.03871410481 | J8: 6.954146723 | K8: 10.36737 | L8: 6.97 | M8: =L8-J8 -> 0.01585327661 | N8: 70
A9: Aur_RX_1 | B9: 7.21 | C9: 2458951.308 | D9: HD31500 | E9: 20200411_0253 | F9: 1.919513975 | G9: -12.94616488 | H9: 0.9922019672 | I9: =_xlfn.STDEV.P(M8:M13) -> 0.03871410481 | J9: 7.247102946 | K9: 10.51999 | L9: 7.21 | M9: -0.03710294632 | N9: 72
A10: Aur_RX_1 | B10: 7.62 | C10: 2458951.308 | D10: HD32189 | E10: 20200411_0253 | F10: 1.919513975 | G10: -12.94616488 | H10: 0.9922019672 | I10: =_xlfn.STDEV.P(M8:M13) -> 0.03871410481 | J10: 7.595993806 | K10: 10.70175 | L10: 7.62 | M10: 0.02400619351 | N10: 76
A11: Aur_RX_1 | B11: 7.98 | C11: 2458951.308 | D11: HD31760 | E11: 20200411_0253 | F11: 1.919513975 | G11: -12.94616488 | H11: 0.9922019672 | I11: =_xlfn.STDEV.P(M8:M13) -> 0.03871410481 | J11: 8.009783434 | K11: 10.91732 | L11: 7.98 | M11: -0.02978343417 | N11: 80
A12: Aur_RX_1 | B12: 8.07 | C12: 2458951.308 | D12: HD32386 | E12: 20200411_0253 | F12: 1.919513975 | G12: -12.94616488 | H12: 0.9922019672 | I12: =_xlfn.STDEV.P(M8:M13) -> 0.03871410481 | J12: 8.109099087 | K12: 10.96906 | L12: 8.07 | M12: -0.03909908726 | N12: 81
B13: 8.11 | C13: 2458951.308 | D13: HD32234 | E13: 20200411_0253 | F13: 1.919513975 | G13: -12.94616488 | H13: 0.9922019672 | I13: =_xlfn.STDEV.P(M8:M13) -> 0.03871410481 | J13: 8.043874002 | K13: 10.93508 | L13: 8.11 | M13: 0.06612599763 | N13: 81
A21: ID | B21: ProcComb | C21: Phase | D21: MPName | E21: PMethod | F21: FullJD | G21: AUID | H21: Serie | I21: linRegA | J21: linRegB | K21: RR | L21: StabAbsMag | M21: CalcMag | N21: DataInputDate | O21: Remark
A22: 1 | B22: =G30&E22&D22 -> linRegAur_RX_1 | C22: =(F22-2439075.63)/11.623515-INT((F22-2439075.63)/11.623515) -> 0.2372432091 | D22: Aur_RX_1 | E22: linReg
A23: 2 | B23: linRegAur_RX_1 | C23: =(F23-2439075.63)/11.623515-INT((F23-2439075.63)/11.623515) -> 0.2372432091 | D23: Aur_RX_1 | E23: linReg
A24: 3 | B24: linRegAur_RX_1 | C24: =(F24-2439075.63)/11.623515-INT((F24-2439075.63)/11.623515) -> 0.2372432091 | D24: Aur_RX_1 | E24: linReg
A25: 4 | B25: linRegAur_RX_1 | C25: 0.2372432091 | D25: Aur_RX_1 | E25: linReg
A26: 5 | B26: linRegAur_RX_1 | C26: 0.2372432091 | D26: Aur_RX_1 | E26: linReg
A27: 6 | B27: linRegAur_RX_1 | C27: 0.2372432091 | D27: Aur_RX_1 | E27: linReg
A28: 7 | B28: linRegAur_RX_1 | C28: 0.2372432091 | D28: Aur_RX_1 | E28: linReg
A29: 8 | B29: linRegAur_RX_1 | C29: 0.2372432091 | D29: Aur_RX_1 | E29: linReg
A30: 9 | B30: linRegAur_RX_1 | C30: 0.2372432091 | D30: Aur_RX_1 | E30: linReg
A31: 10 | B31: linRegAur_RX_1 | C31: 0.2372432091 | D31: Aur_RX_1 | E31: linReg
A32: 11 | B32: linRegAur_RX_1 | C32: 0.2372432091 | D32: Aur_RX_1 | E32: linReg
A33: 12 | B33: linRegAur_RX_1 | C33: 0.2372432091 | D33: Aur_RX_1 | E33: linReg
A34: 13 | B34: linRegAur_RX_1 | C34: 0.2372432091 | D34: Aur_RX_1 | E34: linReg
A35: 14 | B35: linRegAur_RX_1 | C35: 0.2372432091 | D35: Aur_RX_1 | E35: linReg
A36: 15 | B36: linRegAur_RX_1 | C36: 0.2372432091 | D36: Aur_RX_1 | E36: linReg
A37: 16 | B37: linRegAur_RX_1 | C37: 0.2372432091 | D37: Aur_RX_1 | E37: linReg
A38: 17 | B38: linRegAur_RX_1 | C38: 0.2372432091 | D38: Aur_RX_1 | E38: linReg
A39: 18 | B39: linRegAur_RX_1 | C39: 0.2372432091 | D39: Aur_RX_1 | E39: linReg
A40: 19 | B40: linRegAur_RX_1 | C40: 0.2372432091 | D40: Aur_RX_1 | E40: linReg
A41: 20 | B41: linRegAur_RX_1 | C41: 0.2372432091 | D41: Aur_RX_1 | E41: linReg
A42: 21 | B42: linRegAur_RX_1 | C42: 0.2372432091 | D42: Aur_RX_1 | E42: linReg
A43: 22 | B43: linRegAur_RX_1 | C43: 0.2372432091 | D43: Aur_RX_1 | E43: linReg
A44: 23 | B44: linRegAur_RX_1 | C44: 0.2372432091 | D44: Aur_RX_1 | E44: linReg
A45: 24 | B45: linRegAur_RX_1 | C45: 0.2372432091 | D45: Aur_RX_1 | E45: linReg
A46: 25 | B46: linRegAur_RX_1 | C46: 0.2372432091 | D46: Aur_RX_1 | E46: linReg
A47: 26 | B47: linRegAur_RX_1 | C47: 0.2372432091 | D47: Aur_RX_1 | E47: linReg
A48: 27 | B48: linRegAur_RX_1 | C48: 0.2372432091 | D48: Aur_RX_1 | E48: linReg
A49: 28 | B49: linRegAur_RX_1 | C49: 0.2372432091 | D49: Aur_RX_1 | E49: linReg
A50: 29 | B50: linRegAur_RX_1 | C50: 0.2372432091 | D50: Aur_RX_1 | E50: linReg
A51: 30 | B51: linRegAur_RX_1 | C51: 0.2372432091 | D51: Aur_RX_1 | E51: linReg
A52: 31 | B52: linRegAur_RX_1 | C52: 0.2372432091 | D52: Aur_RX_1 | E52: linReg
A53: 32 | B53: linRegAur_RX_1 | C53: 0.2372432091 | D53: Aur_RX_1 | E53: linReg
A54: 33 | B54: linRegAur_RX_1 | C54: 0.2372432091 | D54: Aur_RX_1 | E54: linReg
A55: 34 | B55: linRegAur_RX_1 | C55: 0.2372432091 | D55: Aur_RX_1 | E55: linReg
A56: 35 | B56: linRegAur_RX_1 | C56: 0.2372432091 | D56: Aur_RX_1 | E56: linReg
A57: 36 | B57: linRegAur_RX_1 | C57: 0.2372432091 | D57: Aur_RX_1 | E57: linReg
A58: 37 | B58: linRegAur_RX_1 | C58: 0.2372432091 | D58: Aur_RX_1 | E58: linReg
A59: 38 | B59: linRegAur_RX_1 | C59: 0.2372432091 | D59: Aur_RX_1 | E59: linReg
A60: 39 | B60: linRegAur_RX_1 | C60: 0.2372432091 | D60: Aur_RX_1 | E60: linReg
A61: 40 | B61: linRegAur_RX_1 | C61: 0.2372432091 | D61: Aur_RX_1 | E61: linReg
A62: 41 | B62: linRegAur_RX_1 | C62: 0.2372432091 | D62: Aur_RX_1 | E62: linReg
A63: 42 | B63: linRegAur_RX_1 | C63: 0.2372432091 | D63: Aur_RX_1 | E63: linReg
A64: 43 | B64: linRegAur_RX_1 | C64: 0.2372432091 | D64: Aur_RX_1 | E64: linReg
A65: 44 | B65: linRegAur_RX_1 | C65: 0.2372432091 | D65: Aur_RX_1 | E65: linReg
A66: 45 | B66: linRegAur_RX_1 | C66: 0.2372432091 | D66: Aur_RX_1 | E66: linReg
A67: 46 | B67: linRegAur_RX_1 | C67: 0.2372432091 | D67: Aur_RX_1 | E67: linReg
A68: 47 | B68: linRegAur_RX_1 | C68: 0.2372432091 | D68: Aur_RX_1 | E68: linReg
A69: 48 | B69: linRegAur_RX_1 | C69: 0.2372432091 | D69: Aur_RX_1 | E69: linReg
A70: 49 | B70: linRegAur_RX_1 | C70: 0.2372432091 | D70: Aur_RX_1 | E70: linReg
A71: 50 | B71: linRegAur_RX_1 | C71: 0.2372432091 | D71: Aur_RX_1 | E71: linReg
A72: 51 | B72: linRegAur_RX_1 | C72: 0.2372432091 | D72: Aur_RX_1 | E72: linReg
A73: 52 | B73: linRegAur_RX_1 | C73: 0.2372432091 | D73: Aur_RX_1 | E73: linReg
A74: 53 | B74: linRegAur_RX_1 | C74: 0.2372432091 | D74: Aur_RX_1 | E74: linReg
A75: 54 | B75: linRegAur_RX_1 | C75: 0.2372432091 | D75: Aur_RX_1 | E75: linReg
A76: 55 | B76: linRegAur_RX_1 | C76: 0.2372432091 | D76: Aur_RX_1 | E76: linReg
A77: 56 | B77: linRegAur_RX_1 | C77: 0.2372432091 | D77: Aur_RX_1 | E77: linReg
A78: 57 | B78: linRegAur_RX_1 | C78: 0.2372432091 | D78: Aur_RX_1 | E78: linReg
A79: 58 | B79: linRegAur_RX_1 | C79: 0.2372432091 | D79: Aur_RX_1 | E79: linReg
A80: 59 | B80: linRegAur_RX_1 | C80: 0.2372432091 | D80: Aur_RX_1 | E80: linReg
A81: 60 | B81: linRegAur_RX_1 | C81: 0.2372432091 | D81: Aur_RX_1 | E81: linReg
A82: 61 | B82: linRegAur_RX_1 | C82: 0.2372432091 | D82: Aur_RX_1 | E82: linReg
A83: 62 | B83: linRegAur_RX_1 | C83: 0.2372432091 | D83: Aur_RX_1 | E83: linReg
A84: 63 | B84: linRegAur_RX_1 | C84: 0.2372432091 | D84: Aur_RX_1 | E84: linReg
A85: 64 | B85: linRegAur_RX_1 | C85: 0.2372432091 | D85: Aur_RX_1 | E85: linReg
A86: 65 | B86: =G94&E86&D86 -> linRegAur_RX_1 | C86: 0.2372432091 | D86: Aur_RX_1 | E86: linReg
A87: 66 | B87: linRegAur_RX_1 | C87: 0.2372432091 | D87: Aur_RX_1 | E87: linReg
A88: 67 | B88: linRegAur_RX_1 | C88: =(F88-2439075.63)/11.623515-INT((F88-2439075.63)/11.623515) -> 0.2372432091 | D88: Aur_RX_1 | E88: linReg
A89: 68 | B89: linRegAur_RX_1 | C89: 0.2372432091 | D89: Aur_RX_1 | E89: linReg
A90: 69 | B90: linRegAur_RX_1 | C90: 0.2372432091 | D90: Aur_RX_1 | E90: linReg
A91: 70 | B91: linRegAur_RX_1 | C91: 0.2372432091 | D91: Aur_RX_1 | E91: linReg
A92: 71 | B92: linRegAur_RX_1 | C92: 0.2372432091 | D92: Aur_RX_1 | E92: linReg
A93: 72 | B93: linRegAur_RX_1 | C93: 0.2372432091 | D93: Aur_RX_1 | E93: linReg
A94: 73 | B94: linRegAur_RX_1 | C94: 0.2372432091 | D94: Aur_RX_1 | E94: linReg
A95: 74 | B95: linRegAur_RX_1 | C95: 0.2372432091 | D95: Aur_RX_1 | E95: linReg
A96: 75 | B96: linRegAur_RX_1 | C96: 0.2372432091 | D96: Aur_RX_1 | E96: linReg
A97: 76 | B97: linRegAur_RX_1 | C97: 0.2372432091 | D97: Aur_RX_1 | E97: linReg
A98: 77 | B98: linRegAur_RX_1 | C98: 0.2372432091 | D98: Aur_RX_1 | E98: linReg
A99: 78 | B99: linRegAur_RX_1 | C99: 0.2372432091 | D99: Aur_RX_1 | E99: linReg
A100: 79 | B100: linRegAur_RX_1 | C100: 0.2372432091 | D100: Aur_RX_1 | E100: linReg
A101: 80 | B101: linRegAur_RX_1 | C101: 0.2372432091 | D101: Aur_RX_1 | E101: linReg
A102: 81 | B102: linRegAur_RX_1 | C102: 0.2372432091 | D102: Aur_RX_1 | E102: linReg
A103: 82 | B103: linRegAur_RX_1 | C103: 0.2372432091 | D103: Aur_RX_1 | E103: linReg
A104: 83 | B104: linRegAur_RX_1 | C104: 0.2372432091 | D104: Aur_RX_1 | E104: linReg
A105: 84 | B105: linRegAur_RX_1 | C105: 0.2372432091 | D105: Aur_RX_1 | E105: linReg
A106: 85 | B106: linRegAur_RX_1 | C106: 0.2372432091 | D106: Aur_RX_1 | E106: linReg
A107: 86 | B107: linRegAur_RX_1 | C107: 0.2372432091 | D107: Aur_RX_1 | E107: linReg
A108: 87 | B108: linRegAur_RX_1 | C108: 0.2372432091 | D108: Aur_RX_1 | E108: linReg
A109: 88 | B109: linRegAur_RX_1 | C109: 0.2372432091 | D109: Aur_RX_1 | E109: linReg
A110: 89 | B110: linRegAur_RX_1 | C110: 0.2372432091 | D110: Aur_RX_1 | E110: linReg
A111: 90 | B111: linRegAur_RX_1 | C111: 0.2372432091 | D111: Aur_RX_1 | E111: linReg
A112: 91 | B112: linRegAur_RX_1 | C112: 0.2372432091 | D112: Aur_RX_1 | E112: linReg
A113: 92 | B113: linRegAur_RX_1 | C113: 0.2372432091 | D113: Aur_RX_1 | E113: linReg
A114: 93 | B114: linRegAur_RX_1 | C114: 0.2372432091 | D114: Aur_RX_1 | E114: linReg
A115: 94 | B115: linRegAur_RX_1 | C115: 0.2372432091 | D115: Aur_RX_1 | E115: linReg
A116: 95 | B116: linRegAur_RX_1 | C116: 0.2372432091 | D116: Aur_RX_1 | E116: linReg
A117: 96 | B117: linRegAur_RX_1 | C117: 0.2372432091 | D117: Aur_RX_1 | E117: linReg
A118: 97 | B118: linRegAur_RX_1 | C118: 0.2372432091 | D118: Aur_RX_1 | E118: linReg
A119: 98 | B119: linRegAur_RX_1 | C119: 0.2372432091 | D119: Aur_RX_1 | E119: linReg
A120: 99 | B120: linRegAur_RX_1 | C120: 0.2372432091 | D120: Aur_RX_1 | E120: linReg
A121: 100 | B121: linRegAur_RX_1 | C121: 0.2372432091 | D121: Aur_RX_1 | E121: linReg
A122: 101 | B122: linRegAur_RX_1 | C122: 0.2372432091 | D122: Aur_RX_1 | E122: linReg
A123: 102 | B123: linRegAur_RX_1 | C123: 0.2372432091 | D123: Aur_RX_1 | E123: linReg
A124: 103 | B124: linRegAur_RX_1 | C124: 0.2372432091 | D124: Aur_RX_1 | E124: linReg
A125: 104 | B125: linRegAur_RX_1 | C125: 0.2372432091 | D125: Aur_RX_1 | E125: linReg
A126: 105 | B126: linRegAur_RX_1 | C126: 0.2372432091 | D126: Aur_RX_1 | E126: linReg
A127: 106 | B127: linRegAur_RX_1 | C127: 0.2372432091 | D127: Aur_RX_1 | E127: linReg
A128: 107 | B128: linRegAur_RX_1 | C128: 0.2372432091 | D128: Aur_RX_1 | E128: linReg
A129: 108 | B129: linRegAur_RX_1 | C129: 0.2372432091 | D129: Aur_RX_1 | E129: linReg
A130: 109 | B130: linRegAur_RX_1 | C130: 0.2372432091 | D130: Aur_RX_1 | E130: linReg
A131: 110 | B131: linRegAur_RX_1 | C131: 0.2372432091 | D131: Aur_RX_1 | E131: linReg
A132: 111 | B132: linRegAur_RX_1 | C132: 0.2372432091 | D132: Aur_RX_1 | E132: linReg
A133: 112 | B133: linRegAur_RX_1 | C133: 0.2372432091 | D133: Aur_RX_1 | E133: linReg
A134: 113 | B134: linRegAur_RX_1 | C134: 0.2372432091 | D134: Aur_RX_1 | E134: linReg
A135: 114 | B135: linRegAur_RX_1 | C135: 0.2372432091 | D135: Aur_RX_1 | E135: linReg
A136: 115 | B136: linRegAur_RX_1 | C136: 0.2372432091 | D136: Aur_RX_1 | E136: linReg
A137: 116 | B137: linRegAur_RX_1 | C137: 0.2372432091 | D137: Aur_RX_1 | E137: linReg
A138: 117 | B138: linRegAur_RX_1 | C138: 0.2372432091 | D138: Aur_RX_1 | E138: linReg
A139: 118 | B139: linRegAur_RX_1 | C139: 0.2372432091 | D139: Aur_RX_1 | E139: linReg
A140: 119 | B140: linRegAur_RX_1 | C140: 0.2372432091 | D140: Aur_RX_1 | E140: linReg
A141: 120 | B141: linRegAur_RX_1 | C141: 0.2372432091 | D141: Aur_RX_1 | E141: linReg
A142: 121 | B142: linRegAur_RX_1 | C142: 0.2372432091 | D142: Aur_RX_1 | E142: linReg
A143: 122 | B143: linRegAur_RX_1 | C143: 0.2372432091 | D143: Aur_RX_1 | E143: linReg
A144: 123 | B144: linRegAur_RX_1 | C144: 0.2372432091 | D144: Aur_RX_1 | E144: linReg
A145: 124 | B145: linRegAur_RX_1 | C145: 0.2372432091 | D145: Aur_RX_1 | E145: linReg
A146: 125 | B146: linRegAur_RX_1 | C146: 0.2372432091 | D146: Aur_RX_1 | E146: linReg
A147: 126 | B147: linRegAur_RX_1 | C147: 0.2372432091 | D147: Aur_RX_1 | E147: linReg
A148: 127 | B148: linRegAur_RX_1 | C148: 0.2372432091 | D148: Aur_RX_1 | E148: linReg
A149: 128 | B149: linRegAur_RX_1 | C149: 0.2372432091 | D149: Aur_RX_1 | E149: linReg
A150: 129 | B150: =G158&E150&D150 -> linRegAur_RX_1 | C150: 0.2372432091 | D150: Aur_RX_1 | E150: linReg
A151: 130 | B151: linRegAur_RX_1 | C151: 0.2372432091 | D151: Aur_RX_1 | E151: linReg
A152: 131 | B152: linRegAur_RX_1 | C152: =(F152-2439075.63)/11.623515-INT((F152-2439075.63)/11.623515) -> 0.2372432091 | D152: Aur_RX_1 | E152: linReg
A153: 132 | B153: linRegAur_RX_1 | C153: 0.2372432091 | D153: Aur_RX_1 | E153: linReg
A154: 133 | B154: linRegAur_RX_1 | C154: 0.2372432091 | D154: Aur_RX_1 | E154: linReg
A155: 134 | B155: linRegAur_RX_1 | C155: 0.2372432091 | D155: Aur_RX_1 | E155: linReg
A156: 135 | B156: linRegAur_RX_1 | C156: 0.2372432091 | D156: Aur_RX_1 | E156: linReg
A157: 136 | B157: linRegAur_RX_1 | C157: 0.2372432091 | D157: Aur_RX_1 | E157: linReg
A158: 137 | B158: linRegAur_RX_1 | C158: 0.2372432091 | D158: Aur_RX_1 | E158: linReg
A159: 138 | B159: linRegAur_RX_1 | C159: 0.2372432091 | D159: Aur_RX_1 | E159: linReg
A160: 139 | B160: linRegAur_RX_1 | C160: 0.2372432091 | D160: Aur_RX_1 | E160: linReg
A161: 140 | B161: linRegAur_RX_1 | C161: 0.2372432091 | D161: Aur_RX_1 | E161: linReg
A162: 141 | B162: linRegAur_RX_1 | C162: 0.2372432091 | D162: Aur_RX_1 | E162: linReg
A163: 142 | B163: linRegAur_RX_1 | C163: 0.2372432091 | D163: Aur_RX_1 | E163: linReg
A164: 143 | B164: linRegAur_RX_1 | C164: 0.2372432091 | D164: Aur_RX_1 | E164: linReg
A165: 144 | B165: linRegAur_RX_1 | C165: 0.2372432091 | D165: Aur_RX_1 | E165: linReg
A166: 145 | B166: linRegAur_RX_1 | C166: 0.2372432091 | D166: Aur_RX_1 | E166: linReg
A167: 146 | B167: linRegAur_RX_1 | C167: 0.2372432091 | D167: Aur_RX_1 | E167: linReg
A168: 147 | B168: linRegAur_RX_1 | C168: 0.2372432091 | D168: Aur_RX_1 | E168: linReg
A169: 148 | B169: linRegAur_RX_1 | C169: 0.2372432091 | D169: Aur_RX_1 | E169: linReg
A170: 149 | B170: linRegAur_RX_1 | C170: 0.2372432091 | D170: Aur_RX_1 | E170: linReg
A171: 150 | B171: linRegAur_RX_1 | C171: 0.2372432091 | D171: Aur_RX_1 | E171: linReg
A172: 151 | B172: linRegAur_RX_1 | C172: 0.2372432091 | D172: Aur_RX_1 | E172: linReg
A173: 152 | B173: linRegAur_RX_1 | C173: 0.2372432091 | D173: Aur_RX_1 | E173: linReg
A174: 153 | B174: linRegAur_RX_1 | C174: 0.2372432091 | D174: Aur_RX_1 | E174: linReg
A175: 154 | B175: linRegAur_RX_1 | C175: 0.2372432091 | D175: Aur_RX_1 | E175: linReg
A176: 155 | B176: linRegAur_RX_1 | C176: 0.2372432091 | D176: Aur_RX_1 | E176: linReg
A177: 156 | B177: linRegAur_RX_1 | C177: 0.2372432091 | D177: Aur_RX_1 | E177: linReg
A178: 157 | B178: linRegAur_RX_1 | C178: 0.2372432091 | D178: Aur_RX_1 | E178: linReg
A179: 158 | B179: linRegAur_RX_1 | C179: 0.2372432091 | D179: Aur_RX_1 | E179: linReg
A180: 159 | B180: linRegAur_RX_1 | C180: 0.2372432091 | D180: Aur_RX_1 | E180: linReg
A181: 160 | B181: linRegAur_RX_1 | C181: 0.2372432091 | D181: Aur_RX_1 | E181: linReg
A182: 161 | B182: linRegAur_RX_1 | C182: 0.2372432091 | D182: Aur_RX_1 | E182: linReg
A183: 162 | B183: linRegAur_RX_1 | C183: 0.2372432091 | D183: Aur_RX_1 | E183: linReg
A184: 163 | B184: linRegAur_RX_1 | C184: 0.2372432091 | D184: Aur_RX_1 | E184: linReg
A185: 164 | B185: linRegAur_RX_1 | C185: 0.2372432091 | D185: Aur_RX_1 | E185: linReg
A186: 165 | B186: linRegAur_RX_1 | C186: 0.2372432091 | D186: Aur_RX_1 | E186: linReg
A187: 166 | B187: linRegAur_RX_1 | C187: 0.2372432091 | D187: Aur_RX_1 | E187: linReg
A188: 167 | B188: linRegAur_RX_1 | C188: 0.2372432091 | D188: Aur_RX_1 | E188: linReg
A189: 168 | B189: linRegAur_RX_1 | C189: 0.2372432091 | D189: Aur_RX_1 | E189: linReg
A190: 169 | B190: linRegAur_RX_1 | C190: 0.2372432091 | D190: Aur_RX_1 | E190: linReg
A191: 170 | B191: linRegAur_RX_1 | C191: 0.2372432091 | D191: Aur_RX_1 | E191: linReg
A192: 171 | B192: linRegAur_RX_1 | C192: 0.2372432091 | D192: Aur_RX_1 | E192: linReg
A193: 172 | B193: linRegAur_RX_1 | C193: 0.2372432091 | D193: Aur_RX_1 | E193: linReg
A194: 173 | B194: linRegAur_RX_1 | C194: 0.2372432091 | D194: Aur_RX_1 | E194: linReg
A195: 174 | B195: linRegAur_RX_1 | C195: 0.2372432091 | D195: Aur_RX_1 | E195: linReg
A196: 175 | B196: linRegAur_RX_1 | C196: 0.2372432091 | D196: Aur_RX_1 | E196: linReg
A197: 176 | B197: linRegAur_RX_1 | C197: 0.2372432091 | D197: Aur_RX_1 | E197: linReg
A198: 177 | B198: linRegAur_RX_1 | C198: 0.2372432091 | D198: Aur_RX_1 | E198: linReg
A199: 178 | B199: linRegAur_RX_1 | C199: 0.2372432091 | D199: Aur_RX_1 | E199: linReg
A200: 179 | B200: linRegAur_RX_1 | C200: 0.2372432091 | D200: Aur_RX_1 | E200: linReg
A201: 180 | B201: linRegAur_RX_1 | C201: 0.2372432091 | D201: Aur_RX_1 | E201: linReg
A202: 181 | B202: linRegAur_RX_1 | C202: 0.2372432091 | D202: Aur_RX_1 | E202: linReg
A203: 182 | B203: linRegAur_RX_1 | C203: 0.2372432091 | D203: Aur_RX_1 | E203: linReg
A204: 183 | B204: linRegAur_RX_1 | C204: 0.2372432091 | D204: Aur_RX_1 | E204: linReg
A205: 184 | B205: linRegAur_RX_1 | C205: 0.2372432091 | D205: Aur_RX_1 | E205: linReg
A206: 185 | B206: linRegAur_RX_1 | C206: 0.2372432091 | D206: Aur_RX_1 | E206: linReg
A207: 186 | B207: linRegAur_RX_1 | C207: 0.2372432091 | D207: Aur_RX_1 | E207: linReg
... 424 more rows

Sheet Lichtkurve_Aur_RX
H3: =AVERAGE(H6:H51) -> 0.06080561122
B5: Aufnahme | C5: JD | D5: RX Aur | E5: RX Aur unplausibel | F5: HD31500 | G5: check2 | H5: Messgenauigkeit | I5: Bemerkung
B6: 20191124_0657 | C6: 2458812.359 | D6: 7.615304 | F6: 7.19854 | H6: 0.04559012382
B7: 20191127_0127 | C7: 2458815.497 | D7: 7.499004 | F7: 7.182616 | H7: 0.05122257761
B8: 20191127_0847 | C8: 2458815.254 | D8: 7.497212 | F8: 7.198856 | H8: 0.05243102185
B9: 20191128_0397 | C9: 2458816.245 | D9: 7.544924 | F9: 7.168156 | H9: 0.0564836053
B10: 20191129_0787 | C10: 2458817.407 | D10: 7.5911 | F10: 7.1815 | H10: 0.04599589547
B11: 20191130_0417 | C11: 2458818.34 | D11: 7.816719 | F11: 7.164984 | H11: 0.045429644
B12: 20191203_0183 | C12: 2458821.32 | D12: 7.976316 | F12: 7.159724 | H12: 0.05517892144
B13: 20191204_0030 | C13: 2458822.249 | D13: 7.866073 | F13: 7.187472 | H13: 0.04576103828
B14: 20191206_0264 | C14: 2458824.32 | D14: 7.534898 | F14: 7.19605 | H14: 0.05563411091
B15: 20191228_0618 | C15: 2458846.472 | D15: 7.761554 | F15: 7.20584 | H15: 0.03983145231
B16: 20191229_1017 | C16: 2458847.25 | D16: 7.624076 | F16: 7.192684 | H16: 0.08199175993
B17: 20191230_0863 | C17: 2458848.347 | D17: 7.343032 | F17: 7.202188 | H17: 0.06109255183
B18: 20200103_0178 | C18: 2458852.415 | D18: 7.667018 | F18: 7.171068 | H18: 0.02374588297
B19: 20200105_0186 | C19: 2458854.383 | D19: 7.9599 | F19: 7.2342 | H19: 0.07950578595
B20: 20200106_0502 | C20: 2458855.251 | D20: 8.041076 | F20: 7.203509 | H20: 0.06534762137
B21: 20200111_0770 | C21: 2458860.288 | D21: 7.315645 | F21: 7.20481 | H21: 0.06885602443
B22: 20200113_0986 | C22: 2458862.324 | D22: 7.523689 | F22: 7.185455 | H22: 0.07743055568
B23: 20200220_0226 | C23: 2458900.408 | D23: 7.952565 | F23: 7.252285 | H23: 0.09395976611
B24: 20200319_0217 | C24: 2458928.322 | D24: 7.683058 | F24: 7.243091 | H24: 0.09237297102
B25: 20200320_0451 | C25: 2458929.277 | D25: 7.45567 | F25: 7.21164 | H25: 0.02038046261
B26: 20200322_0128 | C26: 2458931.309 | D26: 7.449474 | F26: 7.229754 | H26: 0.01321033432
B27: 20200323_0046 | C27: 2458932.319 | D27: 7.586968 | F27: 7.241636 | H27: 0.09932356749
B28: 20200324_0100 | C28: 2458933.317 | D28: 7.6948 | F28: 7.24784 | H28: 0.09953864152
B29: 20200325_0082 | C29: 2458934.317 | D29: 7.778319 | F29: 7.300681 | H29: 0.01546613915
B30: 20200326_0046 | C30: 2458935.311 | D30: 7.875857 | F30: 7.239055 | H30: 0.020240034
B31: 20200326_0190 | C31: 2458935.45 | D31: 7.964314 | F31: 7.209366 | H31: 0.01060492637
B32: 20200327_0082 | C32: 2458936.314 | D32: 7.9517 | F32: 7.232612 | H32: 0.01774141124
B33: 20200328_0082 | C33: 2458937.316 | D33: 8.068574 | F33: 7.245868 | H33: 0.1001755881
B34: 20200328_0199 | C34: 2458937.345 | D34: 8.029112 | F34: 7.257128 | H34: 0.08826006944
B35: 20200328_0226 | C35: 2458937.359 | D35: 8.03559 | F35: 7.24157 | H35: 0.09479093592
B36: 20200330_0037 | C36: 2458939.303 | D36: 7.829438 | F36: 7.256249 | H36: 0.1094296241
B37: 20200330_0291 | C37: 2458939.417 | D37: 7.825702 | F37: 7.282282 | H37: 0.04896435259
B38: 20200331_0064 | C38: 2458940.33 | D38: 7.634748 | F38: 7.252444 | H38: 0.0614282417
B39: 20200401_0046 | C39: 2458941.314 | D39: 7.365864 | F39: 7.101736 | H39: 0.08221020243
B40: 20200402_0037 | C40: 2458942.32 | D40: 7.25734 | F40: 7.28712 | H40: 0.106958242
B41: 20200403_0055 | C41: 2458943.312 | D41: 7.5184 | F41: 7.1884 | H41: 0.1260708041 | M41: Helligkeit | N41: 7.28-8.02
B42: 20200403_0091 | C42: 2458943.324 | D42: 7.56908 | F42: 7.1593 | H42: 0.06643913194 | M42: Amplitude | N42: 0.74
B43: 20200404_0127 | C43: 2458944.322 | D43: 7.58272 | F43: 7.281412 | H43: 0.05866976489 | M43: Periode | N43: 11.62
B44: 20200405_0145 | C44: 2458945.335 | D44: 7.755328 | F44: 7.268437 | H44: 0.04719515037
B45: 20200406_0118 | C45: 2458946.328 | D45: 7.852163 | F45: 7.214195 | H45: 0.03638623884
B46: 20200407_0154 | C46: 2458947.339 | D46: 7.967303 | F46: 7.276445 | H46: 0.0487512743
B47: 20200408_0109 | C47: 2458948.352 | D47: 8.02844 | F47: 7.266855 | H47: 0.05409521195
B48: 20200409_1019 | C48: 2458949.333 | D48: 8.024822 | F48: 7.309139 | H48: 0.05614524711
B49: 20200410_0046 | C49: 2458950.307 | D49: 7.933777 | F49: 7.331758 | H49: 0.06097979515
B50: 20200410_0118 | C50: 2458950.354 | D50: 7.84646 | F50: 7.31398 | H50: 0.06144223376
B51: 20200411_0253 | C51: 2458951.312 | D51: 7.678182 | F51: 7.279058 | H51: 0.05429918017

Sheet PSFData
A1: ExID | B1: Chart | C1: AUID | D1: Label | E1: KatMag | F1: LabelSec | G1: Serie | H1: Dateiname | I1: Bild_X | J1: Bild_Y | K1: fwhmA | L1: fwhmB | M1: Flux | N1: InstMag | O1: Ueberbel | P1: Back | Q1: Filter | R1: Method | S1: Program | T1: Objective_F | U1: ISO | V1: Camera | W1: Aperture | X1: BelZeit_sec | Y1: Imagesize_p | Z1: Frames | AA1: FullJD | AB1: Fokussierung | AC1: Himmel | AD1: Remark | AE1: DataInputDate
A2: 1 | B2: Gaia DR2 | C2: RX Aur | D2: RX Aur | G2: 20200411_0253 | H2: 20200411_0253_100mm_ISO800_D3300_F5,6_10sec_9F_Aur_RX_SY.fit Grün | I2: 1797.29 | J2: 2645.7 | K2: 3.37 | L2: 2.46 | M2: 5187127 | N2: -16.79 | O2: 0 | P2: 0 | Q2: TG | R2: PSF | S2: Fitswork447 | T2: 100mm | U2: 800 | V2: D3300 | W2: 5.6 | X2: 1 | Y2: 6000 | Z2: 9 | AA2: 2458951.312 | AB2: scharf | AE2: 2020-05-01
A3: 2 | B3: Gaia DR2 | C3: HD33462 | D3: 70 | E3: 6.97 | F3: HD33462 | G3: 20200411_0253 | H3: 20200411_0253_100mm_ISO800_D3300_F5,6_10sec_9F_Aur_RX_SY.fit Grün | I3: 990.95 | J3: 2231.73 | K3: 3.78 | L3: 2.75 | M3: 7605031.5 | N3: -17.2 | O3: 0 | P3: 0 | Q3: TG | R3: PSF | S3: Fitswork447 | T3: 100mm | U3: 800 | V3: D3300 | W3: 5.6 | X3: 1 | Y3: 6000 | Z3: 9 | AA3: 2458951.312 | AE3: 2020-05-01
A4: 3 | B4: Gaia DR2 | C4: HD31500 | D4: 72 | E4: 7.21 | F4: HD31500 | G4: 20200411_0253 | H4: 20200411_0253_100mm_ISO800_D3300_F5,6_10sec_9F_Aur_RX_SY.fit Grün | I4: 2056.93 | J4: 2706.52 | K4: 3.52 | L4: 2.68 | M4: 6393760 | N4: -17.01 | O4: 0 | P4: 0 | Q4: TG | R4: PSF | S4: Fitswork447 | T4: 100mm | U4: 800 | V4: D3300 | W4: 5.6 | X4: 1 | Y4: 6000 | Z4: 9 | AA4: 2458951.312 | AE4: 2020-05-01
A5: 4 | B5: Gaia DR2 | C5: Gaia DR2 200851779077093504 | D5: 76 | E5: 7.62 | G5: 20200411_0253 | H5: 20200411_0253_100mm_ISO800_D3300_F5,6_10sec_9F_Aur_RX_SY.fit Grün | I5: 1763.93 | J5: 2353.05 | K5: 3.39 | L5: 2.62 | M5: 5386021.5 | N5: -16.83 | O5: 0 | P5: 0 | Q5: TG | R5: PSF | S5: Fitswork447 | T5: 100mm | U5: 800 | V5: D3300 | W5: 5.6 | X5: 1 | Y5: 6000 | Z5: 9 | AA5: 2458951.312 | AE5: 2020-05-01
A6: 5 | B6: Gaia DR2 | C6: Gaia DR2 200778352314940416 | D6: 80 | E6: 7.98 | G6: 20200411_0253 | H6: 20200411_0253_100mm_ISO800_D3300_F5,6_10sec_9F_Aur_RX_SY.fit Grün | I6: 1940.36 | J6: 2530.45 | K6: 3.37 | L6: 2.49 | M6: 4451157 | N6: -16.62 | O6: 0 | P6: 0 | Q6: TG | R6: PSF | S6: Fitswork447 | T6: 100mm | U6: 800 | V6: D3300 | W6: 5.6 | X6: 1 | Y6: 6000 | Z6: 9 | AA6: 2458951.312 | AE6: 2020-05-01
A7: 6 | B7: Gaia DR2 | C7: Gaia DR2 200527869820934784 | D7: 81 | E7: 8.07 | G7: 20200411_0253 | H7: 20200411_0253_100mm_ISO800_D3300_F5,6_10sec_9F_Aur_RX_SY.fit Grün | I7: 1517.84 | J7: 2596.92 | K7: 3.28 | L7: 2.46 | M7: 4133516.5 | N7: -16.54 | O7: 0 | P7: 0 | Q7: TG | R7: PSF | S7: Fitswork447 | T7: 100mm | U7: 800 | V7: D3300 | W7: 5.6 | X7: 1 | Y7: 6000 | Z7: 9 | AA7: 2458951.312 | AE7: 2020-05-01
A8: 7 | B8: Gaia DR2 | C8: HD32234 | D8: 81 | E8: 8.11 | F8: HD32234 | G8: 20200411_0253 | H8: 20200411_0253_100mm_ISO800_D3300_F5,6_10sec_9F_Aur_RX_SY.fit Grün | I8: 1657.91 | J8: 2533 | K8: 3.27 | L8: 2.48 | M8: 4378289 | N8: -16.6 | O8: 0 | P8: 0 | Q8: TG | R8: PSF | S8: Fitswork447 | T8: 100mm | U8: 800 | V8: D3300 | W8: 5.6 | X8: 1 | Y8: 6000 | Z8: 9 | AA8: 2458951.312 | AE8: 2020-05-01
A9: 8 | B9: Gaia DR2 | C9: RX Aur | D9: RX Aur | G9: 20200410_0118 | H9: 20200410_0118_100mm_ISO800_D3300_F5,6_10sec_9F_Aur_RX_SY.fit Grün | I9: 2507.67 | J9: 2798.66 | K9: 3.53 | L9: 2.6 | M9: 4819690.5 | N9: -16.71 | O9: 0 | P9: 0 | Q9: TG | R9: PSF | S9: Fitswork447 | T9: 100mm | U9: 800 | V9: D3300 | W9: 5.6 | X9: 1 | Y9: 6000 | Z9: 9 | AA9: 2458950.354 | AE9: 2020-05-01
A10: 9 | B10: Gaia DR2 | C10: HD33462 | D10: 70 | E10: 6.97 | F10: HD33462 | G10: 20200410_0118 | H10: 20200410_0118_100mm_ISO800_D3300_F5,6_10sec_9F_Aur_RX_SY.fit Grün | I10: 1677.35 | J10: 2441.45 | K10: 4.08 | L10: 2.87 | M10: 8065284 | N10: -17.27 | O10: 0 | P10: 0 | Q10: TG | R10: PSF | S10: Fitswork447 | T10: 100mm | U10: 800 | V10: D3300 | W10: 5.6 | X10: 1 | Y10: 6000 | Z10: 9 | AA10: 2458950.354 | AE10: 2020-05-01
A11: 10 | B11: Gaia DR2 | C11: HD31500 | D11: 72 | E11: 7.21 | F11: HD31500 | G11: 20200410_0118 | H11: 20200410_0118_100mm_ISO800_D3300_F5,6_10sec_9F_Aur_RX_SY.fit Grün | I11: 2770.44 | J11: 2841.61 | K11: 3.66 | L11: 2.74 | M11: 6467803.5 | N11: -17.03 | O11: 0 | P11: 0 | Q11: TG | R11: PSF | S11: Fitswork447 | T11: 100mm | U11: 800 | V11: D3300 | W11: 5.6 | X11: 1 | Y11: 6000 | Z11: 9 | AA11: 2458950.354 | AE11: 2020-05-01
A12: 11 | B12: Gaia DR2 | C12: Gaia DR2 200851779077093504 | D12: 76 | E12: 7.62 | G12: 20200410_0118 | H12: 20200410_0118_100mm_ISO800_D3300_F5,6_10sec_9F_Aur_RX_SY.fit Grün | I12: 2454.35 | J12: 2509.31 | K12: 3.53 | L12: 2.62 | M12: 5551378 | N12: -16.86 | O12: 0 | P12: 0 | Q12: TG | R12: PSF | S12: Fitswork447 | T12: 100mm | U12: 800 | V12: D3300 | W12: 5.6 | X12: 1 | Y12: 6000 | Z12: 9 | AA12: 2458950.354 | AE12: 2020-05-01
A13: 12 | B13: Gaia DR2 | C13: Gaia DR2 200778352314940416 | D13: 80 | E13: 7.98 | G13: 20200410_0118 | H13: 20200410_0118_100mm_ISO800_D3300_F5,6_10sec_9F_Aur_RX_SY.fit Grün | I13: 2642.22 | J13: 2673.99 | K13: 3.44 | L13: 2.56 | M13: 4408964 | N13: -16.61 | O13: 0 | P13: 0 | Q13: TG | R13: PSF | S13: Fitswork447 | T13: 100mm | U13: 800 | V13: D3300 | W13: 5.6 | X13: 1 | Y13: 6000 | Z13: 9 | AA13: 2458950.354 | AE13: 2020-05-01
A14: 13 | B14: Gaia DR2 | C14: Gaia DR2 200527869820934784 | D14: 81 | E14: 8.07 | G14: 20200410_0118 | H14: 20200410_0118_100mm_ISO800_D3300_F5,6_10sec_9F_Aur_RX_SY.fit Grün | I14: 2226.18 | J14: 2769.11 | K14: 3.51 | L14: 2.48 | M14: 4194399.5 | N14: -16.56 | O14: 0 | P14: 0 | Q14: TG | R14: PSF | S14: Fitswork447 | T14: 100mm | U14: 800 | V14: D3300 | W14: 5.6 | X14: 1 | Y14: 6000 | Z14: 9 | AA14: 2458950.354 | AE14: 2020-05-01
A15: 14 | B15: Gaia DR2 | C15: HD32234 | D15: 81 | E15: 8.11 | F15: HD32234 | G15: 20200410_0118 | H15: 20200410_0118_100mm_ISO800_D3300_F5,6_10sec_9F_Aur_RX_SY.fit Grün | I15: 2361.19 | J15: 2695.87 | K15: 3.61 | L15: 2.55 | M15: 4363758 | N15: -16.6 | O15: 0 | P15: 0 | Q15: TG | R15: PSF | S15: Fitswork447 | T15: 100mm | U15: 800 | V15: D3300 | W15: 5.6 | X15: 1 | Y15: 6000 | Z15: 9 | AA15: 2458950.354 | AE15: 2020-05-01
A16: 15 | B16: Gaia DR2 | C16: RX Aur | D16: RX Aur | G16: 20200410_0046 | H16: 20200410_0046_100mm_ISO800_D3300_F5,6_10sec_9F_Aur_RX_SY.fit Grün | I16: 2082.29 | J16: 2763.77 | K16: 3.29 | L16: 2.43 | M16: 4404403 | N16: -16.61 | O16: 0 | P16: 0 | Q16: TG | R16: PSF | S16: Fitswork447 | T16: 100mm | U16: 800 | V16: D3300 | W16: 5.6 | X16: 1 | Y16: 6000 | Z16: 9 | AA16: 2458950.307 | AE16: 2020-05-01
A17: 16 | B17: Gaia DR2 | C17: HD33462 | D17: 70 | E17: 6.97 | F17: HD33462 | G17: 20200410_0046 | H17: 20200410_0046_100mm_ISO800_D3300_F5,6_10sec_9F_Aur_RX_SY.fit Grün | I17: 1235.77 | J17: 2440.99 | K17: 3.6 | L17: 2.75 | M17: 7387004.5 | N17: -17.17 | O17: 0 | P17: 0 | Q17: TG | R17: PSF | S17: Fitswork447 | T17: 100mm | U17: 800 | V17: D3300 | W17: 5.6 | X17: 1 | Y17: 6000 | Z17: 9 | AA17: 2458950.307 | AE17: 2020-05-01
A18: 17 | B18: Gaia DR2 | C18: HD31500 | D18: 72 | E18: 7.21 | F18: HD31500 | G18: 20200410_0046 | H18: 20200410_0046_100mm_ISO800_D3300_F5,6_10sec_9F_Aur_RX_SY.fit Grün | I18: 2346.95 | J18: 2795.84 | K18: 3.63 | L18: 2.51 | M18: 5946102.5 | N18: -16.94 | O18: 0 | P18: 0 | Q18: TG | R18: PSF | S18: Fitswork447 | T18: 100mm | U18: 800 | V18: D3300 | W18: 5.6 | X18: 1 | Y18: 6000 | Z18: 9 | AA18: 2458950.307 | AE18: 2020-05-01
A19: 18 | B19: Gaia DR2 | C19: Gaia DR2 200851779077093504 | D19: 76 | E19: 7.62 | G19: 20200410_0046 | H19: 20200410_0046_100mm_ISO800_D3300_F5,6_10sec_9F_Aur_RX_SY.fit Grün | I19: 2016.88 | J19: 2476.58 | K19: 3.35 | L19: 2.49 | M19: 5235315.5 | N19: -16.8 | O19: 0 | P19: 0 | Q19: TG | R19: PSF | S19: Fitswork447 | T19: 100mm | U19: 800 | V19: D3300 | W19: 5.6 | X19: 1 | Y19: 6000 | Z19: 9 | AA19: 2458950.307 | AE19: 2020-05-01
A20: 19 | B20: Gaia DR2 | C20: Gaia DR2 200778352314940416 | D20: 80 | E20: 7.98 | G20: 20200410_0046 | H20: 20200410_0046_100mm_ISO800_D3300_F5,6_10sec_9F_Aur_RX_SY.fit Grün | I20: 2211.73 | J20: 2633.5 | K20: 3.26 | L20: 2.4 | M20: 4409926.5 | N20: -16.61 | O20: 0 | P20: 0 | Q20: TG | R20: PSF | S20: Fitswork447 | T20: 100mm | U20: 800 | V20: D3300 | W20: 5.6 | X20: 1 | Y20: 6000 | Z20: 9 | AA20: 2458950.307 | AE20: 2020-05-01
A21: 20 | B21: Gaia DR2 | C21: Gaia DR2 200527869820934784 | D21: 81 | E21: 8.07 | G21: 20200410_0046 | H21: 20200410_0046_100mm_ISO800_D3300_F5,6_10sec_9F_Aur_RX_SY.fit Grün | I21: 1799.18 | J21: 2746.07 | K21: 3.26 | L21: 2.28 | M21: 4052305 | N21: -16.52 | O21: 0 | P21: 0 | Q21: TG | R21: PSF | S21: Fitswork447 | T21: 100mm | U21: 800 | V21: D3300 | W21: 5.6 | X21: 1 | Y21: 6000 | Z21: 9 | AA21: 2458950.307 | AE21: 2020-05-01
A22: 21 | B22: Gaia DR2 | C22: HD32234 | D22: 81 | E22: 8.11 | F22: HD32234 | G22: 20200410_0046 | H22: 20200410_0046_100mm_ISO800_D3300_F5,6_10sec_9F_Aur_RX_SY.fit Grün | I22: 1931.41 | J22: 2667.08 | K22: 3.19 | L22: 2.47 | M22: 4071977.25 | N22: -16.52 | O22: 0 | P22: 0 | Q22: TG | R22: PSF | S22: Fitswork447 | T22: 100mm | U22: 800 | V22: D3300 | W22: 5.6 | X22: 1 | Y22: 6000 | Z22: 9 | AA22: 2458950.307 | AE22: 2020-05-01
A23: 22 | B23: Gaia DR2 | C23: RX Aur | D23: RX Aur | G23: 20200409_1019 | H23: 20200409_1019_100mm_ISO800_D3300_F5,6_10sec_9F_Aur_RX_SY.fit Grün | I23: 1324.57 | J23: 2864.17 | K23: 3.54 | L23: 3.16 | M23: 4622980 | N23: -16.66 | O23: 0 | P23: 0 | Q23: TG | R23: PSF | S23: Fitswork447 | T23: 100mm | U23: 800 | V23: D3300 | W23: 5.6 | X23: 1 | Y23: 6000 | Z23: 9 | AA23: 2458949.333 | AE23: 2020-05-01
A24: 23 | B24: Gaia DR2 | C24: HD33462 | D24: 70 | E24: 6.97 | F24: HD33462 | G24: 20200409_1019 | H24: 20200409_1019_100mm_ISO800_D3300_F5,6_10sec_9F_Aur_RX_SY.fit Grün | I24: 469.09 | J24: 2553.48 | K24: 4 | L24: 3.64 | M24: 9576314 | N24: -17.45 | O24: 0 | P24: 0 | Q24: TG | R24: PSF | S24: Fitswork447 | T24: 100mm | U24: 800 | V24: D3300 | W24: 5.6 | X24: 1 | Y24: 6000 | Z24: 9 | AA24: 2458949.333 | AE24: 2020-05-01
A25: 24 | B25: Gaia DR2 | C25: HD31500 | D25: 72 | E25: 7.21 | F25: HD31500 | G25: 20200409_1019 | H25: 20200409_1019_100mm_ISO800_D3300_F5,6_10sec_9F_Aur_RX_SY.fit Grün | I25: 1590.73 | J25: 2892.04 | K25: 3.73 | L25: 3.43 | M25: 7385905 | N25: -17.17 | O25: 0 | P25: 0 | Q25: TG | R25: PSF | S25: Fitswork447 | T25: 100mm | U25: 800 | V25: D3300 | W25: 5.6 | X25: 1 | Y25: 6000 | Z25: 9 | AA25: 2458949.333 | AE25: 2020-05-01
A26: 25 | B26: Gaia DR2 | C26: Gaia DR2 200851779077093504 | D26: 76 | E26: 7.62 | G26: 20200409_1019 | H26: 20200409_1019_100mm_ISO800_D3300_F5,6_10sec_9F_Aur_RX_SY.fit Grün | I26: 1254.85 | J26: 2577.29 | K26: 3.5 | L26: 3.35 | M26: 6114309 | N26: -16.97 | O26: 0 | P26: 0 | Q26: TG | R26: PSF | S26: Fitswork447 | T26: 100mm | U26: 800 | V26: D3300 | W26: 5.6 | X26: 1 | Y26: 6000 | Z26: 9 | AA26: 2458949.333 | AE26: 2020-05-01
A27: 26 | B27: Gaia DR2 | C27: Gaia DR2 200778352314940416 | D27: 80 | E27: 7.98 | G27: 20200409_1019 | H27: 20200409_1019_100mm_ISO800_D3300_F5,6_10sec_9F_Aur_RX_SY.fit Grün | I27: 1452.74 | J27: 2731.52 | K27: 3.41 | L27: 3.22 | M27: 4625952 | N27: -16.66 | O27: 0 | P27: 0 | Q27: TG | R27: PSF | S27: Fitswork447 | T27: 100mm | U27: 800 | V27: D3300 | W27: 5.6 | X27: 1 | Y27: 6000 | Z27: 9 | AA27: 2458949.333 | AE27: 2020-05-01
A28: 27 | B28: Gaia DR2 | C28: Gaia DR2 200527869820934784 | D28: 81 | E28: 8.07 | G28: 20200409_1019 | H28: 20200409_1019_100mm_ISO800_D3300_F5,6_10sec_9F_Aur_RX_SY.fit Grün | I28: 1039.99 | J28: 2850.75 | K28: 3.49 | L28: 3.18 | M28: 4501119.5 | N28: -16.63 | O28: 0 | P28: 0 | Q28: TG | R28: PSF | S28: Fitswork447 | T28: 100mm | U28: 800 | V28: D3300 | W28: 5.6 | X28: 1 | Y28: 6000 | Z28: 9 | AA28: 2458949.333 | AE28: 2020-05-01
A29: 28 | B29: Gaia DR2 | C29: HD32234 | D29: 81 | E29: 8.11 | F29: HD32234 | G29: 20200409_1019 | H29: 20200409_1019_100mm_ISO800_D3300_F5,6_10sec_9F_Aur_RX_SY.fit Grün | I29: 1171.67 | J29: 2769.58 | K29: 3.42 | L29: 3.17 | M29: 4530016 | N29: -16.64 | O29: 0 | P29: 0 | Q29: TG | R29: PSF | S29: Fitswork447 | T29: 100mm | U29: 800 | V29: D3300 | W29: 5.6 | X29: 1 | Y29: 6000 | Z29: 9 | AA29: 2458949.333 | AE29: 2020-05-01
A30: 29 | B30: Gaia DR2 | C30: RX Aur | D30: RX Aur | G30: 20200408_0109 | H30: 20200408_0109_100mm_ISO800_D3300_F5,6_10sec_9F_Aur_RX_SY.fit Grün | I30: 1751.26 | J30: 2748.76 | K30: 5.48 | L30: 4.07 | M30: 5040102.5 | N30: -16.76 | O30: 0 | P30: 0 | Q30: TG | R30: PSF | S30: Fitswork447 | T30: 100mm | U30: 800 | V30: D3300 | W30: 5.6 | X30: 1 | Y30: 6000 | Z30: 9 | AA30: 2458948.352 | AE30: 2020-05-01
A31: 30 | B31: Gaia DR2 | C31: HD33462 | D31: 70 | E31: 6.97 | F31: HD33462 | G31: 20200408_0109 | H31: 20200408_0109_100mm_ISO800_D3300_F5,6_10sec_9F_Aur_RX_SY.fit Grün | I31: 1012.2 | J31: 2226.55 | K31: 5.98 | L31: 4.46 | M31: 11361501 | N31: -17.64 | O31: 0 | P31: 0 | Q31: TG | R31: PSF | S31: Fitswork447 | T31: 100mm | U31: 800 | V31: D3300 | W31: 5.6 | X31: 1 | Y31: 6000 | Z31: 9 | AA31: 2458948.352 | AE31: 2020-05-01
A32: 31 | B32: Gaia DR2 | C32: HD31500 | D32: 72 | E32: 7.21 | F32: HD31500 | G32: 20200408_0109 | H32: 20200408_0109_100mm_ISO800_D3300_F5,6_10sec_9F_Aur_RX_SY.fit Grün | I32: 1999.55 | J32: 2845.37 | K32: 5.56 | L32: 4.18 | M32: 8890962 | N32: -17.37 | O32: 0 | P32: 0 | Q32: TG | R32: PSF | S32: Fitswork447 | T32: 100mm | U32: 800 | V32: D3300 | W32: 5.6 | X32: 1 | Y32: 6000 | Z32: 9 | AA32: 2458948.352 | AE32: 2020-05-01
A33: 32 | B33: Gaia DR2 | C33: Gaia DR2 200851779077093504 | D33: 76 | E33: 7.62 | G33: 20200408_0109 | H33: 20200408_0109_100mm_ISO800_D3300_F5,6_10sec_9F_Aur_RX_SY.fit Grün | I33: 1759.42 | J33: 2454.61 | K33: 5.53 | L33: 4.43 | M33: 6726619.5 | N33: -17.07 | O33: 0 | P33: 0 | Q33: TG | R33: PSF | S33: Fitswork447 | T33: 100mm | U33: 800 | V33: D3300 | W33: 5.6 | X33: 1 | Y33: 6000 | Z33: 9 | AA33: 2458948.352 | AE33: 2020-05-01
A34: 33 | B34: Gaia DR2 | C34: Gaia DR2 200778352314940416 | D34: 80 | E34: 7.98 | G34: 20200408_0109 | H34: 20200408_0109_100mm_ISO800_D3300_F5,6_10sec_9F_Aur_RX_SY.fit Grün | I34: 1909.17 | J34: 2654.67 | K34: 5.35 | L34: 4.39 | M34: 5238605 | N34: -16.8 | O34: 0 | P34: 0 | Q34: TG | R34: PSF | S34: Fitswork447 | T34: 100mm | U34: 800 | V34: D3300 | W34: 5.6 | X34: 1 | Y34: 6000 | Z34: 9 | AA34: 2458948.352 | AE34: 2020-05-01
A35: 34 | B35: Gaia DR2 | C35: Gaia DR2 200527869820934784 | D35: 81 | E35: 8.07 | G35: 20200408_0109 | H35: 20200408_0109_100mm_ISO800_D3300_F5,6_10sec_9F_Aur_RX_SY.fit Grün | I35: 1481.66 | J35: 2661.43 | K35: 5.61 | L35: 4.03 | M35: 4708324.5 | N35: -16.68 | O35: 0 | P35: 0 | Q35: TG | R35: PSF | S35: Fitswork447 | T35: 100mm | U35: 800 | V35: D3300 | W35: 5.6 | X35: 1 | Y35: 6000 | Z35: 9 | AA35: 2458948.352 | AE35: 2020-05-01
A36: 35 | B36: Gaia DR2 | C36: HD32234 | D36: 81 | E36: 8.11 | F36: HD32234 | G36: 20200408_0109 | H36: 20200408_0109_100mm_ISO800_D3300_F5,6_10sec_9F_Aur_RX_SY.fit Grün | I36: 1629.21 | J36: 2617.81 | K36: 5.56 | L36: 4.23 | M36: 5119913 | N36: -16.77 | O36: 0 | P36: 0 | Q36: TG | R36: PSF | S36: Fitswork447 | T36: 100mm | U36: 800 | V36: D3300 | W36: 5.6 | X36: 1 | Y36: 6000 | Z36: 9 | AA36: 2458948.352 | AE36: 2020-05-01
A37: 36 | B37: Gaia DR2 | C37: RX Aur | D37: RX Aur | G37: 20200407_0154 | H37: 20200407_0154_100mm_ISO800_D3300_F5,6_10sec_9F_Aur_RX_SY.fit Grün | I37: 2314.37 | J37: 2778.86 | K37: 3.33 | L37: 2.6 | M37: 4081492 | N37: -16.53 | O37: 0 | P37: 0 | Q37: TG | R37: PSF | S37: Fitswork447 | T37: 100mm | U37: 800 | V37: D3300 | W37: 5.6 | X37: 1 | Y37: 6000 | Z37: 9 | AA37: 2458947.339 | AE37: 2020-05-01
A38: 37 | B38: Gaia DR2 | C38: HD33462 | D38: 70 | E38: 6.97 | F38: HD33462 | G38: 20200407_0154 | H38: 20200407_0154_100mm_ISO800_D3300_F5,6_10sec_9F_Aur_RX_SY.fit Grün | I38: 1448.19 | J38: 2518.21 | K38: 4.1 | L38: 2.83 | M38: 7308606 | N38: -17.16 | O38: 0 | P38: 0 | Q38: TG | R38: PSF | S38: Fitswork447 | T38: 100mm | U38: 800 | V38: D3300 | W38: 5.6 | X38: 1 | Y38: 6000 | Z38: 9 | AA38: 2458947.339 | AE38: 2020-05-01
A39: 38 | B39: Gaia DR2 | C39: HD31500 | D39: 72 | E39: 7.21 | F39: HD31500 | G39: 20200407_0154 | H39: 20200407_0154_100mm_ISO800_D3300_F5,6_10sec_9F_Aur_RX_SY.fit Grün | I39: 2580.36 | J39: 2791.67 | K39: 3.57 | L39: 2.86 | M39: 6018624.5 | N39: -16.95 | O39: 0 | P39: 0 | Q39: TG | R39: PSF | S39: Fitswork447 | T39: 100mm | U39: 800 | V39: D3300 | W39: 5.6 | X39: 1 | Y39: 6000 | Z39: 9 | AA39: 2458947.339 | AE39: 2020-05-01
A40: 39 | B40: Gaia DR2 | C40: Gaia DR2 200851779077093504 | D40: 76 | E40: 7.62 | G40: 20200407_0154 | H40: 20200407_0154_100mm_ISO800_D3300_F5,6_10sec_9F_Aur_RX_SY.fit Grün | I40: 2228.52 | J40: 2497.43 | K40: 3.5 | L40: 2.74 | M40: 4982960.5 | N40: -16.74 | O40: 0 | P40: 0 | Q40: TG | R40: PSF | S40: Fitswork447 | T40: 100mm | U40: 800 | V40: D3300 | W40: 5.6 | X40: 1 | Y40: 6000 | Z40: 9 | AA40: 2458947.339 | AE40: 2020-05-01
A41: 40 | B41: Gaia DR2 | C41: Gaia DR2 200778352314940416 | D41: 80 | E41: 7.98 | G41: 20200407_0154 | H41: 20200407_0154_100mm_ISO800_D3300_F5,6_10sec_9F_Aur_RX_SY.fit Grün | I41: 2433.96 | J41: 2639.73 | K41: 3.3 | L41: 2.6 | M41: 4141696.25 | N41: -16.54 | O41: 0 | P41: 0 | Q41: TG | R41: PSF | S41: Fitswork447 | T41: 100mm | U41: 800 | V41: D3300 | W41: 5.6 | X41: 1 | Y41: 6000 | Z41: 9 | AA41: 2458947.339 | AE41: 2020-05-01
A42: 41 | B42: Gaia DR2 | C42: Gaia DR2 200527869820934784 | D42: 81 | E42: 8.07 | G42: 20200407_0154 | H42: 20200407_0154_100mm_ISO800_D3300_F5,6_10sec_9F_Aur_RX_SY.fit Grün | I42: 2031.16 | J42: 2781.49 | K42: 3.24 | L42: 2.46 | M42: 3722637.25 | N42: -16.43 | O42: 0 | P42: 0 | Q42: TG | R42: PSF | S42: Fitswork447 | T42: 100mm | U42: 800 | V42: D3300 | W42: 5.6 | X42: 1 | Y42: 6000 | Z42: 9 | AA42: 2458947.339 | AE42: 2020-05-01
A43: 42 | B43: Gaia DR2 | C43: HD32234 | D43: 81 | E43: 8.11 | F43: HD32234 | G43: 20200407_0154 | H43: 20200407_0154_100mm_ISO800_D3300_F5,6_10sec_9F_Aur_RX_SY.fit Grün | I43: 2157.06 | J43: 2693.44 | K43: 3.42 | L43: 2.52 | M43: 3908218.5 | N43: -16.48 | O43: 0 | P43: 0 | Q43: TG | R43: PSF | S43: Fitswork447 | T43: 100mm | U43: 800 | V43: D3300 | W43: 5.6 | X43: 1 | Y43: 6000 | Z43: 9 | AA43: 2458947.339 | AE43: 2020-05-01
A44: 43 | B44: Gaia DR2 | C44: RX Aur | D44: RX Aur | G44: 20200406_0118 | H44: 20200406_0118_100mm_ISO800_D3300_F5,6_10sec_9F_Aur_RX_SY.fit Grün | I44: 2368.83 | J44: 2980.18 | K44: 4.76 | L44: 3.87 | M44: 6723505 | N44: -17.07 | O44: 0 | P44: 0 | Q44: TG | R44: PSF | S44: Fitswork447 | T44: 100mm | U44: 800 | V44: D3300 | W44: 5.6 | X44: 1 | Y44: 6000 | Z44: 9 | AA44: 2458946.328 | AE44: 2020-05-01
A45: 44 | B45: Gaia DR2 | C45: HD33462 | D45: 70 | E45: 6.97 | F45: HD33462 | G45: 20200406_0118 | H45: 20200406_0118_100mm_ISO800_D3300_F5,6_10sec_9F_Aur_RX_SY.fit Grün | I45: 1550.92 | J45: 2590.6 | K45: 5.11 | L45: 4.14 | M45: 12434507 | N45: -17.74 | O45: 0 | P45: 0 | Q45: TG | R45: PSF | S45: Fitswork447 | T45: 100mm | U45: 800 | V45: D3300 | W45: 5.6 | X45: 1 | Y45: 6000 | Z45: 9 | AA45: 2458946.328 | AE45: 2020-05-01
A46: 45 | B46: Gaia DR2 | C46: HD31500 | D46: 72 | E46: 7.21 | F46: HD31500 | G46: 20200406_0118 | H46: 20200406_0118_100mm_ISO800_D3300_F5,6_10sec_9F_Aur_RX_SY.fit Grün | I46: 2630.33 | J46: 3033.35 | K46: 5.16 | L46: 4.17 | M46: 10469700 | N46: -17.55 | O46: 0 | P46: 0 | Q46: TG | R46: PSF | S46: Fitswork447 | T46: 100mm | U46: 800 | V46: D3300 | W46: 5.6 | X46: 1 | Y46: 6000 | Z46: 9 | AA46: 2458946.328 | AE46: 2020-05-01
A47: 46 | B47: Gaia DR2 | C47: Gaia DR2 200851779077093504 | D47: 76 | E47: 7.62 | G47: 20200406_0118 | H47: 20200406_0118_100mm_ISO800_D3300_F5,6_10sec_9F_Aur_RX_SY.fit Grün | I47: 2326.56 | J47: 2688.31 | K47: 4.64 | L47: 3.83 | M47: 7812855.5 | N47: -17.23 | O47: 0 | P47: 0 | Q47: TG | R47: PSF | S47: Fitswork447 | T47: 100mm | U47: 800 | V47: D3300 | W47: 5.6 | X47: 1 | Y47: 6000 | Z47: 9 | AA47: 2458946.328 | AE47: 2020-05-01
A48: 47 | B48: Gaia DR2 | C48: Gaia DR2 200778352314940416 | D48: 80 | E48: 7.98 | G48: 20200406_0118 | H48: 20200406_0118_100mm_ISO800_D3300_F5,6_10sec_9F_Aur_RX_SY.fit Grün | I48: 2508.32 | J48: 2860.5 | K48: 4.64 | L48: 3.79 | M48: 6157080 | N48: -16.97 | O48: 0 | P48: 0 | Q48: TG | R48: PSF | S48: Fitswork447 | T48: 100mm | U48: 800 | V48: D3300 | W48: 5.6 | X48: 1 | Y48: 6000 | Z48: 9 | AA48: 2458946.328 | AE48: 2020-05-01
A49: 48 | B49: Gaia DR2 | C49: Gaia DR2 200527869820934784 | D49: 81 | E49: 8.07 | G49: 20200406_0118 | H49: 20200406_0118_100mm_ISO800_D3300_F5,6_10sec_9F_Aur_RX_SY.fit Grün | I49: 2088 | J49: 2939.85 | K49: 4.72 | L49: 3.76 | M49: 5585867 | N49: -16.87 | O49: 0 | P49: 0 | Q49: TG | R49: PSF | S49: Fitswork447 | T49: 100mm | U49: 800 | V49: D3300 | W49: 5.6 | X49: 1 | Y49: 6000 | Z49: 9 | AA49: 2458946.328 | AE49: 2020-05-01
A50: 49 | B50: Gaia DR2 | C50: HD32234 | D50: 81 | E50: 8.11 | F50: HD32234 | G50: 20200406_0118 | H50: 20200406_0118_100mm_ISO800_D3300_F5,6_10sec_9F_Aur_RX_SY.fit Grün | I50: 2226.06 | J50: 2871.61 | K50: 4.61 | L50: 3.75 | M50: 5921701.5 | N50: -16.93 | O50: 0 | P50: 0 | Q50: TG | R50: PSF | S50: Fitswork447 | T50: 100mm | U50: 800 | V50: D3300 | W50: 5.6 | X50: 1 | Y50: 6000 | Z50: 9 | AA50: 2458946.328 | AE50: 2020-05-01
A51: 50 | B51: Gaia DR2 | C51: RX Aur | D51: RX Aur | G51: 20200405_0145 | H51: 20200405_0145_100mm_ISO800_D3300_F5,6_10sec_9F_Aur_RX_SY.fit Grün | I51: 1656.4 | J51: 2837.11 | K51: 3.45 | L51: 2.56 | M51: 5438409.5 | N51: -16.84 | O51: 0 | P51: 0 | Q51: TG | R51: PSF | S51: Fitswork447 | T51: 100mm | U51: 800 | V51: D3300 | W51: 5.6 | X51: 1 | Y51: 6000 | Z51: 9 | AA51: 2458945.335 | AE51: 2020-05-01
A52: 51 | B52: Gaia DR2 | C52: HD33462 | D52: 70 | E52: 6.97 | F52: HD33462 | G52: 20200405_0145 | H52: 20200405_0145_100mm_ISO800_D3300_F5,6_10sec_9F_Aur_RX_SY.fit Grün | I52: 853.94 | J52: 2414.18 | K52: 3.97 | L52: 2.91 | M52: 8243123.5 | N52: -17.29 | O52: 0 | P52: 0 | Q52: TG | R52: PSF | S52: Fitswork447 | T52: 100mm | U52: 800 | V52: D3300 | W52: 5.6 | X52: 1 | Y52: 6000 | Z52: 9 | AA52: 2458945.335 | AE52: 2020-05-01
A53: 52 | B53: Gaia DR2 | C53: HD31500 | D53: 72 | E53: 7.21 | F53: HD31500 | G53: 20200405_0145 | H53: 20200405_0145_100mm_ISO800_D3300_F5,6_10sec_9F_Aur_RX_SY.fit Grün | I53: 1915.62 | J53: 2900.77 | K53: 3.67 | L53: 2.84 | M53: 6997922 | N53: -17.11 | O53: 0 | P53: 0 | Q53: TG | R53: PSF | S53: Fitswork447 | T53: 100mm | U53: 800 | V53: D3300 | W53: 5.6 | X53: 1 | Y53: 6000 | Z53: 9 | AA53: 2458945.335 | AE53: 2020-05-01
A54: 53 | B54: Gaia DR2 | C54: Gaia DR2 200851779077093504 | D54: 76 | E54: 7.62 | G54: 20200405_0145 | H54: 20200405_0145_100mm_ISO800_D3300_F5,6_10sec_9F_Aur_RX_SY.fit Grün | I54: 1626.33 | J54: 2543.86 | K54: 3.53 | L54: 2.6 | M54: 5937803.5 | N54: -16.93 | O54: 0 | P54: 0 | Q54: TG | R54: PSF | S54: Fitswork447 | T54: 100mm | U54: 800 | V54: D3300 | W54: 5.6 | X54: 1 | Y54: 6000 | Z54: 9 | AA54: 2458945.335 | AE54: 2020-05-01
A55: 54 | B55: Gaia DR2 | C55: Gaia DR2 200778352314940416 | D55: 80 | E55: 7.98 | G55: 20200405_0145 | H55: 20200405_0145_100mm_ISO800_D3300_F5,6_10sec_9F_Aur_RX_SY.fit Grün | I55: 1800.96 | J55: 2723.21 | K55: 3.3 | L55: 2.54 | M55: 4883730.5 | N55: -16.72 | O55: 0 | P55: 0 | Q55: TG | R55: PSF | S55: Fitswork447 | T55: 100mm | U55: 800 | V55: D3300 | W55: 5.6 | X55: 1 | Y55: 6000 | Z55: 9 | AA55: 2458945.335 | AE55: 2020-05-01
A56: 55 | B56: Gaia DR2 | C56: Gaia DR2 200527869820934784 | D56: 81 | E56: 8.07 | G56: 20200405_0145 | H56: 20200405_0145_100mm_ISO800_D3300_F5,6_10sec_9F_Aur_RX_SY.fit Grün | I56: 1377.16 | J56: 2785.34 | K56: 3.32 | L56: 2.57 | M56: 4506685 | N56: -16.63 | O56: 0 | P56: 0 | Q56: TG | R56: PSF | S56: Fitswork447 | T56: 100mm | U56: 800 | V56: D3300 | W56: 5.6 | X56: 1 | Y56: 6000 | Z56: 9 | AA56: 2458945.335 | AE56: 2020-05-01
A57: 56 | B57: Gaia DR2 | C57: HD32234 | D57: 81 | E57: 8.11 | F57: HD32234 | G57: 20200405_0145 | H57: 20200405_0145_100mm_ISO800_D3300_F5,6_10sec_9F_Aur_RX_SY.fit Grün | I57: 1518.15 | J57: 2722.86 | K57: 3.34 | L57: 2.41 | M57: 4678554.5 | N57: -16.68 | O57: 0 | P57: 0 | Q57: TG | R57: PSF | S57: Fitswork447 | T57: 100mm | U57: 800 | V57: D3300 | W57: 5.6 | X57: 1 | Y57: 6000 | Z57: 9 | AA57: 2458945.335 | AE57: 2020-05-01
A58: 57 | B58: Gaia DR2 | C58: RX Aur | D58: RX Aur | G58: 20200404_0127 | H58: 20200404_0127_100mm_ISO800_D3300_F5,6_10sec_9F_Aur_RX_SY.fit Grün | I58: 1976.87 | J58: 2886.82 | K58: 3.66 | L58: 2.72 | M58: 6030258.5 | N58: -16.95 | O58: 0 | P58: 0 | Q58: TG | R58: PSF | S58: Fitswork447 | T58: 100mm | U58: 800 | V58: D3300 | W58: 5.6 | X58: 10 | Y58: 6000 | Z58: 9 | AA58: 2458944.322 | AE58: 2020-05-01
A59: 58 | B59: Gaia DR2 | C59: HD33462 | D59: 70 | E59: 6.97 | F59: HD33462 | G59: 20200404_0127 | H59: 20200404_0127_100mm_ISO800_D3300_F5,6_10sec_9F_Aur_RX_SY.fit Grün | I59: 1103.2 | J59: 2646.34 | K59: 4.18 | L59: 2.84 | M59: 8361185.5 | N59: -17.31 | O59: 0 | P59: 0 | Q59: TG | R59: PSF | S59: Fitswork447 | T59: 100mm | U59: 800 | V59: D3300 | W59: 5.6 | X59: 10 | Y59: 6000 | Z59: 9 | AA59: 2458944.322 | AE59: 2020-05-01
A60: 59 | B60: Gaia DR2 | C60: HD31500 | D60: 72 | E60: 7.21 | F60: HD31500 | G60: 20200404_0127 | H60: 20200404_0127_100mm_ISO800_D3300_F5,6_10sec_9F_Aur_RX_SY.fit Grün | I60: 2243.34 | J60: 2893.34 | K60: 3.75 | L60: 2.92 | M60: 7061248.5 | N60: -17.12 | O60: 0 | P60: 0 | Q60: TG | R60: PSF | S60: Fitswork447 | T60: 100mm | U60: 800 | V60: D3300 | W60: 5.6 | X60: 10 | Y60: 6000 | Z60: 9 | AA60: 2458944.322 | AE60: 2020-05-01
A61: 60 | B61: Gaia DR2 | C61: Gaia DR2 200851779077093504 | D61: 76 | E61: 7.62 | G61: 20200404_0127 | H61: 20200404_0127_100mm_ISO800_D3300_F5,6_10sec_9F_Aur_RX_SY.fit Grün | I61: 1884.44 | J61: 2607.24 | K61: 3.64 | L61: 2.78 | M61: 6003815 | N61: -16.95 | O61: 0 | P61: 0 | Q61: TG | R61: PSF | S61: Fitswork447 | T61: 100mm | U61: 800 | V61: D3300 | W61: 5.6 | X61: 10 | Y61: 6000 | Z61: 9 | AA61: 2458944.322 | AE61: 2020-05-01
A62: 61 | B62: Gaia DR2 | C62: Gaia DR2 200778352314940416 | D62: 80 | E62: 7.98 | G62: 20200404_0127 | H62: 20200404_0127_100mm_ISO800_D3300_F5,6_10sec_9F_Aur_RX_SY.fit Grün | I62: 2093.37 | J62: 2744.77 | K62: 3.38 | L62: 2.66 | M62: 4908018 | N62: -16.73 | O62: 0 | P62: 0 | Q62: TG | R62: PSF | S62: Fitswork447 | T62: 100mm | U62: 800 | V62: D3300 | W62: 5.6 | X62: 10 | Y62: 6000 | Z62: 9 | AA62: 2458944.322 | AE62: 2020-05-01
A63: 62 | B63: Gaia DR2 | C63: Gaia DR2 200527869820934784 | D63: 81 | E63: 8.07 | G63: 20200404_0127 | H63: 20200404_0127_100mm_ISO800_D3300_F5,6_10sec_9F_Aur_RX_SY.fit Grün | I63: 1693.39 | J63: 2896.18 | K63: 3.49 | L63: 2.56 | M63: 4502267 | N63: -16.63 | O63: 0 | P63: 0 | Q63: TG | R63: PSF | S63: Fitswork447 | T63: 100mm | U63: 800 | V63: D3300 | W63: 5.6 | X63: 10 | Y63: 6000 | Z63: 9 | AA63: 2458944.322 | AE63: 2020-05-01
A64: 63 | B64: Gaia DR2 | C64: HD32234 | D64: 81 | E64: 8.11 | F64: HD32234 | G64: 20200404_0127 | H64: 20200404_0127_100mm_ISO800_D3300_F5,6_10sec_9F_Aur_RX_SY.fit Grün | I64: 1817.35 | J64: 2804.97 | K64: 3.59 | L64: 2.67 | M64: 4778599 | N64: -16.7 | O64: 0 | P64: 0 | Q64: TG | R64: PSF | S64: Fitswork447 | T64: 100mm | U64: 800 | V64: D3300 | W64: 5.6 | X64: 10 | Y64: 6000 | Z64: 9 | AA64: 2458944.322 | AE64: 2020-05-01
A65: 64 | B65: Gaia DR2 | C65: RX Aur | D65: RX Aur | G65: 20200403_0091 | H65: 20200403_0091_100mm_ISO800_D3300_F5,6_10sec_9F_Aur_RX_SY.fit Grün | I65: 1147.32 | J65: 3169.85 | K65: 3.64 | L65: 2.57 | M65: 1120777.88 | N65: -15.12 | O65: 0 | P65: 0 | Q65: TG | R65: PSF | S65: Fitswork447 | T65: 100mm | U65: 800 | V65: D3300 | W65: 5.6 | X65: 10 | Y65: 6000 | Z65: 9 | AA65: 2458943.324 | AE65: 2020-05-01
A66: 65 | B66: Gaia DR2 | C66: HD33462 | D66: 70 | E66: 6.97 | F66: HD33462 | G66: 20200403_0091 | H66: 20200403_0091_100mm_ISO800_D3300_F5,6_10sec_9F_Aur_RX_SY.fit Grün | I66: 304.18 | J66: 2826.57 | K66: 4.01 | L66: 2.46 | M66: 1584916 | N66: -15.5 | O66: 0 | P66: 0 | Q66: TG | R66: PSF | S66: Fitswork447 | T66: 100mm | U66: 800 | V66: D3300 | W66: 5.6 | X66: 10 | Y66: 6000 | Z66: 9 | AA66: 2458943.324 | AE66: 2020-05-01
A67: 66 | B67: Gaia DR2 | C67: HD31500 | D67: 72 | E67: 7.21 | F67: HD31500 | G67: 20200403_0091 | H67: 20200403_0091_100mm_ISO800_D3300_F5,6_10sec_9F_Aur_RX_SY.fit Grün | I67: 1412.28 | J67: 3207.93 | K67: 3.64 | L67: 2.78 | M67: 1443469.63 | N67: -15.4 | O67: 0 | P67: 0 | Q67: TG | R67: PSF | S67: Fitswork447 | T67: 100mm | U67: 800 | V67: D3300 | W67: 5.6 | X67: 10 | Y67: 6000 | Z67: 9 | AA67: 2458943.324 | AE67: 2020-05-01
A68: 67 | B68: Gaia DR2 | C68: Gaia DR2 200851779077093504 | D68: 76 | E68: 7.62 | G68: 20200403_0091 | H68: 20200403_0091_100mm_ISO800_D3300_F5,6_10sec_9F_Aur_RX_SY.fit Grün | I68: 1088.82 | J68: 2880.42 | K68: 3.69 | L68: 2.56 | M68: 1059911.25 | N68: -15.06 | O68: 0 | P68: 0 | Q68: TG | R68: PSF | S68: Fitswork447 | T68: 100mm | U68: 800 | V68: D3300 | W68: 5.6 | X68: 10 | Y68: 6000 | Z68: 9 | AA68: 2458943.324 | AE68: 2020-05-01
A69: 68 | B69: Gaia DR2 | C69: Gaia DR2 200778352314940416 | D69: 80 | E69: 7.98 | G69: 20200403_0091 | H69: 20200403_0091_100mm_ISO800_D3300_F5,6_10sec_9F_Aur_RX_SY.fit Grün | I69: 1280.51 | J69: 3042.16 | K69: 3.46 | L69: 2.54 | M69: 861597.25 | N69: -14.84 | O69: 0 | P69: 0 | Q69: TG | R69: PSF | S69: Fitswork447 | T69: 100mm | U69: 800 | V69: D3300 | W69: 5.6 | X69: 10 | Y69: 6000 | Z69: 9 | AA69: 2458943.324 | AE69: 2020-05-01
A70: 69 | B70: Gaia DR2 | C70: Gaia DR2 200527869820934784 | D70: 81 | E70: 8.07 | G70: 20200403_0091 | H70: 20200403_0091_100mm_ISO800_D3300_F5,6_10sec_9F_Aur_RX_SY.fit Grün | I70: 863.3 | J70: 3145.68 | K70: 3.43 | L70: 2.26 | M70: 770346.75 | N70: -14.72 | O70: 0 | P70: 0 | Q70: TG | R70: PSF | S70: Fitswork447 | T70: 100mm | U70: 800 | V70: D3300 | W70: 5.6 | X70: 10 | Y70: 6000 | Z70: 9 | AA70: 2458943.324 | AE70: 2020-05-01
A71: 70 | B71: Gaia DR2 | C71: HD32234 | D71: 81 | E71: 8.11 | F71: HD32234 | G71: 20200403_0091 | H71: 20200403_0091_100mm_ISO800_D3300_F5,6_10sec_9F_Aur_RX_SY.fit Grün | I71: 998.13 | J71: 3069.52 | K71: 3.67 | L71: 2.36 | M71: 852647.19 | N71: -14.83 | O71: 0 | P71: 0 | Q71: TG | R71: PSF | S71: Fitswork447 | T71: 100mm | U71: 800 | V71: D3300 | W71: 5.6 | X71: 10 | Y71: 6000 | Z71: 9 | AA71: 2458943.324 | AE71: 2020-05-01
A72: 71 | B72: Gaia DR2 | C72: RX Aur | D72: RX Aur | G72: 20200403_0055 | H72: 20200403_0055_100mm_ISO800_D3300_F5,6_10sec_9F_Aur_RX_SY.fit Grün | I72: 1463.11 | J72: 2753.02 | K72: 3.28 | L72: 2.54 | M72: 4714422 | N72: -16.68 | O72: 0 | P72: 0 | Q72: TG | R72: PSF | S72: Fitswork447 | T72: 100mm | U72: 800 | V72: D3300 | W72: 5.6 | X72: 1 | Y72: 6000 | Z72: 9 | AA72: 2458943.312 | AE72: 2020-05-01
A73: 72 | B73: Gaia DR2 | C73: HD33462 | D73: 70 | E73: 6.97 | F73: HD33462 | G73: 20200403_0055 | H73: 20200403_0055_100mm_ISO800_D3300_F5,6_10sec_9F_Aur_RX_SY.fit Grün | I73: 585.86 | J73: 2514.98 | K73: 3.58 | L73: 2.57 | M73: 6033596.5 | N73: -16.95 | O73: 0 | P73: 0 | Q73: TG | R73: PSF | S73: Fitswork447 | T73: 100mm | U73: 800 | V73: D3300 | W73: 5.6 | X73: 1 | Y73: 6000 | Z73: 9 | AA73: 2458943.312 | AE73: 2020-05-01
A74: 73 | B74: Gaia DR2 | C74: HD31500 | D74: 72 | E74: 7.21 | F74: HD31500 | G74: 20200403_0055 | H74: 20200403_0055_100mm_ISO800_D3300_F5,6_10sec_9F_Aur_RX_SY.fit Grün | I74: 1730.29 | J74: 2758.64 | K74: 3.3 | L74: 2.53 | M74: 5446928.5 | N74: -16.84 | O74: 0 | P74: 0 | Q74: TG | R74: PSF | S74: Fitswork447 | T74: 100mm | U74: 800 | V74: D3300 | W74: 5.6 | X74: 1 | Y74: 6000 | Z74: 9 | AA74: 2458943.312 | AE74: 2020-05-01
A75: 74 | B75: Gaia DR2 | C75: Gaia DR2 200851779077093504 | D75: 76 | E75: 7.62 | G75: 20200403_0055 | H75: 20200403_0055_100mm_ISO800_D3300_F5,6_10sec_9F_Aur_RX_SY.fit Grün | I75: 1369.66 | J75: 2473.37 | K75: 3.25 | L75: 2.35 | M75: 3992243.5 | N75: -16.5 | O75: 0 | P75: 0 | Q75: TG | R75: PSF | S75: Fitswork447 | T75: 100mm | U75: 800 | V75: D3300 | W75: 5.6 | X75: 1 | Y75: 6000 | Z75: 9 | AA75: 2458943.312 | AE75: 2020-05-01
A76: 75 | B76: Gaia DR2 | C76: Gaia DR2 200778352314940416 | D76: 80 | E76: 7.98 | G76: 20200403_0055 | H76: 20200403_0055_100mm_ISO800_D3300_F5,6_10sec_9F_Aur_RX_SY.fit Grün | I76: 1579.48 | J76: 2610.35 | K76: 2.98 | L76: 2.28 | M76: 3891714.5 | N76: -16.48 | O76: 0 | P76: 0 | Q76: TG | R76: PSF | S76: Fitswork447 | T76: 100mm | U76: 800 | V76: D3300 | W76: 5.6 | X76: 1 | Y76: 6000 | Z76: 9 | AA76: 2458943.312 | AE76: 2020-05-01
A77: 76 | B77: Gaia DR2 | C77: Gaia DR2 200527869820934784 | D77: 81 | E77: 8.07 | G77: 20200403_0055 | H77: 20200403_0055_100mm_ISO800_D3300_F5,6_10sec_9F_Aur_RX_SY.fit Grün | I77: 1178.84 | J77: 2763.28 | K77: 3.1 | L77: 2.32 | M77: 3816052.75 | N77: -16.45 | O77: 0 | P77: 0 | Q77: TG | R77: PSF | S77: Fitswork447 | T77: 100mm | U77: 800 | V77: D3300 | W77: 5.6 | X77: 1 | Y77: 6000 | Z77: 9 | AA77: 2458943.312 | AE77: 2020-05-01
A78: 77 | B78: Gaia DR2 | C78: HD32234 | D78: 81 | E78: 8.11 | F78: HD32234 | G78: 20200403_0055 | H78: 20200403_0055_100mm_ISO800_D3300_F5,6_10sec_9F_Aur_RX_SY.fit Grün | I78: 1303.06 | J78: 2671.6 | K78: 3.15 | L78: 2.38 | M78: 3795174 | N78: -16.45 | O78: 0 | P78: 0 | Q78: TG | R78: PSF | S78: Fitswork447 | T78: 100mm | U78: 800 | V78: D3300 | W78: 5.6 | X78: 1 | Y78: 6000 | Z78: 9 | AA78: 2458943.312 | AE78: 2020-05-01
A79: 78 | B79: Gaia DR2 | C79: RX Aur | D79: RX Aur | G79: 20200402_0037 | H79: 20200402_0037_100mm_ISO800_D3300_F5,6_10sec_9F_Aur_RX_SY.fit Grün | I79: 2523.14 | J79: 2595.29 | K79: 3.83 | L79: 2.73 | M79: 5946297.5 | N79: -16.94 | O79: 0 | P79: 0 | Q79: TG | R79: PSF | S79: Fitswork447 | T79: 100mm | U79: 800 | V79: D3300 | W79: 5.6 | X79: 1 | Y79: 6000 | Z79: 9 | AA79: 2458942.32 | AE79: 2020-05-01
A80: 79 | B80: Gaia DR2 | C80: HD33462 | D80: 70 | E80: 6.97 | F80: HD33462 | G80: 20200402_0037 | H80: 20200402_0037_100mm_ISO800_D3300_F5,6_10sec_9F_Aur_RX_SY.fit Grün | I80: 1638.65 | J80: 2408.69 | K80: 4.34 | L80: 2.96 | M80: 7050554.5 | N80: -17.12 | O80: 0 | P80: 0 | Q80: TG | R80: PSF | S80: Fitswork447 | T80: 100mm | U80: 800 | V80: D3300 | W80: 5.6 | X80: 1 | Y80: 6000 | Z80: 9 | AA80: 2458942.32 | AE80: 2020-05-01
A81: 80 | B81: Gaia DR2 | C81: HD31500 | D81: 72 | E81: 7.21 | F81: HD31500 | G81: 20200402_0037 | H81: 20200402_0037_100mm_ISO800_D3300_F5,6_10sec_9F_Aur_RX_SY.fit Grün | I81: 2789.25 | J81: 2585.53 | K81: 3.83 | L81: 2.86 | M81: 5878270.5 | N81: -16.92 | O81: 0 | P81: 0 | Q81: TG | R81: PSF | S81: Fitswork447 | T81: 100mm | U81: 800 | V81: D3300 | W81: 5.6 | X81: 1 | Y81: 6000 | Z81: 9 | AA81: 2458942.32 | AE81: 2020-05-01
A82: 81 | B82: Gaia DR2 | C82: Gaia DR2 200851779077093504 | D82: 76 | E82: 7.62 | G82: 20200402_0037 | H82: 20200402_0037_100mm_ISO800_D3300_F5,6_10sec_9F_Aur_RX_SY.fit Grün | I82: 2413.95 | J82: 2322.18 | K82: 3.76 | L82: 2.62 | M82: 4939850 | N82: -16.73 | O82: 0 | P82: 0 | Q82: TG | R82: PSF | S82: Fitswork447 | T82: 100mm | U82: 800 | V82: D3300 | W82: 5.6 | X82: 1 | Y82: 6000 | Z82: 9 | AA82: 2458942.32 | AE82: 2020-05-01
A83: 82 | B83: Gaia DR2 | C83: Gaia DR2 200778352314940416 | D83: 80 | E83: 7.98 | G83: 20200402_0037 | H83: 20200402_0037_100mm_ISO800_D3300_F5,6_10sec_9F_Aur_RX_SY.fit Grün | I83: 2630.54 | J83: 2446.57 | K83: 3.57 | L83: 2.55 | M83: 3946826.75 | N83: -16.49 | O83: 0 | P83: 0 | Q83: TG | R83: PSF | S83: Fitswork447 | T83: 100mm | U83: 800 | V83: D3300 | W83: 5.6 | X83: 1 | Y83: 6000 | Z83: 9 | AA83: 2458942.32 | AE83: 2020-05-01
A84: 83 | B84: Gaia DR2 | C84: Gaia DR2 200527869820934784 | D84: 81 | E84: 8.07 | G84: 20200402_0037 | H84: 20200402_0037_100mm_ISO800_D3300_F5,6_10sec_9F_Aur_RX_SY.fit Grün | I84: 2241.52 | J84: 2621.9 | K84: 3.94 | L84: 2.62 | M84: 3247090.25 | N84: -16.28 | O84: 0 | P84: 0 | Q84: TG | R84: PSF | S84: Fitswork447 | T84: 100mm | U84: 800 | V84: D3300 | W84: 5.6 | X84: 1 | Y84: 6000 | Z84: 9 | AA84: 2458942.32 | AE84: 2020-05-01
A85: 84 | B85: Gaia DR2 | C85: HD32234 | D85: 81 | E85: 8.11 | F85: HD32234 | G85: 20200402_0037 | H85: 20200402_0037_100mm_ISO800_D3300_F5,6_10sec_9F_Aur_RX_SY.fit Grün | I85: 2359.38 | J85: 2523.46 | K85: 3.72 | L85: 2.42 | M85: 3925218.25 | N85: -16.48 | O85: 0 | P85: 0 | Q85: TG | R85: PSF | S85: Fitswork447 | T85: 100mm | U85: 800 | V85: D3300 | W85: 5.6 | X85: 1 | Y85: 6000 | Z85: 9 | AA85: 2458942.32 | AE85: 2020-05-01
A86: 85 | B86: Gaia DR2 | C86: RX Aur | D86: RX Aur | G86: 20200401_0046 | H86: 20200401_0046_100mm_ISO800_D3300_F5,6_10sec_9F_Aur_RX_SY.fit Grün | I86: 2518.01 | J86: 2742.25 | K86: 3.81 | L86: 2.89 | M86: 7364004.5 | N86: -17.17 | O86: 0 | P86: 0 | Q86: TG | R86: PSF | S86: Fitswork447 | T86: 100mm | U86: 800 | V86: D3300 | W86: 5.6 | X86: 1 | Y86: 6000 | Z86: 9 | AA86: 2458941.314 | AE86: 2020-05-01
A87: 86 | B87: Gaia DR2 | C87: HD33462 | D87: 70 | E87: 6.97 | F87: HD33462 | G87: 20200401_0046 | H87: 20200401_0046_100mm_ISO800_D3300_F5,6_10sec_9F_Aur_RX_SY.fit Grün | I87: 1664.36 | J87: 2441.46 | K87: 3.86 | L87: 3.2 | M87: 8760274 | N87: -17.36 | O87: 0 | P87: 0 | Q87: TG | R87: PSF | S87: Fitswork447 | T87: 100mm | U87: 800 | V87: D3300 | W87: 5.6 | X87: 1 | Y87: 6000 | Z87: 9 | AA87: 2458941.314 | AE87: 2020-05-01
A88: 87 | B88: Gaia DR2 | C88: HD31500 | D88: 72 | E88: 7.21 | F88: HD31500 | G88: 20200401_0046 | H88: 20200401_0046_100mm_ISO800_D3300_F5,6_10sec_9F_Aur_RX_SY.fit Grün | I88: 2783.4 | J88: 2767.44 | K88: 3.96 | L88: 3.05 | M88: 8527614 | N88: -17.33 | O88: 0 | P88: 0 | Q88: TG | R88: PSF | S88: Fitswork447 | T88: 100mm | U88: 800 | V88: D3300 | W88: 5.6 | X88: 1 | Y88: 6000 | Z88: 9 | AA88: 2458941.314 | AE88: 2020-05-01
A89: 88 | B89: Gaia DR2 | C89: Gaia DR2 200851779077093504 | D89: 76 | E89: 7.62 | G89: 20200401_0046 | H89: 20200401_0046_100mm_ISO800_D3300_F5,6_10sec_9F_Aur_RX_SY.fit Grün | I89: 2445.15 | J89: 2456.86 | K89: 3.62 | L89: 2.81 | M89: 6075747 | N89: -16.96 | O89: 0 | P89: 0 | Q89: TG | R89: PSF | S89: Fitswork447 | T89: 100mm | U89: 800 | V89: D3300 | W89: 5.6 | X89: 1 | Y89: 6000 | Z89: 9 | AA89: 2458941.314 | AE89: 2020-05-01
A90: 89 | B90: Gaia DR2 | C90: Gaia DR2 200778352314940416 | D90: 80 | E90: 7.98 | G90: 20200401_0046 | H90: 20200401_0046_100mm_ISO800_D3300_F5,6_10sec_9F_Aur_RX_SY.fit Grün | I90: 2643.97 | J90: 2608.64 | K90: 3.42 | L90: 2.68 | M90: 5309608 | N90: -16.81 | O90: 0 | P90: 0 | Q90: TG | R90: PSF | S90: Fitswork447 | T90: 100mm | U90: 800 | V90: D3300 | W90: 5.6 | X90: 1 | Y90: 6000 | Z90: 9 | AA90: 2458941.314 | AE90: 2020-05-01
A91: 90 | B91: Gaia DR2 | C91: Gaia DR2 200527869820934784 | D91: 81 | E91: 8.07 | G91: 20200401_0046 | H91: 20200401_0046_100mm_ISO800_D3300_F5,6_10sec_9F_Aur_RX_SY.fit Grün | I91: 2234.85 | J91: 2731.64 | K91: 3.28 | L91: 2.7 | M91: 4827530 | N91: -16.71 | O91: 0 | P91: 0 | Q91: TG | R91: PSF | S91: Fitswork447 | T91: 100mm | U91: 800 | V91: D3300 | W91: 5.6 | X91: 1 | Y91: 6000 | Z91: 9 | AA91: 2458941.314 | AE91: 2020-05-01
A92: 91 | B92: Gaia DR2 | C92: HD32234 | D92: 81 | E92: 8.11 | F92: HD32234 | G92: 20200401_0046 | H92: 20200401_0046_100mm_ISO800_D3300_F5,6_10sec_9F_Aur_RX_SY.fit Grün | I92: 2364.72 | J92: 2649.46 | K92: 3.35 | L92: 2.72 | M92: 5173370 | N92: -16.78 | O92: 0 | P92: 0 | Q92: TG | R92: PSF | S92: Fitswork447 | T92: 100mm | U92: 800 | V92: D3300 | W92: 5.6 | X92: 1 | Y92: 6000 | Z92: 9 | AA92: 2458941.314 | AE92: 2020-05-01
A93: 92 | B93: Gaia DR2 | C93: RX Aur | D93: RX Aur | G93: 20200331_0064 | H93: 20200331_0064_100mm_ISO800_D3300_F5,6_10sec_9F_Aur_RX_SY.fit Grün | I93: 1965.01 | J93: 2724.13 | K93: 5.15 | L93: 3.98 | M93: 8987245 | N93: -17.38 | O93: 0 | P93: 0 | Q93: TG | R93: PSF | S93: Fitswork447 | T93: 100mm | U93: 800 | V93: D3300 | W93: 5.6 | X93: 1 | Y93: 6000 | Z93: 9 | AA93: 2458940.33 | AE93: 2020-05-01
A94: 93 | B94: Gaia DR2 | C94: HD33462 | D94: 70 | E94: 6.97 | F94: HD33462 | G94: 20200331_0064 | H94: 20200331_0064_100mm_ISO800_D3300_F5,6_10sec_9F_Aur_RX_SY.fit Grün | I94: 1137.23 | J94: 2358.1 | K94: 5.7 | L94: 4.24 | M94: 13640732 | N94: -17.84 | O94: 0 | P94: 0 | Q94: TG | R94: PSF | S94: Fitswork447 | T94: 100mm | U94: 800 | V94: D3300 | W94: 5.6 | X94: 1 | Y94: 6000 | Z94: 9 | AA94: 2458940.33 | AE94: 2020-05-01
A95: 94 | B95: Gaia DR2 | C95: HD31500 | D95: 72 | E95: 7.21 | F95: HD31500 | G95: 20200331_0064 | H95: 20200331_0064_100mm_ISO800_D3300_F5,6_10sec_9F_Aur_RX_SY.fit Grün | I95: 2227.45 | J95: 2769.73 | K95: 5.14 | L95: 4.08 | M95: 11341916 | N95: -17.64 | O95: 0 | P95: 0 | Q95: TG | R95: PSF | S95: Fitswork447 | T95: 100mm | U95: 800 | V95: D3300 | W95: 5.6 | X95: 1 | Y95: 6000 | Z95: 9 | AA95: 2458940.33 | AE95: 2020-05-01
A96: 95 | B96: Gaia DR2 | C96: Gaia DR2 200851779077093504 | D96: 76 | E96: 7.62 | G96: 20200331_0064 | H96: 20200331_0064_100mm_ISO800_D3300_F5,6_10sec_9F_Aur_RX_SY.fit Grün | I96: 1914.72 | J96: 2434.21 | K96: 5.18 | L96: 4.22 | M96: 9093796 | N96: -17.4 | O96: 0 | P96: 0 | Q96: TG | R96: PSF | S96: Fitswork447 | T96: 100mm | U96: 800 | V96: D3300 | W96: 5.6 | X96: 1 | Y96: 6000 | Z96: 9 | AA96: 2458940.33 | AE96: 2020-05-01
A97: 96 | B97: Gaia DR2 | C97: Gaia DR2 200778352314940416 | D97: 80 | E97: 7.98 | G97: 20200331_0064 | H97: 20200331_0064_100mm_ISO800_D3300_F5,6_10sec_9F_Aur_RX_SY.fit Grün | I97: 2100.96 | J97: 2600.83 | K97: 5.06 | L97: 3.96 | M97: 7254454 | N97: -17.15 | O97: 0 | P97: 0 | Q97: TG | R97: PSF | S97: Fitswork447 | T97: 100mm | U97: 800 | V97: D3300 | W97: 5.6 | X97: 1 | Y97: 6000 | Z97: 9 | AA97: 2458940.33 | AE97: 2020-05-01
A98: 97 | B98: Gaia DR2 | C98: Gaia DR2 200527869820934784 | D98: 81 | E98: 8.07 | G98: 20200331_0064 | H98: 20200331_0064_100mm_ISO800_D3300_F5,6_10sec_9F_Aur_RX_SY.fit Grün | I98: 1683.52 | J98: 2691.68 | K98: 5.1 | L98: 3.9 | M98: 6426938 | N98: -17.02 | O98: 0 | P98: 0 | Q98: TG | R98: PSF | S98: Fitswork447 | T98: 100mm | U98: 800 | V98: D3300 | W98: 5.6 | X98: 1 | Y98: 6000 | Z98: 9 | AA98: 2458940.33 | AE98: 2020-05-01
A99: 98 | B99: Gaia DR2 | C99: HD32234 | D99: 81 | E99: 8.11 | F99: HD32234 | G99: 20200331_0064 | H99: 20200331_0064_100mm_ISO800_D3300_F5,6_10sec_9F_Aur_RX_SY.fit Grün | I99: 1819.51 | J99: 2619.79 | K99: 5.2 | L99: 4.02 | M99: 7104693.5 | N99: -17.13 | O99: 0 | P99: 0 | Q99: TG | R99: PSF | S99: Fitswork447 | T99: 100mm | U99: 800 | V99: D3300 | W99: 5.6 | X99: 1 | Y99: 6000 | Z99: 9 | AA99: 2458940.33 | AE99: 2020-05-01
A100: 99 | B100: Gaia DR2 | C100: RX Aur | D100: RX Aur | G100: 20200330_0291 | H100: 20200330_0291_100mm_ISO800_D3300_F5,6_10sec_9F_Aur_RX_SY.fit Grün | I100: 1662.19 | J100: 3189.03 | K100: 2.88 | L100: 2.68 | M100: 4248875 | N100: -16.57 | O100: 0 | P100: 0 | Q100: TG | R100: PSF | S100: Fitswork447 | T100: 100mm | U100: 800 | V100: D3300 | W100: 5.6 | X100: 1 | Y100: 6000 | Z100: 9 | AA100: 2458939.417 | AB100: sehr scharf | AE100: 2020-05-01
A101: 100 | B101: Gaia DR2 | C101: HD33462 | D101: 70 | E101: 6.97 | F101: HD33462 | G101: 20200330_0291 | H101: 20200330_0291_100mm_ISO800_D3300_F5,6_10sec_9F_Aur_RX_SY.fit Grün | I101: 1099.1 | J101: 2480.24 | K101: 3.23 | L101: 3.06 | M101: 6692478.5 | N101: -17.06 | O101: 0 | P101: 0 | Q101: TG | R101: PSF | S101: Fitswork447 | T101: 100mm | U101: 800 | V101: D3300 | W101: 5.6 | X101: 1 | Y101: 6000 | Z101: 9 | AA101: 2458939.417 | AB101: sehr scharf | AE101: 2020-05-01
A102: 101 | B102: Gaia DR2 | C102: HD31500 | D102: 72 | E102: 7.21 | F102: HD31500 | G102: 20200330_0291 | H102: 20200330_0291_100mm_ISO800_D3300_F5,6_10sec_9F_Aur_RX_SY.fit Grün | I102: 1873.78 | J102: 3351.42 | K102: 3.08 | L102: 2.84 | M102: 5588719.5 | N102: -16.87 | O102: 0 | P102: 0 | Q102: TG | R102: PSF | S102: Fitswork447 | T102: 100mm | U102: 800 | V102: D3300 | W102: 5.6 | X102: 1 | Y102: 6000 | Z102: 9 | AA102: 2458939.417 | AB102: sehr scharf | AE102: 2020-05-01
A103: 102 | B103: Gaia DR2 | C103: Gaia DR2 200851779077093504 | D103: 76 | E103: 7.62 | G103: 20200330_0291 | H103: 20200330_0291_100mm_ISO800_D3300_F5,6_10sec_9F_Aur_RX_SY.fit Grün | I103: 1752.76 | J103: 2908.19 | K103: 2.91 | L103: 2.8 | M103: 4735747 | N103: -16.69 | O103: 0 | P103: 0 | Q103: TG | R103: PSF | S103: Fitswork447 | T103: 100mm | U103: 800 | V103: D3300 | W103: 5.6 | X103: 1 | Y103: 6000 | Z103: 9 | AA103: 2458939.417 | AB103: sehr scharf | AE103: 2020-05-01
A104: 103 | B104: Gaia DR2 | C104: Gaia DR2 200778352314940416 | D104: 80 | E104: 7.98 | G104: 20200330_0291 | H104: 20200330_0291_100mm_ISO800_D3300_F5,6_10sec_9F_Aur_RX_SY.fit Grün | I104: 1840.33 | J104: 3142.58 | K104: 2.78 | L104: 2.63 | M104: 4098657.5 | N104: -16.53 | O104: 0 | P104: 0 | Q104: TG | R104: PSF | S104: Fitswork447 | T104: 100mm | U104: 800 | V104: D3300 | W104: 5.6 | X104: 1 | Y104: 6000 | Z104: 9 | AA104: 2458939.417 | AB104: sehr scharf | AE104: 2020-05-01
A105: 104 | B105: Gaia DR2 | C105: Gaia DR2 200527869820934784 | D105: 81 | E105: 8.07 | G105: 20200330_0291 | H105: 20200330_0291_100mm_ISO800_D3300_F5,6_10sec_9F_Aur_RX_SY.fit Grün | I105: 1427.6 | J105: 3029.56 | K105: 2.72 | L105: 2.63 | M105: 3707987.75 | N105: -16.42 | O105: 0 | P105: 0 | Q105: TG | R105: PSF | S105: Fitswork447 | T105: 100mm | U105: 800 | V105: D3300 | W105: 5.6 | X105: 1 | Y105: 6000 | Z105: 9 | AA105: 2458939.417 | AB105: sehr scharf | AE105: 2020-05-01
A106: 105 | B106: Gaia DR2 | C106: HD32234 | D106: 81 | E106: 8.11 | F106: HD32234 | G106: 20200330_0291 | H106: 20200330_0291_100mm_ISO800_D3300_F5,6_10sec_9F_Aur_RX_SY.fit Grün | I106: 1581.71 | J106: 3028.83 | K106: 2.78 | L106: 2.68 | M106: 3619051.5 | N106: -16.4 | O106: 0 | P106: 0 | Q106: TG | R106: PSF | S106: Fitswork447 | T106: 100mm | U106: 800 | V106: D3300 | W106: 5.6 | X106: 1 | Y106: 6000 | Z106: 9 | AA106: 2458939.417 | AB106: sehr scharf | AE106: 2020-05-01
A107: 106 | B107: Gaia DR2 | C107: RX Aur | D107: RX Aur | G107: 20200330_0037 | H107: 20200330_0037_100mm_ISO800_D3300_F5,6_10sec_9F_Aur_RX_SY.fit Grün | I107: 1986.69 | J107: 2821.42 | K107: 10.22 | L107: 9.02 | M107: 10727549 | N107: -17.58 | O107: 0 | P107: 0 | Q107: TG | R107: PSF | S107: Fitswork447 | T107: 100mm | U107: 800 | V107: D3300 | W107: 5.6 | X107: 1 | Y107: 6000 | Z107: 9 | AA107: 2458939.303 | AB107: leicht defokussiert | AE107: 2020-05-01
A108: 107 | B108: Gaia DR2 | C108: HD33462 | D108: 70 | E108: 6.97 | F108: HD33462 | G108: 20200330_0037 | H108: 20200330_0037_100mm_ISO800_D3300_F5,6_10sec_9F_Aur_RX_SY.fit Grün | I108: 1172.78 | J108: 2421.37 | K108: 11.19 | L108: 9.27 | M108: 21630824 | N108: -18.34 | O108: 0 | P108: 0 | Q108: TG | R108: PSF | S108: Fitswork447 | T108: 100mm | U108: 800 | V108: D3300 | W108: 5.6 | X108: 1 | Y108: 6000 | Z108: 9 | AA108: 2458939.303 | AB108: leicht defokussiert | AE108: 2020-05-01
A109: 108 | B109: Gaia DR2 | C109: HD31500 | D109: 72 | E109: 7.21 | F109: HD31500 | G109: 20200330_0037 | H109: 20200330_0037_100mm_ISO800_D3300_F5,6_10sec_9F_Aur_RX_SY.fit Grün | I109: 2247.6 | J109: 2877.81 | K109: 10.86 | L109: 9.45 | M109: 17283454 | N109: -18.09 | O109: 0 | P109: 0 | Q109: TG | R109: PSF | S109: Fitswork447 | T109: 100mm | U109: 800 | V109: D3300 | W109: 5.6 | X109: 1 | Y109: 6000 | Z109: 9 | AA109: 2458939.303 | AB109: leicht defokussiert | AE109: 2020-05-01
A110: 109 | B110: Gaia DR2 | C110: Gaia DR2 200851779077093504 | D110: 76 | E110: 7.62 | G110: 20200330_0037 | H110: 20200330_0037_100mm_ISO800_D3300_F5,6_10sec_9F_Aur_RX_SY.fit Grün | I110: 1948.16 | J110: 2529.1 | K110: 10.21 | L110: 9.05 | M110: 12448838 | N110: -17.74 | O110: 0 | P110: 0 | Q110: TG | R110: PSF | S110: Fitswork447 | T110: 100mm | U110: 800 | V110: D3300 | W110: 5.6 | X110: 1 | Y110: 6000 | Z110: 9 | AA110: 2458939.303 | AB110: leicht defokussiert | AE110: 2020-05-01
A111: 110 | B111: Gaia DR2 | C111: Gaia DR2 200778352314940416 | D111: 80 | E111: 7.98 | G111: 20200330_0037 | H111: 20200330_0037_100mm_ISO800_D3300_F5,6_10sec_9F_Aur_RX_SY.fit Grün | I111: 2127.87 | J111: 2703.5 | K111: 10.07 | L111: 8.91 | M111: 9076051 | N111: -17.39 | O111: 0 | P111: 0 | Q111: TG | R111: PSF | S111: Fitswork447 | T111: 100mm | U111: 800 | V111: D3300 | W111: 5.6 | X111: 1 | Y111: 6000 | Z111: 9 | AA111: 2458939.303 | AB111: leicht defokussiert | AE111: 2020-05-01
A112: 111 | B112: Gaia DR2 | C112: Gaia DR2 200527869820934784 | D112: 81 | E112: 8.07 | G112: 20200330_0037 | H112: 20200330_0037_100mm_ISO800_D3300_F5,6_10sec_9F_Aur_RX_SY.fit Grün | I112: 1706.25 | J112: 2777.44 | K112: 10.23 | L112: 8.86 | M112: 8200159 | N112: -17.28 | O112: 0 | P112: 0 | Q112: TG | R112: PSF | S112: Fitswork447 | T112: 100mm | U112: 800 | V112: D3300 | W112: 5.6 | X112: 1 | Y112: 6000 | Z112: 9 | AA112: 2458939.303 | AB112: leicht defokussiert | AE112: 2020-05-01
A113: 112 | B113: Gaia DR2 | C113: HD32234 | D113: 81 | E113: 8.11 | F113: HD32234 | G113: 20200330_0037 | H113: 20200330_0037_100mm_ISO800_D3300_F5,6_10sec_9F_Aur_RX_SY.fit Grün | I113: 1844.9 | J113: 2710.77 | K113: 11.48 | L113: 8.72 | M113: 10417728 | N113: -17.54 | O113: 0 | P113: 0 | Q113: TG | R113: PSF | S113: Fitswork447 | T113: 100mm | U113: 800 | V113: D3300 | W113: 5.6 | X113: 1 | Y113: 6000 | Z113: 9 | AA113: 2458939.303 | AB113: leicht defokussiert | AE113: 2020-05-01
A114: 113 | B114: Gaia DR2 | C114: RX Aur | D114: RX Aur | G114: 20200328_0226 | H114: 20200328_0226_100mm_ISO800_D3300_F5,6_10sec_9F_Aur_RX_SY.fit Grün | I114: 1378.82 | J114: 2614.72 | K114: 10.35 | L114: 8.94 | M114: 6159124 | N114: -16.97 | O114: 0 | P114: 0 | Q114: TG | R114: PSF | S114: Fitswork447 | T114: 100mm | U114: 800 | V114: D3300 | W114: 5.6 | X114: 1 | Y114: 6000 | Z114: 9 | AA114: 2458937.359 | AB114: leicht defokussiert | AE114: 2020-05-01
A115: 114 | B115: Gaia DR2 | C115: HD33462 | D115: 70 | E115: 6.97 | F115: HD33462 | G115: 20200328_0226 | H115: 20200328_0226_100mm_ISO800_D3300_F5,6_10sec_9F_Aur_RX_SY.fit Grün | I115: 515.68 | J115: 2325.46 | K115: 10.97 | L115: 9.07 | M115: 15433212 | N115: -17.97 | O115: 0 | P115: 0 | Q115: TG | R115: PSF | S115: Fitswork447 | T115: 100mm | U115: 800 | V115: D3300 | W115: 5.6 | X115: 1 | Y115: 6000 | Z115: 9 | AA115: 2458937.359 | AB115: leicht defokussiert | AE115: 2020-05-01
A116: 115 | B116: Gaia DR2 | C116: HD31500 | D116: 72 | E116: 7.21 | F116: HD31500 | G116: 20200328_0226 | H116: 20200328_0226_100mm_ISO800_D3300_F5,6_10sec_9F_Aur_RX_SY.fit Grün | I116: 1645.48 | J116: 2635.99 | K116: 10.21 | L116: 9.23 | M116: 12130704 | N116: -17.71 | O116: 0 | P116: 0 | Q116: TG | R116: PSF | S116: Fitswork447 | T116: 100mm | U116: 800 | V116: D3300 | W116: 5.6 | X116: 1 | Y116: 6000 | Z116: 9 | AA116: 2458937.359 | AB116: leicht defokussiert | AE116: 2020-05-01
A117: 116 | B117: Gaia DR2 | C117: Gaia DR2 200851779077093504 | D117: 76 | E117: 7.62 | G117: 20200328_0226 | H117: 20200328_0226_100mm_ISO800_D3300_F5,6_10sec_9F_Aur_RX_SY.fit Grün | I117: 1301.73 | J117: 2329.85 | K117: 10.22 | L117: 8.98 | M117: 8370694.5 | N117: -17.31 | O117: 0 | P117: 0 | Q117: TG | R117: PSF | S117: Fitswork447 | T117: 100mm | U117: 800 | V117: D3300 | W117: 5.6 | X117: 1 | Y117: 6000 | Z117: 9 | AA117: 2458937.359 | AB117: leicht defokussiert | AE117: 2020-05-01
A118: 117 | B118: Gaia DR2 | C118: Gaia DR2 200778352314940416 | D118: 80 | E118: 7.98 | G118: 20200328_0226 | H118: 20200328_0226_100mm_ISO800_D3300_F5,6_10sec_9F_Aur_RX_SY.fit Grün | I118: 1503.44 | J118: 2479.03 | K118: 9.93 | L118: 8.77 | M118: 6180268 | N118: -16.98 | O118: 0 | P118: 0 | Q118: TG | R118: PSF | S118: Fitswork447 | T118: 100mm | U118: 800 | V118: D3300 | W118: 5.6 | X118: 1 | Y118: 6000 | Z118: 9 | AA118: 2458937.359 | AB118: leicht defokussiert | AE118: 2020-05-01
A119: 118 | B119: Gaia DR2 | C119: Gaia DR2 200527869820934784 | D119: 81 | E119: 8.07 | G119: 20200328_0226 | H119: 20200328_0226_100mm_ISO800_D3300_F5,6_10sec_9F_Aur_RX_SY.fit Grün | I119: 1094.1 | J119: 2608.34 | K119: 10.15 | L119: 9.18 | M119: 5523566 | N119: -16.86 | O119: 0 | P119: 0 | Q119: TG | R119: PSF | S119: Fitswork447 | T119: 100mm | U119: 800 | V119: D3300 | W119: 5.6 | X119: 1 | Y119: 6000 | Z119: 9 | AA119: 2458937.359 | AB119: leicht defokussiert | AE119: 2020-05-01
A120: 119 | B120: Gaia DR2 | C120: HD32234 | D120: 81 | E120: 8.11 | F120: HD32234 | G120: 20200328_0226 | H120: 20200328_0226_100mm_ISO800_D3300_F5,6_10sec_9F_Aur_RX_SY.fit Grün | I120: 1223.32 | J120: 2523.84 | K120: 10.88 | L120: 8.81 | M120: 6850018.5 | N120: -17.09 | O120: 0 | P120: 0 | Q120: TG | R120: PSF | S120: Fitswork447 | T120: 100mm | U120: 800 | V120: D3300 | W120: 5.6 | X120: 1 | Y120: 6000 | Z120: 9 | AA120: 2458937.359 | AB120: leicht defokussiert | AE120: 2020-05-01
A121: 120 | B121: Gaia DR2 | C121: RX Aur | D121: RX Aur | G121: 20200328_0199 | H121: 20200328_0199_100mm_ISO800_D3300_F5,6_10sec_9F_Aur_RX_SY.fit Grün | I121: 1988.5 | J121: 2873.33 | K121: 10.12 | L121: 9.39 | M121: 6555829 | N121: -17.04 | O121: 0 | P121: 0 | Q121: TG | R121: PSF | S121: Fitswork447 | T121: 100mm | U121: 800 | V121: D3300 | W121: 5.6 | X121: 1 | Y121: 6000 | Z121: 9 | AA121: 2458937.345 | AB121: leicht defokussiert | AE121: 2020-05-01
A122: 121 | B122: Gaia DR2 | C122: HD33462 | D122: 70 | E122: 6.97 | F122: HD33462 | G122: 20200328_0199 | H122: 20200328_0199_100mm_ISO800_D3300_F5,6_10sec_9F_Aur_RX_SY.fit Grün | I122: 1152.58 | J122: 2521.55 | K122: 10.99 | L122: 9.39 | M122: 16790692 | N122: -18.06 | O122: 0 | P122: 0 | Q122: TG | R122: PSF | S122: Fitswork447 | T122: 100mm | U122: 800 | V122: D3300 | W122: 5.6 | X122: 1 | Y122: 6000 | Z122: 9 | AA122: 2458937.345 | AB122: leicht defokussiert | AE122: 2020-05-01
A123: 122 | B123: Gaia DR2 | C123: HD31500 | D123: 72 | E123: 7.21 | F123: HD31500 | G123: 20200328_0199 | H123: 20200328_0199_100mm_ISO800_D3300_F5,6_10sec_9F_Aur_RX_SY.fit Grün | I123: 2252.31 | J123: 2914.38 | K123: 10.59 | L123: 9.4 | M123: 12762603 | N123: -17.76 | O123: 0 | P123: 0 | Q123: TG | R123: PSF | S123: Fitswork447 | T123: 100mm | U123: 800 | V123: D3300 | W123: 5.6 | X123: 1 | Y123: 6000 | Z123: 9 | AA123: 2458937.345 | AB123: leicht defokussiert | AE123: 2020-05-01
A124: 123 | B124: Gaia DR2 | C124: Gaia DR2 200851779077093504 | D124: 76 | E124: 7.62 | G124: 20200328_0199 | H124: 20200328_0199_100mm_ISO800_D3300_F5,6_10sec_9F_Aur_RX_SY.fit Grün | I124: 1933.09 | J124: 2583.81 | K124: 10.14 | L124: 9.27 | M124: 8729507 | N124: -17.35 | O124: 0 | P124: 0 | Q124: TG | R124: PSF | S124: Fitswork447 | T124: 100mm | U124: 800 | V124: D3300 | W124: 5.6 | X124: 1 | Y124: 6000 | Z124: 9 | AA124: 2458937.345 | AB124: leicht defokussiert | AE124: 2020-05-01
A125: 124 | B125: Gaia DR2 | C125: Gaia DR2 200778352314940416 | D125: 80 | E125: 7.98 | G125: 20200328_0199 | H125: 20200328_0199_100mm_ISO800_D3300_F5,6_10sec_9F_Aur_RX_SY.fit Grün | I125: 2122.57 | J125: 2747.5 | K125: 10.16 | L125: 9.16 | M125: 6763546.5 | N125: -17.08 | O125: 0 | P125: 0 | Q125: TG | R125: PSF | S125: Fitswork447 | T125: 100mm | U125: 800 | V125: D3300 | W125: 5.6 | X125: 1 | Y125: 6000 | Z125: 9 | AA125: 2458937.345 | AB125: leicht defokussiert | AE125: 2020-05-01
A126: 125 | B126: Gaia DR2 | C126: Gaia DR2 200527869820934784 | D126: 81 | E126: 8.07 | G126: 20200328_0199 | H126: 20200328_0199_100mm_ISO800_D3300_F5,6_10sec_9F_Aur_RX_SY.fit Grün | I126: 1706.11 | J126: 2845.99 | K126: 10.38 | L126: 9.09 | M126: 5938407.5 | N126: -16.93 | O126: 0 | P126: 0 | Q126: TG | R126: PSF | S126: Fitswork447 | T126: 100mm | U126: 800 | V126: D3300 | W126: 5.6 | X126: 1 | Y126: 6000 | Z126: 9 | AA126: 2458937.345 | AB126: leicht defokussiert | AE126: 2020-05-01
A127: 126 | B127: Gaia DR2 | C127: HD32234 | D127: 81 | E127: 8.11 | F127: HD32234 | G127: 20200328_0199 | H127: 20200328_0199_100mm_ISO800_D3300_F5,6_10sec_9F_Aur_RX_SY.fit Grün | I127: 1840.59 | J127: 2771.25 | K127: 11.18 | L127: 8.86 | M127: 7128894.5 | N127: -17.13 | O127: 0 | P127: 0 | Q127: TG | R127: PSF | S127: Fitswork447 | T127: 100mm | U127: 800 | V127: D3300 | W127: 5.6 | X127: 1 | Y127: 6000 | Z127: 9 | AA127: 2458937.345 | AB127: leicht defokussiert | AE127: 2020-05-01
A128: 127 | B128: Gaia DR2 | C128: RX Aur | D128: RX Aur | G128: 20200328_0082 | H128: 20200328_0082_100mm_ISO800_D3300_F5,6_10sec_9F_Aur_RX_SY.fit Grün | I128: 2272.86 | J128: 2889.43 | K128: 10.2 | L128: 9.3 | M128: 6855576.5 | N128: -17.09 | O128: 0 | P128: 0 | Q128: TG | R128: PSF | S128: Fitswork447 | T128: 100mm | U128: 800 | V128: D3300 | W128: 5.6 | X128: 1 | Y128: 6000 | Z128: 9 | AA128: 2458937.316 | AB128: leicht defokussiert | AE128: 2020-05-01
A129: 128 | B129: Gaia DR2 | C129: HD33462 | D129: 70 | E129: 6.97 | F129: HD33462 | G129: 20200328_0082 | H129: 20200328_0082_100mm_ISO800_D3300_F5,6_10sec_9F_Aur_RX_SY.fit Grün | I129: 1506.68 | J129: 2406.93 | K129: 10.81 | L129: 9.14 | M129: 18200106 | N129: -18.15 | O129: 0 | P129: 0 | Q129: TG | R129: PSF | S129: Fitswork447 | T129: 100mm | U129: 800 | V129: D3300 | W129: 5.6 | X129: 1 | Y129: 6000 | Z129: 9 | AA129: 2458937.316 | AB129: leicht defokussiert | AE129: 2020-05-01
A130: 129 | B130: Gaia DR2 | C130: HD31500 | D130: 72 | E130: 7.21 | F130: HD31500 | G130: 20200328_0082 | H130: 20200328_0082_100mm_ISO800_D3300_F5,6_10sec_9F_Aur_RX_SY.fit Grün | I130: 2526.31 | J130: 2972.8 | K130: 10.5 | L130: 9.4 | M130: 14137081 | N130: -17.88 | O130: 0 | P130: 0 | Q130: TG | R130: PSF | S130: Fitswork447 | T130: 100mm | U130: 800 | V130: D3300 | W130: 5.6 | X130: 1 | Y130: 6000 | Z130: 9 | AA130: 2458937.316 | AB130: leicht defokussiert | AE130: 2020-05-01
A131: 130 | B131: Gaia DR2 | C131: Gaia DR2 200851779077093504 | D131: 76 | E131: 7.62 | G131: 20200328_0082 | H131: 20200328_0082_100mm_ISO800_D3300_F5,6_10sec_9F_Aur_RX_SY.fit Grün | I131: 2265.07 | J131: 2594.73 | K131: 10 | L131: 9 | M131: 9694933 | N131: -17.47 | O131: 0 | P131: 0 | Q131: TG | R131: PSF | S131: Fitswork447 | T131: 100mm | U131: 800 | V131: D3300 | W131: 5.6 | X131: 1 | Y131: 6000 | Z131: 9 | AA131: 2458937.316 | AB131: leicht defokussiert | AE131: 2020-05-01
A132: 131 | B132: Gaia DR2 | C132: Gaia DR2 200778352314940416 | D132: 80 | E132: 7.98 | G132: 20200328_0082 | H132: 20200328_0082_100mm_ISO800_D3300_F5,6_10sec_9F_Aur_RX_SY.fit Grün | I132: 2425.44 | J132: 2786.91 | K132: 10.02 | L132: 9.07 | M132: 7354897 | N132: -17.17 | O132: 0 | P132: 0 | Q132: TG | R132: PSF | S132: Fitswork447 | T132: 100mm | U132: 800 | V132: D3300 | W132: 5.6 | X132: 1 | Y132: 6000 | Z132: 9 | AA132: 2458937.316 | AB132: leicht defokussiert | AE132: 2020-05-01
A133: 132 | B133: Gaia DR2 | C133: Gaia DR2 200527869820934784 | D133: 81 | E133: 8.07 | G133: 20200328_0082 | H133: 20200328_0082_100mm_ISO800_D3300_F5,6_10sec_9F_Aur_RX_SY.fit Grün | I133: 1999.06 | J133: 2816.44 | K133: 10.26 | L133: 8.98 | M133: 6211555.5 | N133: -16.98 | O133: 0 | P133: 0 | Q133: TG | R133: PSF | S133: Fitswork447 | T133: 100mm | U133: 800 | V133: D3300 | W133: 5.6 | X133: 1 | Y133: 6000 | Z133: 9 | AA133: 2458937.316 | AB133: leicht defokussiert | AE133: 2020-05-01
A134: 133 | B134: Gaia DR2 | C134: HD32234 | D134: 81 | E134: 8.11 | F134: HD32234 | G134: 20200328_0082 | H134: 20200328_0082_100mm_ISO800_D3300_F5,6_10sec_9F_Aur_RX_SY.fit Grün | I134: 2143.66 | J134: 2764.66 | K134: 11.57 | L134: 8.81 | M134: 7971658 | N134: -17.25 | O134: 0 | P134: 0 | Q134: TG | R134: PSF | S134: Fitswork447 | T134: 100mm | U134: 800 | V134: D3300 | W134: 5.6 | X134: 1 | Y134: 6000 | Z134: 9 | AA134: 2458937.316 | AB134: leicht defokussiert | AE134: 2020-05-01
A135: 134 | B135: Gaia DR2 | C135: RX Aur | D135: RX Aur | G135: 20200327_0082 | H135: 20200327_0082_100mm_ISO800_D3300_F5,6_10sec_9F_Aur_RX_SY.fit Grün | I135: 2493.6 | J135: 2693.82 | K135: 9.89 | L135: 9.29 | M135: 7978147.5 | N135: -17.25 | O135: 0 | P135: 0 | Q135: TG | R135: PSF | S135: Fitswork447 | T135: 100mm | U135: 800 | V135: D3300 | W135: 5.6 | X135: 1 | Y135: 6000 | Z135: 9 | AA135: 2458936.314 | AB135: leicht defokussiert | AE135: 2020-05-01
A136: 135 | B136: Gaia DR2 | C136: HD33462 | D136: 70 | E136: 6.97 | F136: HD33462 | G136: 20200327_0082 | H136: 20200327_0082_100mm_ISO800_D3300_F5,6_10sec_9F_Aur_RX_SY.fit Grün | I136: 1619.72 | J136: 2456.77 | K136: 10.58 | L136: 9.41 | M136: 19673354 | N136: -18.23 | O136: 0 | P136: 0 | Q136: TG | R136: PSF | S136: Fitswork447 | T136: 100mm | U136: 800 | V136: D3300 | W136: 5.6 | X136: 1 | Y136: 6000 | Z136: 9 | AA136: 2458936.314 | AB136: leicht defokussiert | AE136: 2020-05-01
A137: 136 | B137: Gaia DR2 | C137: HD31500 | D137: 72 | E137: 7.21 | F137: HD31500 | G137: 20200327_0082 | H137: 20200327_0082_100mm_ISO800_D3300_F5,6_10sec_9F_Aur_RX_SY.fit Grün | I137: 2760.19 | J137: 2699.32 | K137: 10.38 | L137: 9.65 | M137: 15337570 | N137: -17.96 | O137: 0 | P137: 0 | Q137: TG | R137: PSF | S137: Fitswork447 | T137: 100mm | U137: 800 | V137: D3300 | W137: 5.6 | X137: 1 | Y137: 6000 | Z137: 9 | AA137: 2458936.314 | AB137: leicht defokussiert | AE137: 2020-05-01
A138: 137 | B138: Gaia DR2 | C138: Gaia DR2 200851779077093504 | D138: 76 | E138: 7.62 | G138: 20200327_0082 | H138: 20200327_0082_100mm_ISO800_D3300_F5,6_10sec_9F_Aur_RX_SY.fit Grün | I138: 2399.88 | J138: 2414.61 | K138: 9.83 | L138: 9.2 | M138: 10851024 | N138: -17.59 | O138: 0 | P138: 0 | Q138: TG | R138: PSF | S138: Fitswork447 | T138: 100mm | U138: 800 | V138: D3300 | W138: 5.6 | X138: 1 | Y138: 6000 | Z138: 9 | AA138: 2458936.314 | AB138: leicht defokussiert | AE138: 2020-05-01
A139: 138 | B139: Gaia DR2 | C139: Gaia DR2 200778352314940416 | D139: 80 | E139: 7.98 | G139: 20200327_0082 | H139: 20200327_0082_100mm_ISO800_D3300_F5,6_10sec_9F_Aur_RX_SY.fit Grün | I139: 2609.4 | J139: 2551.35 | K139: 9.86 | L139: 9.15 | M139: 7609138.5 | N139: -17.2 | O139: 0 | P139: 0 | Q139: TG | R139: PSF | S139: Fitswork447 | T139: 100mm | U139: 800 | V139: D3300 | W139: 5.6 | X139: 1 | Y139: 6000 | Z139: 9 | AA139: 2458936.314 | AB139: leicht defokussiert | AE139: 2020-05-01
A140: 139 | B140: Gaia DR2 | C140: Gaia DR2 200527869820934784 | D140: 81 | E140: 8.07 | G140: 20200327_0082 | H140: 20200327_0082_100mm_ISO800_D3300_F5,6_10sec_9F_Aur_RX_SY.fit Grün | I140: 2210.49 | J140: 2704.16 | K140: 9.73 | L140: 9.03 | M140: 7271845.5 | N140: -17.15 | O140: 0 | P140: 0 | Q140: TG | R140: PSF | S140: Fitswork447 | T140: 100mm | U140: 800 | V140: D3300 | W140: 5.6 | X140: 1 | Y140: 6000 | Z140: 9 | AA140: 2458936.314 | AB140: leicht defokussiert | AE140: 2020-05-01
A141: 140 | B141: Gaia DR2 | C141: HD32234 | D141: 81 | E141: 8.11 | F141: HD32234 | G141: 20200327_0082 | H141: 20200327_0082_100mm_ISO800_D3300_F5,6_10sec_9F_Aur_RX_SY.fit Grün | I141: 2333.53 | J141: 2612.47 | K141: 11.06 | L141: 8.88 | M141: 9162754 | N141: -17.41 | O141: 0 | P141: 0 | Q141: TG | R141: PSF | S141: Fitswork447 | T141: 100mm | U141: 800 | V141: D3300 | W141: 5.6 | X141: 1 | Y141: 6000 | Z141: 9 | AB141: leicht defokussiert | AE141: 2020-05-01
A142: 141 | B142: Gaia DR2 | C142: RX Aur | D142: RX Aur | G142: 20200326_0190 | H142: 20200326_0190_100mm_ISO800_D3300_F5,6_10sec_9F_Aur_RX_SY.fit Grün | I142: 2321.16 | J142: 2890.37 | K142: 8.8 | L142: 7.75 | M142: 5937879.5 | N142: -16.93 | O142: 0 | P142: 0 | Q142: TG | R142: PSF | S142: Fitswork447 | T142: 100mm | U142: 800 | V142: D3300 | W142: 5.6 | X142: 1 | Y142: 6000 | Z142: 9 | AA142: 2458935.45 | AB142: leicht defokussiert | AE142: 2020-05-01
A143: 142 | B143: Gaia DR2 | C143: HD33462 | D143: 70 | E143: 6.97 | F143: HD33462 | G143: 20200326_0190 | H143: 20200326_0190_100mm_ISO800_D3300_F5,6_10sec_9F_Aur_RX_SY.fit Grün | I143: 1513.53 | J143: 2482.73 | K143: 9.16 | L143: 8.16 | M143: 14570290 | N143: -17.91 | O143: 0 | P143: 0 | Q143: TG | R143: PSF | S143: Fitswork447 | T143: 100mm | U143: 800 | V143: D3300 | W143: 5.6 | X143: 1 | Y143: 6000 | Z143: 9 | AA143: 2458935.45 | AB143: leicht defokussiert | AE143: 2020-05-01
A144: 143 | B144: Gaia DR2 | C144: HD31500 | D144: 72 | E144: 7.21 | F144: HD31500 | G144: 20200326_0190 | H144: 20200326_0190_100mm_ISO800_D3300_F5,6_10sec_9F_Aur_RX_SY.fit Grün | I144: 2581.1 | J144: 2949.38 | K144: 9.34 | L144: 8.19 | M144: 11663232 | N144: -17.67 | O144: 0 | P144: 0 | Q144: TG | R144: PSF | S144: Fitswork447 | T144: 100mm | U144: 800 | V144: D3300 | W144: 5.6 | X144: 1 | Y144: 6000 | Z144: 9 | AA144: 2458935.45 | AB144: leicht defokussiert | AE144: 2020-05-01
A145: 144 | B145: Gaia DR2 | C145: Gaia DR2 200851779077093504 | D145: 76 | E145: 7.62 | G145: 20200326_0190 | H145: 20200326_0190_100mm_ISO800_D3300_F5,6_10sec_9F_Aur_RX_SY.fit Grün | I145: 2286 | J145: 2598.24 | K145: 8.85 | L145: 7.97 | M145: 7970690.5 | N145: -17.25 | O145: 0 | P145: 0 | Q145: TG | R145: PSF | S145: Fitswork447 | T145: 100mm | U145: 800 | V145: D3300 | W145: 5.6 | X145: 1 | Y145: 6000 | Z145: 9 | AA145: 2458935.45 | AB145: leicht defokussiert | AE145: 2020-05-01
A146: 145 | B146: Gaia DR2 | C146: Gaia DR2 200778352314940416 | D146: 80 | E146: 7.98 | G146: 20200326_0190 | H146: 20200326_0190_100mm_ISO800_D3300_F5,6_10sec_9F_Aur_RX_SY.fit Grün | I146: 2463.33 | J146: 2774.13 | K146: 8.69 | L146: 7.74 | M146: 5802917 | N146: -16.91 | O146: 0 | P146: 0 | Q146: TG | R146: PSF | S146: Fitswork447 | T146: 100mm | U146: 800 | V146: D3300 | W146: 5.6 | X146: 1 | Y146: 6000 | Z146: 9 | AA146: 2458935.45 | AB146: leicht defokussiert | AE146: 2020-05-01
A147: 146 | B147: Gaia DR2 | C147: Gaia DR2 200527869820934784 | D147: 81 | E147: 8.07 | G147: 20200326_0190 | H147: 20200326_0190_100mm_ISO800_D3300_F5,6_10sec_9F_Aur_RX_SY.fit Grün | I147: 2041.81 | J147: 2843.6 | K147: 8.79 | L147: 7.71 | M147: 5438448.5 | N147: -16.84 | O147: 0 | P147: 0 | Q147: TG | R147: PSF | S147: Fitswork447 | T147: 100mm | U147: 800 | V147: D3300 | W147: 5.6 | X147: 1 | Y147: 6000 | Z147: 9 | AA147: 2458935.45 | AB147: leicht defokussiert | AE147: 2020-05-01
A148: 147 | B148: Gaia DR2 | C148: HD32234 | D148: 81 | E148: 8.11 | F148: HD32234 | G148: 20200326_0190 | H148: 20200326_0190_100mm_ISO800_D3300_F5,6_10sec_9F_Aur_RX_SY.fit Grün | I148: 2181.01 | J148: 2778.6 | K148: 9.75 | L148: 7.6 | M148: 6271340 | N148: -16.99 | O148: 0 | P148: 0 | Q148: TG | R148: PSF | S148: Fitswork447 | T148: 100mm | U148: 800 | V148: D3300 | W148: 5.6 | X148: 1 | Y148: 6000 | Z148: 9 | AB148: leicht defokussiert | AE148: 2020-05-01
A149: 148 | B149: Gaia DR2 | C149: RX Aur | D149: RX Aur | G149: 20200326_0046 | H149: 20200326_0046_100mm_ISO800_D3300_F5,6_10sec_9F_Aur_RX_SY.fit Grün | I149: 2611.15 | J149: 2638.55 | K149: 11.04 | L149: 8.58 | M149: 8572861 | N149: -17.33 | O149: 0 | P149: 0 | Q149: TG | R149: PSF | S149: Fitswork447 | T149: 100mm | U149: 800 | V149: D3300 | W149: 5.6 | X149: 1 | Y149: 6000 | Z149: 9 | AA149: 2458935.311 | AB149: leicht defokussiert | AE149: 2020-05-01
A150: 149 | B150: Gaia DR2 | C150: HD33462 | D150: 70 | E150: 6.97 | F150: HD33462 | G150: 20200326_0046 | H150: 20200326_0046_100mm_ISO800_D3300_F5,6_10sec_9F_Aur_RX_SY.fit Grün | I150: 1709.56 | J150: 2557.88 | K150: 11.56 | L150: 8.75 | M150: 19348220 | N150: -18.22 | O150: 0 | P150: 0 | Q150: TG | R150: PSF | S150: Fitswork447 | T150: 100mm | U150: 800 | V150: D3300 | W150: 5.6 | X150: 1 | Y150: 6000 | Z150: 9 | AA150: 2458935.311 | AB150: leicht defokussiert | AE150: 2020-05-01
A151: 150 | B151: Gaia DR2 | C151: HD31500 | D151: 72 | E151: 7.21 | F151: HD31500 | G151: 20200326_0046 | H151: 20200326_0046_100mm_ISO800_D3300_F5,6_10sec_9F_Aur_RX_SY.fit Grün | I151: 2874.41 | J151: 2597.43 | K151: 11.36 | L151: 8.68 | M151: 15163462 | N151: -17.95 | O151: 0 | P151: 0 | Q151: TG | R151: PSF | S151: Fitswork447 | T151: 100mm | U151: 800 | V151: D3300 | W151: 5.6 | X151: 1 | Y151: 6000 | Z151: 9 | AA151: 2458935.311 | AB151: leicht defokussiert | AE151: 2020-05-01
A152: 151 | B152: Gaia DR2 | C152: Gaia DR2 200851779077093504 | D152: 76 | E152: 7.62 | G152: 20200326_0046 | H152: 20200326_0046_100mm_ISO800_D3300_F5,6_10sec_9F_Aur_RX_SY.fit Grün | I152: 2470.09 | J152: 2380.14 | K152: 11.06 | L152: 8.35 | M152: 11070813 | N152: -17.61 | O152: 0 | P152: 0 | Q152: TG | R152: PSF | S152: Fitswork447 | T152: 100mm | U152: 800 | V152: D3300 | W152: 5.6 | X152: 1 | Y152: 6000 | Z152: 9 | AA152: 2458935.311 | AB152: leicht defokussiert | AE152: 2020-05-01
A153: 152 | B153: Gaia DR2 | C153: Gaia DR2 200778352314940416 | D153: 80 | E153: 7.98 | G153: 20200326_0046 | H153: 20200326_0046_100mm_ISO800_D3300_F5,6_10sec_9F_Aur_RX_SY.fit Grün | I153: 2700.23 | J153: 2478.16 | K153: 10.9 | L153: 8.33 | M153: 7828120 | N153: -17.23 | O153: 0 | P153: 0 | Q153: TG | R153: PSF | S153: Fitswork447 | T153: 100mm | U153: 800 | V153: D3300 | W153: 5.6 | X153: 1 | Y153: 6000 | Z153: 9 | AA153: 2458935.311 | AB153: leicht defokussiert | AE153: 2020-05-01
A154: 153 | B154: Gaia DR2 | C154: Gaia DR2 200527869820934784 | D154: 81 | E154: 8.07 | G154: 20200326_0046 | H154: 20200326_0046_100mm_ISO800_D3300_F5,6_10sec_9F_Aur_RX_SY.fit Grün | I154: 2334.25 | J154: 2698.18 | K154: 11.22 | L154: 8.42 | M154: 7144198.5 | N154: -17.13 | O154: 0 | P154: 0 | Q154: TG | R154: PSF | S154: Fitswork447 | T154: 100mm | U154: 800 | V154: D3300 | W154: 5.6 | X154: 1 | Y154: 6000 | Z154: 9 | AA154: 2458935.311 | AB154: leicht defokussiert | AE154: 2020-05-01
A155: 154 | B155: Gaia DR2 | C155: HD32234 | D155: 81 | E155: 8.11 | F155: HD32234 | G155: 20200326_0046 | H155: 20200326_0046_100mm_ISO800_D3300_F5,6_10sec_9F_Aur_RX_SY.fit Grün | I155: 2438.98 | J155: 2586.41 | K155: 12.51 | L155: 8.14 | M155: 8959270 | N155: -17.38 | O155: 0 | P155: 0 | Q155: TG | R155: PSF | S155: Fitswork447 | T155: 100mm | U155: 800 | V155: D3300 | W155: 5.6 | X155: 1 | Y155: 6000 | Z155: 9 | AB155: leicht defokussiert | AE155: 2020-05-01
A156: 155 | B156: Gaia DR2 | C156: RX Aur | D156: RX Aur | G156: 20200325_0082 | H156: 20200325_0082_100mm_ISO800_D3300_F5,6_10sec_9F_Aur_RX_SY.fit Grün | I156: 2072.79 | J156: 2690.43 | K156: 9.14 | L156: 8.47 | M156: 8880966 | N156: -17.37 | O156: 0 | P156: 0 | Q156: TG | R156: PSF | S156: Fitswork447 | T156: 100mm | U156: 800 | V156: D3300 | W156: 5.6 | X156: 1 | Y156: 6000 | Z156: 9 | AA156: 2458934.317 | AB156: sehr leicht defokussiert | AE156: 2020-05-01
A157: 156 | B157: Gaia DR2 | C157: HD33462 | D157: 70 | E157: 6.97 | F157: HD33462 | G157: 20200325_0082 | H157: 20200325_0082_100mm_ISO800_D3300_F5,6_10sec_9F_Aur_RX_SY.fit Grün | I157: 1228.45 | J157: 2360.34 | K157: 9.99 | L157: 8.67 | M157: 18139954 | N157: -18.15 | O157: 0 | P157: 0 | Q157: TG | R157: PSF | S157: Fitswork447 | T157: 100mm | U157: 800 | V157: D3300 | W157: 5.6 | X157: 1 | Y157: 6000 | Z157: 9 | AA157: 2458934.317 | AB157: sehr leicht defokussiert | AE157: 2020-05-01
A158: 157 | B158: Gaia DR2 | C158: HD31500 | D158: 72 | E158: 7.21 | F158: HD31500 | G158: 20200325_0082 | H158: 20200325_0082_100mm_ISO800_D3300_F5,6_10sec_9F_Aur_RX_SY.fit Grün | I158: 2337.3 | J158: 2724.56 | K158: 9.34 | L158: 8.71 | M158: 14351096 | N158: -17.89 | O158: 0 | P158: 0 | Q158: TG | R158: PSF | S158: Fitswork447 | T158: 100mm | U158: 800 | V158: D3300 | W158: 5.6 | X158: 1 | Y158: 6000 | Z158: 9 | AA158: 2458934.317 | AB158: sehr leicht defokussiert | AE158: 2020-05-01
A159: 158 | B159: Gaia DR2 | C159: Gaia DR2 200851779077093504 | D159: 76 | E159: 7.62 | G159: 20200325_0082 | H159: 20200325_0082_100mm_ISO800_D3300_F5,6_10sec_9F_Aur_RX_SY.fit Grün | I159: 2009.75 | J159: 2402.59 | K159: 9.06 | L159: 8.41 | M159: 10268345 | N159: -17.53 | O159: 0 | P159: 0 | Q159: TG | R159: PSF | S159: Fitswork447 | T159: 100mm | U159: 800 | V159: D3300 | W159: 5.6 | X159: 1 | Y159: 6000 | Z159: 9 | AA159: 2458934.317 | AB159: sehr leicht defokussiert | AE159: 2020-05-01
A160: 159 | B160: Gaia DR2 | C160: Gaia DR2 200778352314940416 | D160: 80 | E160: 7.98 | G160: 20200325_0082 | H160: 20200325_0082_100mm_ISO800_D3300_F5,6_10sec_9F_Aur_RX_SY.fit Grün | I160: 2203.41 | J160: 2561.17 | K160: 8.77 | L160: 8.26 | M160: 7473366 | N160: -17.18 | O160: 0 | P160: 0 | Q160: TG | R160: PSF | S160: Fitswork447 | T160: 100mm | U160: 800 | V160: D3300 | W160: 5.6 | X160: 1 | Y160: 6000 | Z160: 9 | AA160: 2458934.317 | AB160: sehr leicht defokussiert | AE160: 2020-05-01
A161: 160 | B161: Gaia DR2 | C161: Gaia DR2 200527869820934784 | D161: 81 | E161: 8.07 | G161: 20200325_0082 | H161: 20200325_0082_100mm_ISO800_D3300_F5,6_10sec_9F_Aur_RX_SY.fit Grün | I161: 1789.84 | J161: 2670.21 | K161: 8.91 | L161: 8.29 | M161: 6827382.5 | N161: -17.09 | O161: 0 | P161: 0 | Q161: TG | R161: PSF | S161: Fitswork447 | T161: 100mm | U161: 800 | V161: D3300 | W161: 5.6 | X161: 1 | Y161: 6000 | Z161: 9 | AA161: 2458934.317 | AB161: sehr leicht defokussiert | AE161: 2020-05-01
A162: 161 | B162: Gaia DR2 | C162: HD32234 | D162: 81 | E162: 8.11 | F162: HD32234 | G162: 20200325_0082 | H162: 20200325_0082_100mm_ISO800_D3300_F5,6_10sec_9F_Aur_RX_SY.fit Grün | I162: 1922.37 | J162: 2592.27 | K162: 9.78 | L162: 8.35 | M162: 8526992 | N162: -17.33 | O162: 0 | P162: 0 | Q162: TG | R162: PSF | S162: Fitswork447 | T162: 100mm | U162: 800 | V162: D3300 | W162: 5.6 | X162: 1 | Y162: 6000 | Z162: 9 | AB162: sehr leicht defokussiert | AE162: 2020-05-01
A163: 162 | B163: Gaia DR2 | C163: RX Aur | D163: RX Aur | G163: 20200324_0100 | H163: 20200324_0100_100mm_ISO800_D3300_F5,6_10sec_9F_Aur_RX_SY.fit Grün | I163: 2464.63 | J163: 2637.5 | K163: 8.26 | L163: 7.28 | M163: 11014043 | N163: -17.6 | O163: 0 | P163: 0 | Q163: TG | R163: PSF | S163: Fitswork447 | T163: 100mm | U163: 800 | V163: D3300 | W163: 5.6 | X163: 10 | Y163: 6000 | Z163: 9 | AA163: 2458933.317 | AB163: sehr leicht defokussiert | AE163: 2020-05-01
A164: 163 | B164: Gaia DR2 | C164: HD33462 | D164: 70 | E164: 6.97 | F164: HD33462 | G164: 20200324_0100 | H164: 20200324_0100_100mm_ISO800_D3300_F5,6_10sec_9F_Aur_RX_SY.fit Grün | I164: 1580.05 | J164: 2444.54 | K164: 8.82 | L164: 7.37 | M164: 19117374 | N164: -18.2 | O164: 0 | P164: 0 | Q164: TG | R164: PSF | S164: Fitswork447 | T164: 100mm | U164: 800 | V164: D3300 | W164: 5.6 | X164: 10 | Y164: 6000 | Z164: 9 | AA164: 2458933.317 | AB164: sehr leicht defokussiert | AE164: 2020-05-01
A165: 164 | B165: Gaia DR2 | C165: HD31500 | D165: 72 | E165: 7.21 | F165: HD31500 | G165: 20200324_0100 | H165: 20200324_0100_100mm_ISO800_D3300_F5,6_10sec_9F_Aur_RX_SY.fit Grün | I165: 2731.01 | J165: 2629.67 | K165: 8.56 | L165: 7.51 | M165: 15381375 | N165: -17.97 | O165: 0 | P165: 0 | Q165: TG | R165: PSF | S165: Fitswork447 | T165: 100mm | U165: 800 | V165: D3300 | W165: 5.6 | X165: 10 | Y165: 6000 | Z165: 9 | AA165: 2458933.317 | AB165: sehr leicht defokussiert | AE165: 2020-05-01
A166: 165 | B166: Gaia DR2 | C166: Gaia DR2 200851779077093504 | D166: 76 | E166: 7.62 | G166: 20200324_0100 | H166: 20200324_0100_100mm_ISO800_D3300_F5,6_10sec_9F_Aur_RX_SY.fit Grün | I166: 2357.05 | J166: 2363.39 | K166: 8.09 | L166: 7.21 | M166: 11278676 | N166: -17.63 | O166: 0 | P166: 0 | Q166: TG | R166: PSF | S166: Fitswork447 | T166: 100mm | U166: 800 | V166: D3300 | W166: 5.6 | X166: 10 | Y166: 6000 | Z166: 9 | AA166: 2458933.317 | AB166: sehr leicht defokussiert | AE166: 2020-05-01
A167: 166 | B167: Gaia DR2 | C167: Gaia DR2 200778352314940416 | D167: 80 | E167: 7.98 | G167: 20200324_0100 | H167: 20200324_0100_100mm_ISO800_D3300_F5,6_10sec_9F_Aur_RX_SY.fit Grün | I167: 2573.06 | J167: 2489.53 | K167: 8.12 | L167: 7.17 | M167: 8651929 | N167: -17.34 | O167: 0 | P167: 0 | Q167: TG | R167: PSF | S167: Fitswork447 | T167: 100mm | U167: 800 | V167: D3300 | W167: 5.6 | X167: 10 | Y167: 6000 | Z167: 9 | AA167: 2458933.317 | AB167: sehr leicht defokussiert | AE167: 2020-05-01
A168: 167 | B168: Gaia DR2 | C168: Gaia DR2 200527869820934784 | D168: 81 | E168: 8.07 | G168: 20200324_0100 | H168: 20200324_0100_100mm_ISO800_D3300_F5,6_10sec_9F_Aur_RX_SY.fit Grün | I168: 2182.39 | J168: 2661.95 | K168: 7.96 | L168: 6.93 | M168: 7579208 | N168: -17.2 | O168: 0 | P168: 0 | Q168: TG | R168: PSF | S168: Fitswork447 | T168: 100mm | U168: 800 | V168: D3300 | W168: 5.6 | X168: 10 | Y168: 6000 | Z168: 9 | AA168: 2458933.317 | AB168: sehr leicht defokussiert | AE168: 2020-05-01
A169: 168 | B169: Gaia DR2 | C169: HD32234 | D169: 81 | E169: 8.11 | F169: HD32234 | G169: 20200324_0100 | H169: 20200324_0100_100mm_ISO800_D3300_F5,6_10sec_9F_Aur_RX_SY.fit Grün | I169: 2300.88 | J169: 2564.33 | K169: 8.63 | L169: 6.81 | M169: 9356417 | N169: -17.43 | O169: 0 | P169: 0 | Q169: TG | R169: PSF | S169: Fitswork447 | T169: 100mm | U169: 800 | V169: D3300 | W169: 5.6 | X169: 10 | Y169: 6000 | Z169: 9 | AA169: 2458933.317 | AB169: sehr leicht defokussiert | AE169: 2020-05-01
A170: 169 | B170: Gaia DR2 | C170: RX Aur | D170: RX Aur | G170: 20200323_0046 | H170: 20200323_0046_100mm_ISO800_D3300_F5,6_10sec_9F_Aur_RX_SY.fit Grün | I170: 2177.2 | J170: 3203.26 | K170: 10.01 | L170: 8.67 | M170: 13120346 | N170: -17.79 | O170: 0 | P170: 0 | Q170: TG | R170: PSF | S170: Fitswork447 | T170: 100mm | U170: 800 | V170: D3300 | W170: 5.6 | X170: 10 | Y170: 6000 | Z170: 6 | AA170: 2458932.319 | AB170: sehr leicht defokussiert | AE170: 2020-05-01
A171: 170 | B171: Gaia DR2 | C171: HD33462 | D171: 70 | E171: 6.97 | F171: HD33462 | G171: 20200323_0046 | H171: 20200323_0046_100mm_ISO800_D3300_F5,6_10sec_9F_Aur_RX_SY.fit Grün | I171: 1374.13 | J171: 2782.9 | K171: 10.41 | L171: 8.78 | M171: 21122774 | N171: -18.31 | O171: 0 | P171: 0 | Q171: TG | R171: PSF | S171: Fitswork447 | T171: 100mm | U171: 800 | V171: D3300 | W171: 5.6 | X171: 10 | Y171: 6000 | Z171: 6 | AA171: 2458932.319 | AB171: sehr leicht defokussiert | AE171: 2020-05-01
A172: 171 | B172: Gaia DR2 | C172: HD31500 | D172: 72 | E172: 7.21 | F172: HD31500 | G172: 20200323_0046 | H172: 20200323_0046_100mm_ISO800_D3300_F5,6_10sec_9F_Aur_RX_SY.fit Grün | I172: 2436.71 | J172: 3266.15 | K172: 10.16 | L172: 9.01 | M172: 17105250 | N172: -18.08 | O172: 0 | P172: 0 | Q172: TG | R172: PSF | S172: Fitswork447 | T172: 100mm | U172: 800 | V172: D3300 | W172: 5.6 | X172: 10 | Y172: 6000 | Z172: 6 | AA172: 2458932.319 | AB172: sehr leicht defokussiert | AE172: 2020-05-01
A173: 172 | B173: Gaia DR2 | C173: Gaia DR2 200851779077093504 | D173: 76 | E173: 7.62 | G173: 20200323_0046 | H173: 20200323_0046_100mm_ISO800_D3300_F5,6_10sec_9F_Aur_RX_SY.fit Grün | I173: 2146.07 | J173: 2909.69 | K173: 9.59 | L173: 8.55 | M173: 12276680 | N173: -17.72 | O173: 0 | P173: 0 | Q173: TG | R173: PSF | S173: Fitswork447 | T173: 100mm | U173: 800 | V173: D3300 | W173: 5.6 | X173: 10 | Y173: 6000 | Z173: 6 | AA173: 2458932.319 | AB173: sehr leicht defokussiert | AE173: 2020-05-01
A174: 173 | B174: Gaia DR2 | C174: Gaia DR2 200778352314940416 | D174: 80 | E174: 7.98 | G174: 20200323_0046 | H174: 20200323_0046_100mm_ISO800_D3300_F5,6_10sec_9F_Aur_RX_SY.fit Grün | I174: 2321.27 | J174: 3088.65 | K174: 9.68 | L174: 8.61 | M174: 9256641 | N174: -17.42 | O174: 0 | P174: 0 | Q174: TG | R174: PSF | S174: Fitswork447 | T174: 100mm | U174: 800 | V174: D3300 | W174: 5.6 | X174: 10 | Y174: 6000 | Z174: 6 | AA174: 2458932.319 | AB174: sehr leicht defokussiert | AE174: 2020-05-01
A175: 174 | B175: Gaia DR2 | C175: Gaia DR2 200527869820934784 | D175: 81 | E175: 8.07 | G175: 20200323_0046 | H175: 20200323_0046_100mm_ISO800_D3300_F5,6_10sec_9F_Aur_RX_SY.fit Grün | I175: 1898.1 | J175: 3152.21 | K175: 9.81 | L175: 8.57 | M175: 8385394.5 | N175: -17.31 | O175: 0 | P175: 0 | Q175: TG | R175: PSF | S175: Fitswork447 | T175: 100mm | U175: 800 | V175: D3300 | W175: 5.6 | X175: 10 | Y175: 6000 | Z175: 6 | AA175: 2458932.319 | AB175: sehr leicht defokussiert | AE175: 2020-05-01
A176: 175 | B176: Gaia DR2 | C176: HD32234 | D176: 81 | E176: 8.11 | F176: HD32234 | G176: 20200323_0046 | H176: 20200323_0046_100mm_ISO800_D3300_F5,6_10sec_9F_Aur_RX_SY.fit Grün | I176: 2038.39 | J176: 3089.04 | K176: 10.76 | L176: 8.16 | M176: 10250904 | N176: -17.53 | O176: 0 | P176: 0 | Q176: TG | R176: PSF | S176: Fitswork447 | T176: 100mm | U176: 800 | V176: D3300 | W176: 5.6 | X176: 10 | Y176: 6000 | Z176: 6 | AA176: 2458932.319 | AB176: sehr leicht defokussiert | AE176: 2020-05-01
A177: 176 | B177: Gaia DR2 | C177: RX Aur | D177: RX Aur | G177: 20200322_0128 | H177: 20200322_0128_100mm_ISO800_D3300_F5,6_10sec_9F_Aur_RX_SY.fit Grün | I177: 2192.05 | J177: 2569.52 | K177: 9.61 | L177: 8.67 | M177: 14627726 | N177: -17.91 | O177: 0 | P177: 0 | Q177: TG | R177: PSF | S177: Fitswork447 | T177: 100mm | U177: 800 | V177: D3300 | W177: 5.6 | X177: 1 | Y177: 6000 | Z177: 9 | AA177: 2458931.309 | AB177: sehr leicht defokussiert | AE177: 2020-05-01
A178: 177 | B178: Gaia DR2 | C178: HD33462 | D178: 70 | E178: 6.97 | F178: HD33462 | G178: 20200322_0128 | H178: 20200322_0128_100mm_ISO800_D3300_F5,6_10sec_9F_Aur_RX_SY.fit Grün | I178: 1305.51 | J178: 2378.29 | K178: 10.45 | L178: 8.97 | M178: 22004584 | N178: -18.36 | O178: 0 | P178: 0 | Q178: TG | R178: PSF | S178: Fitswork447 | T178: 100mm | U178: 800 | V178: D3300 | W178: 5.6 | X178: 1 | Y178: 6000 | Z178: 9 | AA178: 2458931.309 | AB178: sehr leicht defokussiert | AE178: 2020-05-01
A179: 178 | B179: Gaia DR2 | C179: HD31500 | D179: 72 | E179: 7.21 | F179: HD31500 | G179: 20200322_0128 | H179: 20200322_0128_100mm_ISO800_D3300_F5,6_10sec_9F_Aur_RX_SY.fit Grün | I179: 2458.72 | J179: 2561.08 | K179: 9.57 | L179: 8.76 | M179: 17560724 | N179: -18.11 | O179: 0 | P179: 0 | Q179: TG | R179: PSF | S179: Fitswork447 | T179: 100mm | U179: 800 | V179: D3300 | W179: 5.6 | X179: 1 | Y179: 6000 | Z179: 9 | AA179: 2458931.309 | AB179: sehr leicht defokussiert | AE179: 2020-05-01
A180: 179 | B180: Gaia DR2 | C180: Gaia DR2 200851779077093504 | D180: 76 | E180: 7.62 | G180: 20200322_0128 | H180: 20200322_0128_100mm_ISO800_D3300_F5,6_10sec_9F_Aur_RX_SY.fit Grün | I180: 2083.67 | J180: 2295.39 | K180: 9.47 | L180: 8.55 | M180: 12577806 | N180: -17.75 | O180: 0 | P180: 0 | Q180: TG | R180: PSF | S180: Fitswork447 | T180: 100mm | U180: 800 | V180: D3300 | W180: 5.6 | X180: 1 | Y180: 6000 | Z180: 9 | AA180: 2458931.309 | AB180: sehr leicht defokussiert | AE180: 2020-05-01
A181: 180 | B181: Gaia DR2 | C181: Gaia DR2 200778352314940416 | D181: 80 | E181: 7.98 | G181: 20200322_0128 | H181: 20200322_0128_100mm_ISO800_D3300_F5,6_10sec_9F_Aur_RX_SY.fit Grün | I181: 2300.32 | J181: 2421.12 | K181: 9.21 | L181: 8.34 | M181: 9457117 | N181: -17.44 | O181: 0 | P181: 0 | Q181: TG | R181: PSF | S181: Fitswork447 | T181: 100mm | U181: 800 | V181: D3300 | W181: 5.6 | X181: 1 | Y181: 6000 | Z181: 9 | AA181: 2458931.309 | AB181: sehr leicht defokussiert | AE181: 2020-05-01
A182: 181 | B182: Gaia DR2 | C182: Gaia DR2 200527869820934784 | D182: 81 | E182: 8.07 | G182: 20200322_0128 | H182: 20200322_0128_100mm_ISO800_D3300_F5,6_10sec_9F_Aur_RX_SY.fit Grün | I182: 1909.49 | J182: 2594.6 | K182: 9.34 | L182: 8.33 | M182: 8643469 | N182: -17.34 | O182: 0 | P182: 0 | Q182: TG | R182: PSF | S182: Fitswork447 | T182: 100mm | U182: 800 | V182: D3300 | W182: 5.6 | X182: 1 | Y182: 6000 | Z182: 9 | AA182: 2458931.309 | AB182: sehr leicht defokussiert | AE182: 2020-05-01
A183: 182 | B183: Gaia DR2 | C183: HD32234 | D183: 81 | E183: 8.11 | F183: HD32234 | G183: 20200322_0128 | H183: 20200322_0128_100mm_ISO800_D3300_F5,6_10sec_9F_Aur_RX_SY.fit Grün | I183: 2027.76 | J183: 2496.59 | K183: 10.48 | L183: 8.42 | M183: 10729505 | N183: -17.58 | O183: 0 | P183: 0 | Q183: TG | R183: PSF | S183: Fitswork447 | T183: 100mm | U183: 800 | V183: D3300 | W183: 5.6 | X183: 1 | Y183: 6000 | Z183: 9 | AB183: sehr leicht defokussiert | AE183: 2020-05-01
A184: 183 | B184: Gaia DR2 | C184: RX Aur | D184: RX Aur | G184: 20200320_0451 | H184: 20200320_0451_100mm_ISO800_D3300_F5,6_10sec_9F_Aur_RX_SY.fit Grün | I184: 2609.79 | J184: 3166.78 | K184: 10.05 | L184: 8.81 | M184: 11271571 | N184: -17.63 | O184: 0 | P184: 0 | Q184: TG | R184: PSF | S184: Fitswork447 | T184: 100mm | U184: 800 | V184: D3300 | W184: 5.6 | X184: 1 | Y184: 6000 | Z184: 9 | AA184: 2458929.277 | AB184: sehr leicht defokussiert | AE184: 2020-05-01
A185: 184 | B185: Gaia DR2 | C185: HD33462 | D185: 70 | E185: 6.97 | F185: HD33462 | G185: 20200320_0451 | H185: 20200320_0451_100mm_ISO800_D3300_F5,6_10sec_9F_Aur_RX_SY.fit Grün | I185: 1749.6 | J185: 2883.57 | K185: 10.47 | L185: 8.6 | M185: 17246528 | N185: -18.09 | O185: 0 | P185: 0 | Q185: TG | R185: PSF | S185: Fitswork447 | T185: 100mm | U185: 800 | V185: D3300 | W185: 5.6 | X185: 1 | Y185: 6000 | Z185: 9 | AA185: 2458929.277 | AB185: sehr leicht defokussiert | AE185: 2020-05-01
A186: 185 | B186: Gaia DR2 | C186: HD31500 | D186: 72 | E186: 7.21 | F186: HD31500 | G186: 20200320_0451 | H186: 20200320_0451_100mm_ISO800_D3300_F5,6_10sec_9F_Aur_RX_SY.fit Grün | I186: 2875.89 | J186: 3186.52 | K186: 10.43 | L186: 8.94 | M186: 13876503 | N186: -17.86 | O186: 0 | P186: 0 | Q186: TG | R186: PSF | S186: Fitswork447 | T186: 100mm | U186: 800 | V186: D3300 | W186: 5.6 | X186: 1 | Y186: 6000 | Z186: 9 | AA186: 2458929.277 | AB186: sehr leicht defokussiert | AE186: 2020-05-01
A187: 186 | B187: Gaia DR2 | C187: Gaia DR2 200851779077093504 | D187: 76 | E187: 7.62 | G187: 20200320_0451 | H187: 20200320_0451_100mm_ISO800_D3300_F5,6_10sec_9F_Aur_RX_SY.fit Grün | I187: 2530.96 | J187: 2882.6 | K187: 9.9 | L187: 8.56 | M187: 9644014 | N187: -17.46 | O187: 0 | P187: 0 | Q187: TG | R187: PSF | S187: Fitswork447 | T187: 100mm | U187: 800 | V187: D3300 | W187: 5.6 | X187: 1 | Y187: 6000 | Z187: 9 | AA187: 2458929.277 | AB187: sehr leicht defokussiert | AE187: 2020-05-01
A188: 187 | B188: Gaia DR2 | C188: Gaia DR2 200778352314940416 | D188: 80 | E188: 7.98 | G188: 20200320_0451 | H188: 20200320_0451_100mm_ISO800_D3300_F5,6_10sec_9F_Aur_RX_SY.fit Grün | I188: 2733.01 | J188: 3030.4 | K188: 9.72 | L188: 8.62 | M188: 7389428 | N188: -17.17 | O188: 0 | P188: 0 | Q188: TG | R188: PSF | S188: Fitswork447 | T188: 100mm | U188: 800 | V188: D3300 | W188: 5.6 | X188: 1 | Y188: 6000 | Z188: 9 | AA188: 2458929.277 | AB188: sehr leicht defokussiert | AE188: 2020-05-01
A189: 188 | B189: Gaia DR2 | C189: Gaia DR2 200527869820934784 | D189: 81 | E189: 8.07 | G189: 20200320_0451 | H189: 20200320_0451_100mm_ISO800_D3300_F5,6_10sec_9F_Aur_RX_SY.fit Grün | I189: 2326.26 | J189: 3162.06 | K189: 9.64 | L189: 8.58 | M189: 6511243.5 | N189: -17.03 | O189: 0 | P189: 0 | Q189: TG | R189: PSF | S189: Fitswork447 | T189: 100mm | U189: 800 | V189: D3300 | W189: 5.6 | X189: 1 | Y189: 6000 | Z189: 9 | AA189: 2458929.277 | AB189: sehr leicht defokussiert | AE189: 2020-05-01
A190: 189 | B190: Gaia DR2 | C190: HD32234 | D190: 81 | E190: 8.11 | F190: HD32234 | G190: 20200320_0451 | H190: 20200320_0451_100mm_ISO800_D3300_F5,6_10sec_9F_Aur_RX_SY.fit Grün | I190: 2454.21 | J190: 3076.9 | K190: 10.96 | L190: 8.17 | M190: 7984881 | N190: -17.26 | O190: 0 | P190: 0 | Q190: TG | R190: PSF | S190: Fitswork447 | T190: 100mm | U190: 800 | V190: D3300 | W190: 5.6 | X190: 1 | Y190: 6000 | Z190: 9 | AB190: sehr leicht defokussiert | AE190: 2020-05-01
A191: 190 | B191: Gaia DR2 | C191: RX Aur | D191: RX Aur | G191: 20200319_0217 | H191: 20200319_0217_100mm_ISO800_D3300_F5,6_10sec_9F_Aur_RX_SY.fit Grün | I191: 2151.71 | J191: 3846.39 | K191: 9.37 | L191: 7.8 | M191: 11168646 | N191: -17.62 | O191: 0 | P191: 0 | Q191: TG | R191: PSF | S191: Fitswork447 | T191: 100mm | U191: 800 | V191: D3300 | W191: 5.6 | X191: 1 | Y191: 6000 | Z191: 9 | AA191: 2458928.322 | AB191: sehr leicht defokussiert | AD191: RX am Unterrand im Verstärkerglühen | AE191: 2020-05-01
A192: 191 | B192: Gaia DR2 | C192: HD33462 | D192: 70 | E192: 6.97 | F192: HD33462 | G192: 20200319_0217 | H192: 20200319_0217_100mm_ISO800_D3300_F5,6_10sec_9F_Aur_RX_SY.fit Grün | I192: 1312.51 | J192: 3500.67 | K192: 9.9 | L192: 7.62 | M192: 19334992 | N192: -18.22 | O192: 0 | P192: 0 | Q192: TG | R192: PSF | S192: Fitswork447 | T192: 100mm | U192: 800 | V192: D3300 | W192: 5.6 | X192: 1 | Y192: 6000 | Z192: 9 | AA192: 2458928.322 | AB192: sehr leicht defokussiert | AD192: RX am Unterrand im Verstärkerglühen | AE192: 2020-05-01
A193: 192 | B193: Gaia DR2 | C193: HD31500 | D193: 72 | E193: 7.21 | F193: HD31500 | G193: 20200319_0217 | H193: 20200319_0217_100mm_ISO800_D3300_F5,6_10sec_9F_Aur_RX_SY.fit Grün | I193: 2416.28 | J193: 3885.32 | K193: 9.76 | L193: 8.07 | M193: 15638502 | N193: -17.99 | O193: 0 | P193: 0 | Q193: TG | R193: PSF | S193: Fitswork447 | T193: 100mm | U193: 800 | V193: D3300 | W193: 5.6 | X193: 1 | Y193: 6000 | Z193: 9 | AA193: 2458928.322 | AB193: sehr leicht defokussiert | AD193: RX am Unterrand im Verstärkerglühen | AE193: 2020-05-01
A194: 193 | B194: Gaia DR2 | C194: Gaia DR2 200851779077093504 | D194: 76 | E194: 7.62 | G194: 20200319_0217 | H194: 20200319_0217_100mm_ISO800_D3300_F5,6_10sec_9F_Aur_RX_SY.fit Grün | I194: 2094.03 | J194: 3556.13 | K194: 9.04 | L194: 7.64 | M194: 11332100 | N194: -17.64 | O194: 0 | P194: 0 | Q194: TG | R194: PSF | S194: Fitswork447 | T194: 100mm | U194: 800 | V194: D3300 | W194: 5.6 | X194: 1 | Y194: 6000 | Z194: 9 | AA194: 2458928.322 | AB194: sehr leicht defokussiert | AD194: RX am Unterrand im Verstärkerglühen | AE194: 2020-05-01
A195: 194 | B195: Gaia DR2 | C195: Gaia DR2 200778352314940416 | D195: 80 | E195: 7.98 | G195: 20200319_0217 | H195: 20200319_0217_100mm_ISO800_D3300_F5,6_10sec_9F_Aur_RX_SY.fit Grün | I195: 2285.08 | J195: 3718.69 | K195: 9 | L195: 7.61 | M195: 8765272 | N195: -17.36 | O195: 0 | P195: 0 | Q195: TG | R195: PSF | S195: Fitswork447 | T195: 100mm | U195: 800 | V195: D3300 | W195: 5.6 | X195: 1 | Y195: 6000 | Z195: 9 | AA195: 2458928.322 | AB195: sehr leicht defokussiert | AD195: RX am Unterrand im Verstärkerglühen | AE195: 2020-05-01
A196: 195 | B196: Gaia DR2 | C196: Gaia DR2 200527869820934784 | D196: 81 | E196: 8.07 | G196: 20200319_0217 | H196: 20200319_0217_100mm_ISO800_D3300_F5,6_10sec_9F_Aur_RX_SY.fit Grün | I196: 1868.59 | J196: 3821.21 | K196: 9.33 | L196: 7.34 | M196: 7557937.5 | N196: -17.2 | O196: 0 | P196: 0 | Q196: TG | R196: PSF | S196: Fitswork447 | T196: 100mm | U196: 800 | V196: D3300 | W196: 5.6 | X196: 1 | Y196: 6000 | Z196: 9 | AA196: 2458928.322 | AB196: sehr leicht defokussiert | AD196: RX am Unterrand im Verstärkerglühen | AE196: 2020-05-01
A197: 196 | B197: Gaia DR2 | C197: HD32234 | D197: 81 | E197: 8.11 | F197: HD32234 | G197: 20200319_0217 | H197: 20200319_0217_100mm_ISO800_D3300_F5,6_10sec_9F_Aur_RX_SY.fit Grün | I197: 2002.88 | J197: 3745.09 | K197: 10.18 | L197: 7.3 | M197: 9307685 | N197: -17.42 | O197: 0 | P197: 0 | Q197: TG | R197: PSF | S197: Fitswork447 | T197: 100mm | U197: 800 | V197: D3300 | W197: 5.6 | X197: 1 | Y197: 6000 | Z197: 9 | AA197: 2458928.322 | AB197: sehr leicht defokussiert | AD197: RX am Unterrand im Verstärkerglühen | AE197: 2020-05-01
A198: 197 | B198: Gaia DR2 | C198: RX Aur | D198: RX Aur | G198: 20200220_0226 | H198: 20200220_0226_100mm_ISO800_D3300A_F5,6_10sec_9F_Aur_SY_RX.fit Grün | I198: 1503.84 | J198: 2920.91 | K198: 7.47 | L198: 5.85 | M198: 9767341 | N198: -17.47 | O198: 0 | P198: 0 | Q198: TG | R198: PSF | S198: Fitswork447 | T198: 100mm | U198: 800 | V198: D3300 | W198: 5.6 | X198: 1 | Y198: 6000 | Z198: 9 | AA198: 2458900.408 | AB198: fast scharf | AE198: 2020-05-01
A199: 198 | B199: Gaia DR2 | C199: HD33462 | D199: 70 | E199: 6.97 | F199: HD33462 | G199: 20200220_0226 | H199: 20200220_0226_100mm_ISO800_D3300A_F5,6_10sec_9F_Aur_SY_RX.fit Grün | I199: 724.72 | J199: 2453.83 | K199: 8.45 | L199: 6.29 | M199: 20054364 | N199: -18.26 | O199: 0 | P199: 0 | Q199: TG | R199: PSF | S199: Fitswork447 | T199: 100mm | U199: 800 | V199: D3300 | W199: 5.6 | X199: 1 | Y199: 6000 | Z199: 9 | AA199: 2458900.408 | AB199: fast scharf | AE199: 2020-05-01
A200: 199 | B200: Gaia DR2 | C200: HD31500 | D200: 72 | E200: 7.21 | F200: HD31500 | G200: 20200220_0226 | H200: 20200220_0226_100mm_ISO800_D3300A_F5,6_10sec_9F_Aur_SY_RX.fit Grün | I200: 1759.37 | J200: 2998.86 | K200: 7.78 | L200: 6.06 | M200: 16233302 | N200: -18.03 | O200: 0 | P200: 0 | Q200: TG | R200: PSF | S200: Fitswork447 | T200: 100mm | U200: 800 | V200: D3300 | W200: 5.6 | X200: 1 | Y200: 6000 | Z200: 9 | AA200: 2458900.408 | AB200: fast scharf | AE200: 2020-05-01
... 945 more rows

Sheet Blenden
D1: Flaeche | E1: Annulus
A2: Aperture | B2: 8 | D2: =B2^2*3.1415927 -> 201.0619328
A4: inner_Radius | B4: 12 | D4: =B4^2*3.1415927 -> 452.3893488
A5: outer_Radius | B5: 20 | D5: =B5^2*3.1415927 -> 1256.63708 | E5: =D5-D4 -> 804.2477312
D10: Flaeche | E10: Annulus
A11: Aperture | B11: 6 | D11: =B11^2*3.1415927 -> 113.0973372
A13: inner_Radius | B13: 12 | D13: =B13^2*3.1415927 -> 452.3893488
A14: outer_Radius | B14: 15 | D14: =B14^2*3.1415927 -> 706.8583575 | E14: =D14-D13 -> 254.4690087
